Workbook

Sheet Pricing model
G2: AER pricing model
G3: =DNSP&" "&forecastyear -> Energex 2026–27
G4: Electicity Distribution Network Service Provider
C9: Key: | G9: Version Record | H9: Date | I9: Description
E10: Final determination AER input | G10: 0.1 | H10: 2021-08-01 | I10: Draft version of new model - including inputs and calculations worksheets, as well as lookup worksheet
E11: Annual AER input | G11: 0.2 | H11: 2021-10-01 | I11: Draft version of full model for feedback
E12: Updated AER input (e.g. placeholder updated for final submission) | G12: 0.3 | H12: 2021-11-01 | I12: Final model for DNSP QA
E13: Annual DNSP input | G13: 1 | H13: 2021-12-01 | I13: Final model for use in 2022/23 process
E14: Updated DNSP input (e.g. placeholder updated for final submission) | G14: 1.1 | H14: 2022-03-01 | I14: Updated for issues arising in 2022/23 pre-lodgement engagement proces
E15: Calculation | G15: 1.2 | H15: 2022-11-01 | I15: Final updated model (from broader stakeholder consultation and revisions) for DNSP QA
E16: N/A | G16: 2 | H16: 2022-12-01 | I16: Final model for use in 2023/24 process
E17: Overrides for cost movement calculations | G17: 2.1 | H17: 2023-12-01 | I17: Updated presentation of outputs and cost movements mechanisms.
G18: 3 | H18: 2024-12-01 | I18: Final model updated for 2025–30 determinations for use in 2025/26 initial pricing
G19: 3.1 | H19: 2024-12-01 | I19: Updated model to add metering true-up and for other minor formatting issues
C21: Contents
C23: Rules | E23: Provides Distribution Pricing Rules
C24: Mechanisms | E24: Provides applicable mechanisms
C25: Outputs
C26: ='Outputs>>'!C7 -> Tariff schedule | E26: ='Outputs>>'!D7 -> Provides schedules of network prices
C27: Stakeholder report | E27: Provides report on allowed revenue, consumption trend and cost movements for the DNSP
C28: Proposal report | E28: Provides report on DNSP's proposal of revenues, unders/overs accounts, side constraints, tariff trials and costs
C29: Model report | E29: Provides output report including compliance, validations, trend analysis, and quantity forecast analysis
C30: Quantity forecasts | E30: Provides quantity forecast analysis and charts
C31: ='Outputs>>'!C12 -> Compliance | E31: ='Outputs>>'!D12 -> Compliance checks against total allowable revenues, unders/overs closing balances, side constraint thresholds, trial tariff thresholds, and standalone and avoidable costs.
C32: ='Outputs>>'!C13 -> Price comparisons (indicative) | E32: ='Outputs>>'!D13 -> Compliance checks of proposed prices against relevant indicative prices from previous indicative schedule
C33: Price comparisons (current) | E33: Analysis of proposed prices against current prices
C34: ='Outputs>>'!C15 -> Tables | E34: ='Outputs>>'!D15 -> Provides output tables for use in pricing proposal documents
C35: ='Outputs>>'!C16 -> Cost movements | E35: ='Outputs>>'!D16 -> Provides cost movements summaries
C36: ='Outputs>>'!C17 -> Charts | E36: ='Outputs>>'!D17 -> Provides output charts for revenue and cost movements (some editing of charts may be necessary for presentational issues)
C37: Inputs | E37: Provides links and guide to inputs required at each stage in process
C38: ='Inputs>>'!C7 -> General | E38: ='Inputs>>'!D7 -> Inputs NSP name, regulatory years for the t, t-1, and t-2 years, inflation, day counts, etc.
C39: ='Inputs>>'!C8 -> Financial | E39: ='Inputs>>'!D8 -> Inputs the WACC, x-factors, allowed revenues, and annual adjustments
C40: ='Inputs>>'!C9 -> Actuals | E40: ='Inputs>>'!D9 -> Inputs actual revenues, demand, and customer numbers
C41: ='Inputs>>'!C10 -> Metering | E41: ='Inputs>>'!D10 -> Inputs relating to metering (prices for cost movements for non-Vic, prices and quantities for revenue caps for Vic)
C42: ='Inputs>>'!C11 -> Tariffs | E42: ='Inputs>>'!D11 -> Inputs tariff information including charging components and tariff classes
C43: ='Inputs>>'!C12 -> Quantities | E43: ='Inputs>>'!D12 -> Inputs forecast, estimated, and actual quantities
C44: ='Inputs>>'!C13 -> Proposed prices input | E44: ='Inputs>>'!D13 -> Inputs proposed prices for SCS
C45: Proposed prices control input | E45: Inputs controls for proposed prices for SCS as a function of current prices
C46: ='Inputs>>'!C15 -> Historical prices | E46: ='Inputs>>'!D15 -> Inputs historical prices for SCS for calculating estimated and actual revenues
C47: ='Inputs>>'!C16 -> Indicative prices | E47: ='Inputs>>'!D16 -> Inputs indicative tariffs to update the schedule for the remainder of the regulatory control period (updates previous schedule for only remaining years)
C48: ='Inputs>>'!C18 -> Trial tariffs | E48: ='Inputs>>'!D18 -> Inputs trial tariffs and relevant revenues (both forecast and historical)
C49: ='Inputs>>'!C19 -> Tariff costs | E49: ='Inputs>>'!D19 -> Inputs cost information related to standalone and avoidable costs
C50: Metering true-up | E50: True-up mechanism for metering operating expenditure to adjust for 3rd parties actions in relation to LMRPs
C51: Calculations
C52: ='Calculations>>'!C7 -> Total allowable revenue | E52: ='Calculations>>'!D7 -> Calculates total allowable revenues
C53: ='Calculations>>'!C8 -> Accounts | E53: ='Calculations>>'!D8 -> Calculates under/over-recovery and related data
C54: ='Calculations>>'!C9 -> Revenue summary | E54: ='Calculations>>'!D9 -> Totals revenues for each tariff, charging component, and tariff class
C55: Proposed prices controls | E55: Identifies applicable controls for each price
C56: Proposed prices | E56: Proposed prices for forecast year, sourced from inputs or calculated using current prices and controls, as relevant
C57: ='Calculations>>'!C12 -> Proposed revenue | E57: ='Calculations>>'!D12 -> Calculates revenues for the t year for each tariff component
C58: ='Calculations>>'!C13 -> Historical revenue | E58: ='Calculations>>'!D13 -> Calculates revenues for the t-1 and t-2 years for each tariff component
C59: ='Calculations>>'!C14 -> Side constraints revenue | E59: ='Calculations>>'!D14 -> Calculates permissable percentage and revenue for side constraint mechanism
C60: ='Calculations>>'!C15 -> Total quantities | E60: ='Calculations>>'!D15 -> Calculates demand for each charging component, tariff, and tariff class
C61: ='Calculations>>'!C16 -> Movements | E61: ='Calculations>>'!D16 -> Calculates network costs and consumption profiles for each residential and small business tariff
C62: Lookups | E62: Provides lookups for use throughout the model
C63: Model update log | E63: Provides log of updates made to the model template (rather than changes between preliminary and final model submissions)
C65: Changelog (to detail completion of inputs, and any changes to inputs)
C67: Date | E67: Description
B82: End

Sheet Outputs>>
B1: ='Pricing model'!G2&" - "&'Pricing model'!G3 -> AER pricing model - Energex 2026–27
B2: Outputs
B4: Model index
C6: Sheet Name | D6: Sheet Description
C7: Tariff schedule | D7: Provides schedules of network prices
C8: Stakeholder report | D8: Provides report on allowed revenue, consumption trend and cost movements for the DNSP
C9: Proposal report | D9: Provides report on DNSP's proposal of revenues, unders/overs accounts, side constraints, tariff trials and costs
C10: Model report | D10: Provides output report including compliance, validations, trend analysis, and quantity forecast analysis
C11: Quantity forecasts | D11: Provides quantity forecast analysis and charts
C12: Compliance | D12: Compliance checks against total allowable revenues, unders/overs closing balances, side constraint thresholds, trial tariff thresholds, and standalone and avoidable costs.
C13: Price comparisons (indicative) | D13: Compliance checks of proposed prices against relevant indicative prices from previous indicative schedule
C14: Price comparisons (current) | D14: Analysis of proposed prices against current prices
C15: Tables | D15: Provides output tables for use in pricing proposal documents
C16: Cost movements | D16: Provides cost movements summaries
C17: Charts | D17: Provides output charts for revenue and cost movements (some editing of charts may be necessary for presentational issues)
B19: End

Sheet Tariff schedule
B1: ='Outputs>>'!B1 -> AER pricing model - Energex 2026–27 | I1: Back to Index
B2: ='Outputs>>'!C7 -> Tariff schedule | AL2: VALIDATION
B3: ='Outputs>>'!D7 -> Provides schedules of network prices | K3: ALL PRICES ARE EXCLUDING GST | AL3: =IF(COUNTIF(AL5:AL1005,"CHECK")>0,"CHECK","OK") -> OK
B5: ="Tariff schedule 1 | "&forecastyear&" Metering prices (where a revenue cap is applicable)" -> Tariff schedule 1 | 2026–27 Metering prices (where a revenue cap is applicable) | I5: =forecastyear -> 2026–27
C7: =Metering!C42 -> SCS metering | I7: =INDEX(Metering!$N42:$R42,1,MATCH(forecastyear,Metering!$N$39:$R$39,0)) -> 0.123 | AL7: =IF(_xlfn.ISFORMULA(I7),"OK","CHECK") -> OK
C8: =Metering!C43 -> 0 | I8: =INDEX(Metering!$N43:$R43,1,MATCH(forecastyear,Metering!$N$39:$R$39,0)) -> 0 | AL8: OK
C9: =Metering!C44 -> 0 | I9: =INDEX(Metering!$N44:$R44,1,MATCH(forecastyear,Metering!$N$39:$R$39,0)) -> 0 | AL9: OK
C10: =Metering!C45 -> 0 | I10: =INDEX(Metering!$N45:$R45,1,MATCH(forecastyear,Metering!$N$39:$R$39,0)) -> 0 | AL10: OK
C11: =Metering!C46 -> 0 | I11: =INDEX(Metering!$N46:$R46,1,MATCH(forecastyear,Metering!$N$39:$R$39,0)) -> 0 | AL11: OK
C12: =Metering!C47 -> 0 | I12: =INDEX(Metering!$N47:$R47,1,MATCH(forecastyear,Metering!$N$39:$R$39,0)) -> 0 | AL12: OK
C13: =Metering!C48 -> 0 | I13: =INDEX(Metering!$N48:$R48,1,MATCH(forecastyear,Metering!$N$39:$R$39,0)) -> 0 | AL13: OK
B16: ="Tariff schedule 2 | "&forecastyear&" DMO tariffs" -> Tariff schedule 2 | 2026–27 DMO tariffs | D16: =D83 -> Tariff class | E16: =E83 -> Code/NMI | F16: =F83 -> Secondary class | G16: =G83 -> Combined | I16: =I83 -> Fixed | J16: =J83 -> Connection | K16: Anytime | L16: Peak | M16: Off-peak | N16: Shoulder | O16: General | P16: Common | Q16: Dmd kVA | R16: Pk Dmd kVA | S16: Shd Dmd kVA | T16: Opk Dmd kVA | U16: Dmd kW | V16: Pk Dmd kW | W16: Shd Dmd kW | X16: Opk Dmd kW | Y16: Location | Z16: Capacity | AA16: CPP import | AB16: CPP export | AC16: CPP E reward | AD16: CPP E reward | AE16: CPP I reward | AF16: CPPI charge | AG16: CPPE charge | AH16: Vol Exp charge | AI16: Vol Exp reward | AJ16: 0
I17: =I84 -> $/day | J17: $/day | K17: $/kWh | L17: $/kWh | M17: $/kWh | N17: $/kWh | O17: $/kWh | P17: $/kWh | Q17: $/kVA | R17: $/kVA | S17: $/kVA | T17: $/kVA | U17: $/kW | V17: $/kW | W17: $/kW | X17: $/kW | Y17: $/kW | Z17: $/kVA/month | AA17: $/kVA | AB17: $/kW | AC17: $/kW | AD17: $/kWh | AE17: $/kWh | AF17: $/kWh | AG17: $/kWh | AH17: $/kWh | AI17: $/kWh
C18: =C85 -> Total network prices
C19: =_xlfn.IFNA(INDEX(Tariffs!$C$54:$C$146,MATCH(DMO!D8,Tariffs!$I$54:$I$146,0)),0) -> Residential Flat | D19: =_xlfn.IFNA(INDEX(Tariffs!$D$54:$D$146,MATCH(DMO!D8,Tariffs!$I$54:$I$146,0)),0) -> SAC | E19: =_xlfn.IFNA(INDEX(Tariffs!$E$54:$E$146,MATCH(DMO!D8,Tariffs!$I$54:$I$146,0)),0) -> 8400 | F19: =_xlfn.IFNA(INDEX(Tariffs!$F$54:$F$146,MATCH(DMO!D8,Tariffs!$I$54:$I$146,0)),0) -> SACS Res | G19: =_xlfn.IFNA(INDEX(Tariffs!$G$54:$G$146,MATCH(DMO!D8,Tariffs!$I$54:$I$146,0)),0) -> SAC8400 | H19: =IF(C19=0,0,MATCH(C19,$C$86:$C$178,0)) -> 1 | I19: =IF($H19=0,0,INDEX(I$86:I$178,$H19)) -> 0.871 | J19: =IF($H19=0,0,INDEX(J$86:J$178,$H19)) -> 0 | K19: =IF($H19=0,0,INDEX(K$86:K$178,$H19)) -> 0.09391 | L19: =IF($H19=0,0,INDEX(L$86:L$178,$H19)) -> 0 | M19: =IF($H19=0,0,INDEX(M$86:M$178,$H19)) -> 0 | N19: =IF($H19=0,0,INDEX(N$86:N$178,$H19)) -> 0 | O19: =IF($H19=0,0,INDEX(O$86:O$178,$H19)) -> 0 | P19: =IF($H19=0,0,INDEX(P$86:P$178,$H19)) -> 0 | Q19: =IF($H19=0,0,INDEX(Q$86:Q$178,$H19)) -> 0 | R19: =IF($H19=0,0,INDEX(R$86:R$178,$H19)) -> 0 | S19: =IF($H19=0,0,INDEX(S$86:S$178,$H19)) -> 0 | T19: =IF($H19=0,0,INDEX(T$86:T$178,$H19)) -> 0 | U19: =IF($H19=0,0,INDEX(U$86:U$178,$H19)) -> 0 | V19: =IF($H19=0,0,INDEX(V$86:V$178,$H19)) -> 0 | W19: =IF($H19=0,0,INDEX(W$86:W$178,$H19)) -> 0 | X19: =IF($H19=0,0,INDEX(X$86:X$178,$H19)) -> 0 | Y19: =IF($H19=0,0,INDEX(Y$86:Y$178,$H19)) -> 0 | Z19: =IF($H19=0,0,INDEX(Z$86:Z$178,$H19)) -> 0 | AA19: =IF($H19=0,0,INDEX(AA$86:AA$178,$H19)) -> 0 | AB19: =IF($H19=0,0,INDEX(AB$86:AB$178,$H19)) -> 0 | AC19: =IF($H19=0,0,INDEX(AC$86:AC$178,$H19)) -> 0 | AD19: =IF($H19=0,0,INDEX(AD$86:AD$178,$H19)) -> 0 | AE19: =IF($H19=0,0,INDEX(AE$86:AE$178,$H19)) -> 0 | AF19: =IF($H19=0,0,INDEX(AF$86:AF$178,$H19)) -> 0 | AG19: =IF($H19=0,0,INDEX(AG$86:AG$178,$H19)) -> 0 | AH19: =IF($H19=0,0,INDEX(AH$86:AH$178,$H19)) -> 0 | AI19: =IF($H19=0,0,INDEX(AI$86:AI$178,$H19)) -> 0 | AJ19: =IF($H19=0,0,INDEX(AJ$86:AJ$178,$H19)) -> 0 | AL19: =IF(SUMPRODUCT(--_xlfn.ISFORMULA(C19:AJ19))=34,"OK","CHECK") -> OK
C20: =_xlfn.IFNA(INDEX(Tariffs!$C$54:$C$146,MATCH(DMO!D9,Tariffs!$I$54:$I$146,0)),0) -> Residential ToU Energy | D20: =_xlfn.IFNA(INDEX(Tariffs!$D$54:$D$146,MATCH(DMO!D9,Tariffs!$I$54:$I$146,0)),0) -> SAC | E20: =_xlfn.IFNA(INDEX(Tariffs!$E$54:$E$146,MATCH(DMO!D9,Tariffs!$I$54:$I$146,0)),0) -> 6900 | F20: =_xlfn.IFNA(INDEX(Tariffs!$F$54:$F$146,MATCH(DMO!D9,Tariffs!$I$54:$I$146,0)),0) -> SACS Res | G20: =_xlfn.IFNA(INDEX(Tariffs!$G$54:$G$146,MATCH(DMO!D9,Tariffs!$I$54:$I$146,0)),0) -> SAC6900 | H20: 2 | I20: =IF($H20=0,0,INDEX(I$86:I$178,$H20)) -> 0.651 | J20: =IF($H20=0,0,INDEX(J$86:J$178,$H20)) -> 0 | K20: =IF($H20=0,0,INDEX(K$86:K$178,$H20)) -> 0 | L20: =IF($H20=0,0,INDEX(L$86:L$178,$H20)) -> 0.19533 | M20: =IF($H20=0,0,INDEX(M$86:M$178,$H20)) -> 0.00434 | N20: =IF($H20=0,0,INDEX(N$86:N$178,$H20)) -> 0.06069 | O20: =IF($H20=0,0,INDEX(O$86:O$178,$H20)) -> 0 | P20: =IF($H20=0,0,INDEX(P$86:P$178,$H20)) -> 0 | Q20: =IF($H20=0,0,INDEX(Q$86:Q$178,$H20)) -> 0 | R20: =IF($H20=0,0,INDEX(R$86:R$178,$H20)) -> 0 | S20: =IF($H20=0,0,INDEX(S$86:S$178,$H20)) -> 0 | T20: =IF($H20=0,0,INDEX(T$86:T$178,$H20)) -> 0 | U20: =IF($H20=0,0,INDEX(U$86:U$178,$H20)) -> 0 | V20: =IF($H20=0,0,INDEX(V$86:V$178,$H20)) -> 0 | W20: =IF($H20=0,0,INDEX(W$86:W$178,$H20)) -> 0 | X20: =IF($H20=0,0,INDEX(X$86:X$178,$H20)) -> 0 | Y20: =IF($H20=0,0,INDEX(Y$86:Y$178,$H20)) -> 0 | Z20: =IF($H20=0,0,INDEX(Z$86:Z$178,$H20)) -> 0 | AA20: =IF($H20=0,0,INDEX(AA$86:AA$178,$H20)) -> 0 | AB20: =IF($H20=0,0,INDEX(AB$86:AB$178,$H20)) -> 0 | AC20: =IF($H20=0,0,INDEX(AC$86:AC$178,$H20)) -> 0 | AD20: =IF($H20=0,0,INDEX(AD$86:AD$178,$H20)) -> 0 | AE20: =IF($H20=0,0,INDEX(AE$86:AE$178,$H20)) -> 0 | AF20: =IF($H20=0,0,INDEX(AF$86:AF$178,$H20)) -> 0 | AG20: =IF($H20=0,0,INDEX(AG$86:AG$178,$H20)) -> 0 | AH20: =IF($H20=0,0,INDEX(AH$86:AH$178,$H20)) -> 0 | AI20: =IF($H20=0,0,INDEX(AI$86:AI$178,$H20)) -> 0 | AJ20: =IF($H20=0,0,INDEX(AJ$86:AJ$178,$H20)) -> 0 | AL20: =IF(SUMPRODUCT(--_xlfn.ISFORMULA(C20:AJ20))=34,"OK","CHECK") -> OK
C21: =_xlfn.IFNA(INDEX(Tariffs!$C$54:$C$146,MATCH(DMO!D10,Tariffs!$I$54:$I$146,0)),0) -> Small Business Flat | D21: =_xlfn.IFNA(INDEX(Tariffs!$D$54:$D$146,MATCH(DMO!D10,Tariffs!$I$54:$I$146,0)),0) -> SAC | E21: =_xlfn.IFNA(INDEX(Tariffs!$E$54:$E$146,MATCH(DMO!D10,Tariffs!$I$54:$I$146,0)),0) -> 8500 | F21: =_xlfn.IFNA(INDEX(Tariffs!$F$54:$F$146,MATCH(DMO!D10,Tariffs!$I$54:$I$146,0)),0) -> SACS Bus | G21: =_xlfn.IFNA(INDEX(Tariffs!$G$54:$G$146,MATCH(DMO!D10,Tariffs!$I$54:$I$146,0)),0) -> SAC8500 | H21: 7 | I21: =IF($H21=0,0,INDEX(I$86:I$178,$H21)) -> 1.224 | J21: =IF($H21=0,0,INDEX(J$86:J$178,$H21)) -> 0 | K21: =IF($H21=0,0,INDEX(K$86:K$178,$H21)) -> 0.1076 | L21: =IF($H21=0,0,INDEX(L$86:L$178,$H21)) -> 0 | M21: =IF($H21=0,0,INDEX(M$86:M$178,$H21)) -> 0 | N21: =IF($H21=0,0,INDEX(N$86:N$178,$H21)) -> 0 | O21: =IF($H21=0,0,INDEX(O$86:O$178,$H21)) -> 0 | P21: =IF($H21=0,0,INDEX(P$86:P$178,$H21)) -> 0 | Q21: =IF($H21=0,0,INDEX(Q$86:Q$178,$H21)) -> 0 | R21: =IF($H21=0,0,INDEX(R$86:R$178,$H21)) -> 0 | S21: =IF($H21=0,0,INDEX(S$86:S$178,$H21)) -> 0 | T21: =IF($H21=0,0,INDEX(T$86:T$178,$H21)) -> 0 | U21: =IF($H21=0,0,INDEX(U$86:U$178,$H21)) -> 0 | V21: =IF($H21=0,0,INDEX(V$86:V$178,$H21)) -> 0 | W21: =IF($H21=0,0,INDEX(W$86:W$178,$H21)) -> 0 | X21: =IF($H21=0,0,INDEX(X$86:X$178,$H21)) -> 0 | Y21: =IF($H21=0,0,INDEX(Y$86:Y$178,$H21)) -> 0 | Z21: =IF($H21=0,0,INDEX(Z$86:Z$178,$H21)) -> 0 | AA21: =IF($H21=0,0,INDEX(AA$86:AA$178,$H21)) -> 0 | AB21: =IF($H21=0,0,INDEX(AB$86:AB$178,$H21)) -> 0 | AC21: =IF($H21=0,0,INDEX(AC$86:AC$178,$H21)) -> 0 | AD21: =IF($H21=0,0,INDEX(AD$86:AD$178,$H21)) -> 0 | AE21: =IF($H21=0,0,INDEX(AE$86:AE$178,$H21)) -> 0 | AF21: =IF($H21=0,0,INDEX(AF$86:AF$178,$H21)) -> 0 | AG21: =IF($H21=0,0,INDEX(AG$86:AG$178,$H21)) -> 0 | AH21: =IF($H21=0,0,INDEX(AH$86:AH$178,$H21)) -> 0 | AI21: =IF($H21=0,0,INDEX(AI$86:AI$178,$H21)) -> 0 | AJ21: =IF($H21=0,0,INDEX(AJ$86:AJ$178,$H21)) -> 0 | AL21: =IF(SUMPRODUCT(--_xlfn.ISFORMULA(C21:AJ21))=34,"OK","CHECK") -> OK
C22: =_xlfn.IFNA(INDEX(Tariffs!$C$54:$C$146,MATCH(DMO!D11,Tariffs!$I$54:$I$146,0)),0) -> Small Business ToU Energy | D22: =_xlfn.IFNA(INDEX(Tariffs!$D$54:$D$146,MATCH(DMO!D11,Tariffs!$I$54:$I$146,0)),0) -> SAC | E22: =_xlfn.IFNA(INDEX(Tariffs!$E$54:$E$146,MATCH(DMO!D11,Tariffs!$I$54:$I$146,0)),0) -> 6800 | F22: =_xlfn.IFNA(INDEX(Tariffs!$F$54:$F$146,MATCH(DMO!D11,Tariffs!$I$54:$I$146,0)),0) -> SACS Bus | G22: =_xlfn.IFNA(INDEX(Tariffs!$G$54:$G$146,MATCH(DMO!D11,Tariffs!$I$54:$I$146,0)),0) -> SAC6800 | H22: 8 | I22: =IF($H22=0,0,INDEX(I$86:I$178,$H22)) -> 1.221 | J22: =IF($H22=0,0,INDEX(J$86:J$178,$H22)) -> 0 | K22: =IF($H22=0,0,INDEX(K$86:K$178,$H22)) -> 0 | L22: =IF($H22=0,0,INDEX(L$86:L$178,$H22)) -> 0.26318 | M22: =IF($H22=0,0,INDEX(M$86:M$178,$H22)) -> 0.01627 | N22: =IF($H22=0,0,INDEX(N$86:N$178,$H22)) -> 0.07695 | O22: =IF($H22=0,0,INDEX(O$86:O$178,$H22)) -> 0 | P22: =IF($H22=0,0,INDEX(P$86:P$178,$H22)) -> 0 | Q22: =IF($H22=0,0,INDEX(Q$86:Q$178,$H22)) -> 0 | R22: =IF($H22=0,0,INDEX(R$86:R$178,$H22)) -> 0 | S22: =IF($H22=0,0,INDEX(S$86:S$178,$H22)) -> 0 | T22: =IF($H22=0,0,INDEX(T$86:T$178,$H22)) -> 0 | U22: =IF($H22=0,0,INDEX(U$86:U$178,$H22)) -> 0 | V22: =IF($H22=0,0,INDEX(V$86:V$178,$H22)) -> 0 | W22: =IF($H22=0,0,INDEX(W$86:W$178,$H22)) -> 0 | X22: =IF($H22=0,0,INDEX(X$86:X$178,$H22)) -> 0 | Y22: =IF($H22=0,0,INDEX(Y$86:Y$178,$H22)) -> 0 | Z22: =IF($H22=0,0,INDEX(Z$86:Z$178,$H22)) -> 0 | AA22: =IF($H22=0,0,INDEX(AA$86:AA$178,$H22)) -> 0 | AB22: =IF($H22=0,0,INDEX(AB$86:AB$178,$H22)) -> 0 | AC22: =IF($H22=0,0,INDEX(AC$86:AC$178,$H22)) -> 0 | AD22: =IF($H22=0,0,INDEX(AD$86:AD$178,$H22)) -> 0 | AE22: =IF($H22=0,0,INDEX(AE$86:AE$178,$H22)) -> 0 | AF22: =IF($H22=0,0,INDEX(AF$86:AF$178,$H22)) -> 0 | AG22: =IF($H22=0,0,INDEX(AG$86:AG$178,$H22)) -> 0 | AH22: =IF($H22=0,0,INDEX(AH$86:AH$178,$H22)) -> 0 | AI22: =IF($H22=0,0,INDEX(AI$86:AI$178,$H22)) -> 0 | AJ22: =IF($H22=0,0,INDEX(AJ$86:AJ$178,$H22)) -> 0 | AL22: =IF(SUMPRODUCT(--_xlfn.ISFORMULA(C22:AJ22))=34,"OK","CHECK") -> OK
C23: =_xlfn.IFNA(INDEX(Tariffs!$C$54:$C$146,MATCH(DMO!D12,Tariffs!$I$54:$I$146,0)),0) -> Controlled Load 1 (Super Economy) | D23: =_xlfn.IFNA(INDEX(Tariffs!$D$54:$D$146,MATCH(DMO!D12,Tariffs!$I$54:$I$146,0)),0) -> SAC | E23: =_xlfn.IFNA(INDEX(Tariffs!$E$54:$E$146,MATCH(DMO!D12,Tariffs!$I$54:$I$146,0)),0) -> 9000 | F23: =_xlfn.IFNA(INDEX(Tariffs!$F$54:$F$146,MATCH(DMO!D12,Tariffs!$I$54:$I$146,0)),0) -> SACS CL | G23: =_xlfn.IFNA(INDEX(Tariffs!$G$54:$G$146,MATCH(DMO!D12,Tariffs!$I$54:$I$146,0)),0) -> SAC9000 | H23: 14 | I23: =IF($H23=0,0,INDEX(I$86:I$178,$H23)) -> 0 | J23: =IF($H23=0,0,INDEX(J$86:J$178,$H23)) -> 0 | K23: =IF($H23=0,0,INDEX(K$86:K$178,$H23)) -> 0.02675 | L23: =IF($H23=0,0,INDEX(L$86:L$178,$H23)) -> 0 | M23: =IF($H23=0,0,INDEX(M$86:M$178,$H23)) -> 0 | N23: =IF($H23=0,0,INDEX(N$86:N$178,$H23)) -> 0 | O23: =IF($H23=0,0,INDEX(O$86:O$178,$H23)) -> 0 | P23: =IF($H23=0,0,INDEX(P$86:P$178,$H23)) -> 0 | Q23: =IF($H23=0,0,INDEX(Q$86:Q$178,$H23)) -> 0 | R23: =IF($H23=0,0,INDEX(R$86:R$178,$H23)) -> 0 | S23: =IF($H23=0,0,INDEX(S$86:S$178,$H23)) -> 0 | T23: =IF($H23=0,0,INDEX(T$86:T$178,$H23)) -> 0 | U23: =IF($H23=0,0,INDEX(U$86:U$178,$H23)) -> 0 | V23: =IF($H23=0,0,INDEX(V$86:V$178,$H23)) -> 0 | W23: =IF($H23=0,0,INDEX(W$86:W$178,$H23)) -> 0 | X23: =IF($H23=0,0,INDEX(X$86:X$178,$H23)) -> 0 | Y23: =IF($H23=0,0,INDEX(Y$86:Y$178,$H23)) -> 0 | Z23: =IF($H23=0,0,INDEX(Z$86:Z$178,$H23)) -> 0 | AA23: =IF($H23=0,0,INDEX(AA$86:AA$178,$H23)) -> 0 | AB23: =IF($H23=0,0,INDEX(AB$86:AB$178,$H23)) -> 0 | AC23: =IF($H23=0,0,INDEX(AC$86:AC$178,$H23)) -> 0 | AD23: =IF($H23=0,0,INDEX(AD$86:AD$178,$H23)) -> 0 | AE23: =IF($H23=0,0,INDEX(AE$86:AE$178,$H23)) -> 0 | AF23: =IF($H23=0,0,INDEX(AF$86:AF$178,$H23)) -> 0 | AG23: =IF($H23=0,0,INDEX(AG$86:AG$178,$H23)) -> 0 | AH23: =IF($H23=0,0,INDEX(AH$86:AH$178,$H23)) -> 0 | AI23: =IF($H23=0,0,INDEX(AI$86:AI$178,$H23)) -> 0 | AJ23: =IF($H23=0,0,INDEX(AJ$86:AJ$178,$H23)) -> 0 | AL23: =IF(SUMPRODUCT(--_xlfn.ISFORMULA(C23:AJ23))=34,"OK","CHECK") -> OK
C24: =_xlfn.IFNA(INDEX(Tariffs!$C$54:$C$146,MATCH(DMO!D13,Tariffs!$I$54:$I$146,0)),0) -> Controlled Load 2 (Economy) | D24: =_xlfn.IFNA(INDEX(Tariffs!$D$54:$D$146,MATCH(DMO!D13,Tariffs!$I$54:$I$146,0)),0) -> SAC | E24: =_xlfn.IFNA(INDEX(Tariffs!$E$54:$E$146,MATCH(DMO!D13,Tariffs!$I$54:$I$146,0)),0) -> 9100 | F24: =_xlfn.IFNA(INDEX(Tariffs!$F$54:$F$146,MATCH(DMO!D13,Tariffs!$I$54:$I$146,0)),0) -> SACS CL | G24: =_xlfn.IFNA(INDEX(Tariffs!$G$54:$G$146,MATCH(DMO!D13,Tariffs!$I$54:$I$146,0)),0) -> SAC9100 | H24: 15 | I24: =IF($H24=0,0,INDEX(I$86:I$178,$H24)) -> 0 | J24: =IF($H24=0,0,INDEX(J$86:J$178,$H24)) -> 0 | K24: =IF($H24=0,0,INDEX(K$86:K$178,$H24)) -> 0.02675 | L24: =IF($H24=0,0,INDEX(L$86:L$178,$H24)) -> 0 | M24: =IF($H24=0,0,INDEX(M$86:M$178,$H24)) -> 0 | N24: =IF($H24=0,0,INDEX(N$86:N$178,$H24)) -> 0 | O24: =IF($H24=0,0,INDEX(O$86:O$178,$H24)) -> 0 | P24: =IF($H24=0,0,INDEX(P$86:P$178,$H24)) -> 0 | Q24: =IF($H24=0,0,INDEX(Q$86:Q$178,$H24)) -> 0 | R24: =IF($H24=0,0,INDEX(R$86:R$178,$H24)) -> 0 | S24: =IF($H24=0,0,INDEX(S$86:S$178,$H24)) -> 0 | T24: =IF($H24=0,0,INDEX(T$86:T$178,$H24)) -> 0 | U24: =IF($H24=0,0,INDEX(U$86:U$178,$H24)) -> 0 | V24: =IF($H24=0,0,INDEX(V$86:V$178,$H24)) -> 0 | W24: =IF($H24=0,0,INDEX(W$86:W$178,$H24)) -> 0 | X24: =IF($H24=0,0,INDEX(X$86:X$178,$H24)) -> 0 | Y24: =IF($H24=0,0,INDEX(Y$86:Y$178,$H24)) -> 0 | Z24: =IF($H24=0,0,INDEX(Z$86:Z$178,$H24)) -> 0 | AA24: =IF($H24=0,0,INDEX(AA$86:AA$178,$H24)) -> 0 | AB24: =IF($H24=0,0,INDEX(AB$86:AB$178,$H24)) -> 0 | AC24: =IF($H24=0,0,INDEX(AC$86:AC$178,$H24)) -> 0 | AD24: =IF($H24=0,0,INDEX(AD$86:AD$178,$H24)) -> 0 | AE24: =IF($H24=0,0,INDEX(AE$86:AE$178,$H24)) -> 0 | AF24: =IF($H24=0,0,INDEX(AF$86:AF$178,$H24)) -> 0 | AG24: =IF($H24=0,0,INDEX(AG$86:AG$178,$H24)) -> 0 | AH24: =IF($H24=0,0,INDEX(AH$86:AH$178,$H24)) -> 0 | AI24: =IF($H24=0,0,INDEX(AI$86:AI$178,$H24)) -> 0 | AJ24: =IF($H24=0,0,INDEX(AJ$86:AJ$178,$H24)) -> 0 | AL24: =IF(SUMPRODUCT(--_xlfn.ISFORMULA(C24:AJ24))=34,"OK","CHECK") -> OK
C25: =_xlfn.IFNA(INDEX(Tariffs!$C$54:$C$146,MATCH(DMO!D14,Tariffs!$I$54:$I$146,0)),0) -> 0 | D25: =_xlfn.IFNA(INDEX(Tariffs!$D$54:$D$146,MATCH(DMO!D14,Tariffs!$I$54:$I$146,0)),0) -> 0 | E25: =_xlfn.IFNA(INDEX(Tariffs!$E$54:$E$146,MATCH(DMO!D14,Tariffs!$I$54:$I$146,0)),0) -> 0 | F25: =_xlfn.IFNA(INDEX(Tariffs!$F$54:$F$146,MATCH(DMO!D14,Tariffs!$I$54:$I$146,0)),0) -> 0 | G25: =_xlfn.IFNA(INDEX(Tariffs!$G$54:$G$146,MATCH(DMO!D14,Tariffs!$I$54:$I$146,0)),0) -> 0 | H25: 0 | I25: =IF($H25=0,0,INDEX(I$86:I$178,$H25)) -> 0 | J25: =IF($H25=0,0,INDEX(J$86:J$178,$H25)) -> 0 | K25: =IF($H25=0,0,INDEX(K$86:K$178,$H25)) -> 0 | L25: =IF($H25=0,0,INDEX(L$86:L$178,$H25)) -> 0 | M25: =IF($H25=0,0,INDEX(M$86:M$178,$H25)) -> 0 | N25: =IF($H25=0,0,INDEX(N$86:N$178,$H25)) -> 0 | O25: =IF($H25=0,0,INDEX(O$86:O$178,$H25)) -> 0 | P25: =IF($H25=0,0,INDEX(P$86:P$178,$H25)) -> 0 | Q25: =IF($H25=0,0,INDEX(Q$86:Q$178,$H25)) -> 0 | R25: =IF($H25=0,0,INDEX(R$86:R$178,$H25)) -> 0 | S25: =IF($H25=0,0,INDEX(S$86:S$178,$H25)) -> 0 | T25: =IF($H25=0,0,INDEX(T$86:T$178,$H25)) -> 0 | U25: =IF($H25=0,0,INDEX(U$86:U$178,$H25)) -> 0 | V25: =IF($H25=0,0,INDEX(V$86:V$178,$H25)) -> 0 | W25: =IF($H25=0,0,INDEX(W$86:W$178,$H25)) -> 0 | X25: =IF($H25=0,0,INDEX(X$86:X$178,$H25)) -> 0 | Y25: =IF($H25=0,0,INDEX(Y$86:Y$178,$H25)) -> 0 | Z25: =IF($H25=0,0,INDEX(Z$86:Z$178,$H25)) -> 0 | AA25: =IF($H25=0,0,INDEX(AA$86:AA$178,$H25)) -> 0 | AB25: =IF($H25=0,0,INDEX(AB$86:AB$178,$H25)) -> 0 | AC25: =IF($H25=0,0,INDEX(AC$86:AC$178,$H25)) -> 0 | AD25: =IF($H25=0,0,INDEX(AD$86:AD$178,$H25)) -> 0 | AE25: =IF($H25=0,0,INDEX(AE$86:AE$178,$H25)) -> 0 | AF25: =IF($H25=0,0,INDEX(AF$86:AF$178,$H25)) -> 0 | AG25: =IF($H25=0,0,INDEX(AG$86:AG$178,$H25)) -> 0 | AH25: =IF($H25=0,0,INDEX(AH$86:AH$178,$H25)) -> 0 | AI25: =IF($H25=0,0,INDEX(AI$86:AI$178,$H25)) -> 0 | AJ25: =IF($H25=0,0,INDEX(AJ$86:AJ$178,$H25)) -> 0 | AL25: =IF(SUMPRODUCT(--_xlfn.ISFORMULA(C25:AJ25))=34,"OK","CHECK") -> OK
C26: =_xlfn.IFNA(INDEX(Tariffs!$C$54:$C$146,MATCH(DMO!D15,Tariffs!$I$54:$I$146,0)),0) -> 0 | D26: =_xlfn.IFNA(INDEX(Tariffs!$D$54:$D$146,MATCH(DMO!D15,Tariffs!$I$54:$I$146,0)),0) -> 0 | E26: =_xlfn.IFNA(INDEX(Tariffs!$E$54:$E$146,MATCH(DMO!D15,Tariffs!$I$54:$I$146,0)),0) -> 0 | F26: =_xlfn.IFNA(INDEX(Tariffs!$F$54:$F$146,MATCH(DMO!D15,Tariffs!$I$54:$I$146,0)),0) -> 0 | G26: =_xlfn.IFNA(INDEX(Tariffs!$G$54:$G$146,MATCH(DMO!D15,Tariffs!$I$54:$I$146,0)),0) -> 0 | H26: 0 | I26: =IF($H26=0,0,INDEX(I$86:I$178,$H26)) -> 0 | J26: =IF($H26=0,0,INDEX(J$86:J$178,$H26)) -> 0 | K26: =IF($H26=0,0,INDEX(K$86:K$178,$H26)) -> 0 | L26: =IF($H26=0,0,INDEX(L$86:L$178,$H26)) -> 0 | M26: =IF($H26=0,0,INDEX(M$86:M$178,$H26)) -> 0 | N26: =IF($H26=0,0,INDEX(N$86:N$178,$H26)) -> 0 | O26: =IF($H26=0,0,INDEX(O$86:O$178,$H26)) -> 0 | P26: =IF($H26=0,0,INDEX(P$86:P$178,$H26)) -> 0 | Q26: =IF($H26=0,0,INDEX(Q$86:Q$178,$H26)) -> 0 | R26: =IF($H26=0,0,INDEX(R$86:R$178,$H26)) -> 0 | S26: =IF($H26=0,0,INDEX(S$86:S$178,$H26)) -> 0 | T26: =IF($H26=0,0,INDEX(T$86:T$178,$H26)) -> 0 | U26: =IF($H26=0,0,INDEX(U$86:U$178,$H26)) -> 0 | V26: =IF($H26=0,0,INDEX(V$86:V$178,$H26)) -> 0 | W26: =IF($H26=0,0,INDEX(W$86:W$178,$H26)) -> 0 | X26: =IF($H26=0,0,INDEX(X$86:X$178,$H26)) -> 0 | Y26: =IF($H26=0,0,INDEX(Y$86:Y$178,$H26)) -> 0 | Z26: =IF($H26=0,0,INDEX(Z$86:Z$178,$H26)) -> 0 | AA26: =IF($H26=0,0,INDEX(AA$86:AA$178,$H26)) -> 0 | AB26: =IF($H26=0,0,INDEX(AB$86:AB$178,$H26)) -> 0 | AC26: =IF($H26=0,0,INDEX(AC$86:AC$178,$H26)) -> 0 | AD26: =IF($H26=0,0,INDEX(AD$86:AD$178,$H26)) -> 0 | AE26: =IF($H26=0,0,INDEX(AE$86:AE$178,$H26)) -> 0 | AF26: =IF($H26=0,0,INDEX(AF$86:AF$178,$H26)) -> 0 | AG26: =IF($H26=0,0,INDEX(AG$86:AG$178,$H26)) -> 0 | AH26: =IF($H26=0,0,INDEX(AH$86:AH$178,$H26)) -> 0 | AI26: =IF($H26=0,0,INDEX(AI$86:AI$178,$H26)) -> 0 | AJ26: =IF($H26=0,0,INDEX(AJ$86:AJ$178,$H26)) -> 0 | AL26: =IF(SUMPRODUCT(--_xlfn.ISFORMULA(C26:AJ26))=34,"OK","CHECK") -> OK
C27: =_xlfn.IFNA(INDEX(Tariffs!$C$54:$C$146,MATCH(DMO!D16,Tariffs!$I$54:$I$146,0)),0) -> 0 | D27: =_xlfn.IFNA(INDEX(Tariffs!$D$54:$D$146,MATCH(DMO!D16,Tariffs!$I$54:$I$146,0)),0) -> 0 | E27: =_xlfn.IFNA(INDEX(Tariffs!$E$54:$E$146,MATCH(DMO!D16,Tariffs!$I$54:$I$146,0)),0) -> 0 | F27: =_xlfn.IFNA(INDEX(Tariffs!$F$54:$F$146,MATCH(DMO!D16,Tariffs!$I$54:$I$146,0)),0) -> 0 | G27: =_xlfn.IFNA(INDEX(Tariffs!$G$54:$G$146,MATCH(DMO!D16,Tariffs!$I$54:$I$146,0)),0) -> 0 | H27: 0 | I27: =IF($H27=0,0,INDEX(I$86:I$178,$H27)) -> 0 | J27: =IF($H27=0,0,INDEX(J$86:J$178,$H27)) -> 0 | K27: =IF($H27=0,0,INDEX(K$86:K$178,$H27)) -> 0 | L27: =IF($H27=0,0,INDEX(L$86:L$178,$H27)) -> 0 | M27: =IF($H27=0,0,INDEX(M$86:M$178,$H27)) -> 0 | N27: =IF($H27=0,0,INDEX(N$86:N$178,$H27)) -> 0 | O27: =IF($H27=0,0,INDEX(O$86:O$178,$H27)) -> 0 | P27: =IF($H27=0,0,INDEX(P$86:P$178,$H27)) -> 0 | Q27: =IF($H27=0,0,INDEX(Q$86:Q$178,$H27)) -> 0 | R27: =IF($H27=0,0,INDEX(R$86:R$178,$H27)) -> 0 | S27: =IF($H27=0,0,INDEX(S$86:S$178,$H27)) -> 0 | T27: =IF($H27=0,0,INDEX(T$86:T$178,$H27)) -> 0 | U27: =IF($H27=0,0,INDEX(U$86:U$178,$H27)) -> 0 | V27: =IF($H27=0,0,INDEX(V$86:V$178,$H27)) -> 0 | W27: =IF($H27=0,0,INDEX(W$86:W$178,$H27)) -> 0 | X27: =IF($H27=0,0,INDEX(X$86:X$178,$H27)) -> 0 | Y27: =IF($H27=0,0,INDEX(Y$86:Y$178,$H27)) -> 0 | Z27: =IF($H27=0,0,INDEX(Z$86:Z$178,$H27)) -> 0 | AA27: =IF($H27=0,0,INDEX(AA$86:AA$178,$H27)) -> 0 | AB27: =IF($H27=0,0,INDEX(AB$86:AB$178,$H27)) -> 0 | AC27: =IF($H27=0,0,INDEX(AC$86:AC$178,$H27)) -> 0 | AD27: =IF($H27=0,0,INDEX(AD$86:AD$178,$H27)) -> 0 | AE27: =IF($H27=0,0,INDEX(AE$86:AE$178,$H27)) -> 0 | AF27: =IF($H27=0,0,INDEX(AF$86:AF$178,$H27)) -> 0 | AG27: =IF($H27=0,0,INDEX(AG$86:AG$178,$H27)) -> 0 | AH27: =IF($H27=0,0,INDEX(AH$86:AH$178,$H27)) -> 0 | AI27: =IF($H27=0,0,INDEX(AI$86:AI$178,$H27)) -> 0 | AJ27: =IF($H27=0,0,INDEX(AJ$86:AJ$178,$H27)) -> 0 | AL27: =IF(SUMPRODUCT(--_xlfn.ISFORMULA(C27:AJ27))=34,"OK","CHECK") -> OK
C28: =_xlfn.IFNA(INDEX(Tariffs!$C$54:$C$146,MATCH(DMO!D17,Tariffs!$I$54:$I$146,0)),0) -> 0 | D28: =_xlfn.IFNA(INDEX(Tariffs!$D$54:$D$146,MATCH(DMO!D17,Tariffs!$I$54:$I$146,0)),0) -> 0 | E28: =_xlfn.IFNA(INDEX(Tariffs!$E$54:$E$146,MATCH(DMO!D17,Tariffs!$I$54:$I$146,0)),0) -> 0 | F28: =_xlfn.IFNA(INDEX(Tariffs!$F$54:$F$146,MATCH(DMO!D17,Tariffs!$I$54:$I$146,0)),0) -> 0 | G28: =_xlfn.IFNA(INDEX(Tariffs!$G$54:$G$146,MATCH(DMO!D17,Tariffs!$I$54:$I$146,0)),0) -> 0 | H28: 0 | I28: =IF($H28=0,0,INDEX(I$86:I$178,$H28)) -> 0 | J28: =IF($H28=0,0,INDEX(J$86:J$178,$H28)) -> 0 | K28: =IF($H28=0,0,INDEX(K$86:K$178,$H28)) -> 0 | L28: =IF($H28=0,0,INDEX(L$86:L$178,$H28)) -> 0 | M28: =IF($H28=0,0,INDEX(M$86:M$178,$H28)) -> 0 | N28: =IF($H28=0,0,INDEX(N$86:N$178,$H28)) -> 0 | O28: =IF($H28=0,0,INDEX(O$86:O$178,$H28)) -> 0 | P28: =IF($H28=0,0,INDEX(P$86:P$178,$H28)) -> 0 | Q28: =IF($H28=0,0,INDEX(Q$86:Q$178,$H28)) -> 0 | R28: =IF($H28=0,0,INDEX(R$86:R$178,$H28)) -> 0 | S28: =IF($H28=0,0,INDEX(S$86:S$178,$H28)) -> 0 | T28: =IF($H28=0,0,INDEX(T$86:T$178,$H28)) -> 0 | U28: =IF($H28=0,0,INDEX(U$86:U$178,$H28)) -> 0 | V28: =IF($H28=0,0,INDEX(V$86:V$178,$H28)) -> 0 | W28: =IF($H28=0,0,INDEX(W$86:W$178,$H28)) -> 0 | X28: =IF($H28=0,0,INDEX(X$86:X$178,$H28)) -> 0 | Y28: =IF($H28=0,0,INDEX(Y$86:Y$178,$H28)) -> 0 | Z28: =IF($H28=0,0,INDEX(Z$86:Z$178,$H28)) -> 0 | AA28: =IF($H28=0,0,INDEX(AA$86:AA$178,$H28)) -> 0 | AB28: =IF($H28=0,0,INDEX(AB$86:AB$178,$H28)) -> 0 | AC28: =IF($H28=0,0,INDEX(AC$86:AC$178,$H28)) -> 0 | AD28: =IF($H28=0,0,INDEX(AD$86:AD$178,$H28)) -> 0 | AE28: =IF($H28=0,0,INDEX(AE$86:AE$178,$H28)) -> 0 | AF28: =IF($H28=0,0,INDEX(AF$86:AF$178,$H28)) -> 0 | AG28: =IF($H28=0,0,INDEX(AG$86:AG$178,$H28)) -> 0 | AH28: =IF($H28=0,0,INDEX(AH$86:AH$178,$H28)) -> 0 | AI28: =IF($H28=0,0,INDEX(AI$86:AI$178,$H28)) -> 0 | AJ28: =IF($H28=0,0,INDEX(AJ$86:AJ$178,$H28)) -> 0 | AL28: =IF(SUMPRODUCT(--_xlfn.ISFORMULA(C28:AJ28))=34,"OK","CHECK") -> OK
C29: =_xlfn.IFNA(INDEX(Tariffs!$C$54:$C$146,MATCH(DMO!D18,Tariffs!$I$54:$I$146,0)),0) -> 0 | D29: =_xlfn.IFNA(INDEX(Tariffs!$D$54:$D$146,MATCH(DMO!D18,Tariffs!$I$54:$I$146,0)),0) -> 0 | E29: =_xlfn.IFNA(INDEX(Tariffs!$E$54:$E$146,MATCH(DMO!D18,Tariffs!$I$54:$I$146,0)),0) -> 0 | F29: =_xlfn.IFNA(INDEX(Tariffs!$F$54:$F$146,MATCH(DMO!D18,Tariffs!$I$54:$I$146,0)),0) -> 0 | G29: =_xlfn.IFNA(INDEX(Tariffs!$G$54:$G$146,MATCH(DMO!D18,Tariffs!$I$54:$I$146,0)),0) -> 0 | H29: 0 | I29: =IF($H29=0,0,INDEX(I$86:I$178,$H29)) -> 0 | J29: =IF($H29=0,0,INDEX(J$86:J$178,$H29)) -> 0 | K29: =IF($H29=0,0,INDEX(K$86:K$178,$H29)) -> 0 | L29: =IF($H29=0,0,INDEX(L$86:L$178,$H29)) -> 0 | M29: =IF($H29=0,0,INDEX(M$86:M$178,$H29)) -> 0 | N29: =IF($H29=0,0,INDEX(N$86:N$178,$H29)) -> 0 | O29: =IF($H29=0,0,INDEX(O$86:O$178,$H29)) -> 0 | P29: =IF($H29=0,0,INDEX(P$86:P$178,$H29)) -> 0 | Q29: =IF($H29=0,0,INDEX(Q$86:Q$178,$H29)) -> 0 | R29: =IF($H29=0,0,INDEX(R$86:R$178,$H29)) -> 0 | S29: =IF($H29=0,0,INDEX(S$86:S$178,$H29)) -> 0 | T29: =IF($H29=0,0,INDEX(T$86:T$178,$H29)) -> 0 | U29: =IF($H29=0,0,INDEX(U$86:U$178,$H29)) -> 0 | V29: =IF($H29=0,0,INDEX(V$86:V$178,$H29)) -> 0 | W29: =IF($H29=0,0,INDEX(W$86:W$178,$H29)) -> 0 | X29: =IF($H29=0,0,INDEX(X$86:X$178,$H29)) -> 0 | Y29: =IF($H29=0,0,INDEX(Y$86:Y$178,$H29)) -> 0 | Z29: =IF($H29=0,0,INDEX(Z$86:Z$178,$H29)) -> 0 | AA29: =IF($H29=0,0,INDEX(AA$86:AA$178,$H29)) -> 0 | AB29: =IF($H29=0,0,INDEX(AB$86:AB$178,$H29)) -> 0 | AC29: =IF($H29=0,0,INDEX(AC$86:AC$178,$H29)) -> 0 | AD29: =IF($H29=0,0,INDEX(AD$86:AD$178,$H29)) -> 0 | AE29: =IF($H29=0,0,INDEX(AE$86:AE$178,$H29)) -> 0 | AF29: =IF($H29=0,0,INDEX(AF$86:AF$178,$H29)) -> 0 | AG29: =IF($H29=0,0,INDEX(AG$86:AG$178,$H29)) -> 0 | AH29: =IF($H29=0,0,INDEX(AH$86:AH$178,$H29)) -> 0 | AI29: =IF($H29=0,0,INDEX(AI$86:AI$178,$H29)) -> 0 | AJ29: =IF($H29=0,0,INDEX(AJ$86:AJ$178,$H29)) -> 0 | AL29: =IF(SUMPRODUCT(--_xlfn.ISFORMULA(C29:AJ29))=34,"OK","CHECK") -> OK
C30: =_xlfn.IFNA(INDEX(Tariffs!$C$54:$C$146,MATCH(DMO!D19,Tariffs!$I$54:$I$146,0)),0) -> 0 | D30: =_xlfn.IFNA(INDEX(Tariffs!$D$54:$D$146,MATCH(DMO!D19,Tariffs!$I$54:$I$146,0)),0) -> 0 | E30: =_xlfn.IFNA(INDEX(Tariffs!$E$54:$E$146,MATCH(DMO!D19,Tariffs!$I$54:$I$146,0)),0) -> 0 | F30: =_xlfn.IFNA(INDEX(Tariffs!$F$54:$F$146,MATCH(DMO!D19,Tariffs!$I$54:$I$146,0)),0) -> 0 | G30: =_xlfn.IFNA(INDEX(Tariffs!$G$54:$G$146,MATCH(DMO!D19,Tariffs!$I$54:$I$146,0)),0) -> 0 | H30: 0 | I30: =IF($H30=0,0,INDEX(I$86:I$178,$H30)) -> 0 | J30: =IF($H30=0,0,INDEX(J$86:J$178,$H30)) -> 0 | K30: =IF($H30=0,0,INDEX(K$86:K$178,$H30)) -> 0 | L30: =IF($H30=0,0,INDEX(L$86:L$178,$H30)) -> 0 | M30: =IF($H30=0,0,INDEX(M$86:M$178,$H30)) -> 0 | N30: =IF($H30=0,0,INDEX(N$86:N$178,$H30)) -> 0 | O30: =IF($H30=0,0,INDEX(O$86:O$178,$H30)) -> 0 | P30: =IF($H30=0,0,INDEX(P$86:P$178,$H30)) -> 0 | Q30: =IF($H30=0,0,INDEX(Q$86:Q$178,$H30)) -> 0 | R30: =IF($H30=0,0,INDEX(R$86:R$178,$H30)) -> 0 | S30: =IF($H30=0,0,INDEX(S$86:S$178,$H30)) -> 0 | T30: =IF($H30=0,0,INDEX(T$86:T$178,$H30)) -> 0 | U30: =IF($H30=0,0,INDEX(U$86:U$178,$H30)) -> 0 | V30: =IF($H30=0,0,INDEX(V$86:V$178,$H30)) -> 0 | W30: =IF($H30=0,0,INDEX(W$86:W$178,$H30)) -> 0 | X30: =IF($H30=0,0,INDEX(X$86:X$178,$H30)) -> 0 | Y30: =IF($H30=0,0,INDEX(Y$86:Y$178,$H30)) -> 0 | Z30: =IF($H30=0,0,INDEX(Z$86:Z$178,$H30)) -> 0 | AA30: =IF($H30=0,0,INDEX(AA$86:AA$178,$H30)) -> 0 | AB30: =IF($H30=0,0,INDEX(AB$86:AB$178,$H30)) -> 0 | AC30: =IF($H30=0,0,INDEX(AC$86:AC$178,$H30)) -> 0 | AD30: =IF($H30=0,0,INDEX(AD$86:AD$178,$H30)) -> 0 | AE30: =IF($H30=0,0,INDEX(AE$86:AE$178,$H30)) -> 0 | AF30: =IF($H30=0,0,INDEX(AF$86:AF$178,$H30)) -> 0 | AG30: =IF($H30=0,0,INDEX(AG$86:AG$178,$H30)) -> 0 | AH30: =IF($H30=0,0,INDEX(AH$86:AH$178,$H30)) -> 0 | AI30: =IF($H30=0,0,INDEX(AI$86:AI$178,$H30)) -> 0 | AJ30: =IF($H30=0,0,INDEX(AJ$86:AJ$178,$H30)) -> 0 | AL30: =IF(SUMPRODUCT(--_xlfn.ISFORMULA(C30:AJ30))=34,"OK","CHECK") -> OK
C31: =_xlfn.IFNA(INDEX(Tariffs!$C$54:$C$146,MATCH(DMO!D20,Tariffs!$I$54:$I$146,0)),0) -> 0 | D31: =_xlfn.IFNA(INDEX(Tariffs!$D$54:$D$146,MATCH(DMO!D20,Tariffs!$I$54:$I$146,0)),0) -> 0 | E31: =_xlfn.IFNA(INDEX(Tariffs!$E$54:$E$146,MATCH(DMO!D20,Tariffs!$I$54:$I$146,0)),0) -> 0 | F31: =_xlfn.IFNA(INDEX(Tariffs!$F$54:$F$146,MATCH(DMO!D20,Tariffs!$I$54:$I$146,0)),0) -> 0 | G31: =_xlfn.IFNA(INDEX(Tariffs!$G$54:$G$146,MATCH(DMO!D20,Tariffs!$I$54:$I$146,0)),0) -> 0 | H31: 0 | I31: =IF($H31=0,0,INDEX(I$86:I$178,$H31)) -> 0 | J31: =IF($H31=0,0,INDEX(J$86:J$178,$H31)) -> 0 | K31: =IF($H31=0,0,INDEX(K$86:K$178,$H31)) -> 0 | L31: =IF($H31=0,0,INDEX(L$86:L$178,$H31)) -> 0 | M31: =IF($H31=0,0,INDEX(M$86:M$178,$H31)) -> 0 | N31: =IF($H31=0,0,INDEX(N$86:N$178,$H31)) -> 0 | O31: =IF($H31=0,0,INDEX(O$86:O$178,$H31)) -> 0 | P31: =IF($H31=0,0,INDEX(P$86:P$178,$H31)) -> 0 | Q31: =IF($H31=0,0,INDEX(Q$86:Q$178,$H31)) -> 0 | R31: =IF($H31=0,0,INDEX(R$86:R$178,$H31)) -> 0 | S31: =IF($H31=0,0,INDEX(S$86:S$178,$H31)) -> 0 | T31: =IF($H31=0,0,INDEX(T$86:T$178,$H31)) -> 0 | U31: =IF($H31=0,0,INDEX(U$86:U$178,$H31)) -> 0 | V31: =IF($H31=0,0,INDEX(V$86:V$178,$H31)) -> 0 | W31: =IF($H31=0,0,INDEX(W$86:W$178,$H31)) -> 0 | X31: =IF($H31=0,0,INDEX(X$86:X$178,$H31)) -> 0 | Y31: =IF($H31=0,0,INDEX(Y$86:Y$178,$H31)) -> 0 | Z31: =IF($H31=0,0,INDEX(Z$86:Z$178,$H31)) -> 0 | AA31: =IF($H31=0,0,INDEX(AA$86:AA$178,$H31)) -> 0 | AB31: =IF($H31=0,0,INDEX(AB$86:AB$178,$H31)) -> 0 | AC31: =IF($H31=0,0,INDEX(AC$86:AC$178,$H31)) -> 0 | AD31: =IF($H31=0,0,INDEX(AD$86:AD$178,$H31)) -> 0 | AE31: =IF($H31=0,0,INDEX(AE$86:AE$178,$H31)) -> 0 | AF31: =IF($H31=0,0,INDEX(AF$86:AF$178,$H31)) -> 0 | AG31: =IF($H31=0,0,INDEX(AG$86:AG$178,$H31)) -> 0 | AH31: =IF($H31=0,0,INDEX(AH$86:AH$178,$H31)) -> 0 | AI31: =IF($H31=0,0,INDEX(AI$86:AI$178,$H31)) -> 0 | AJ31: =IF($H31=0,0,INDEX(AJ$86:AJ$178,$H31)) -> 0 | AL31: =IF(SUMPRODUCT(--_xlfn.ISFORMULA(C31:AJ31))=34,"OK","CHECK") -> OK
C32: =_xlfn.IFNA(INDEX(Tariffs!$C$54:$C$146,MATCH(DMO!D21,Tariffs!$I$54:$I$146,0)),0) -> 0 | D32: =_xlfn.IFNA(INDEX(Tariffs!$D$54:$D$146,MATCH(DMO!D21,Tariffs!$I$54:$I$146,0)),0) -> 0 | E32: =_xlfn.IFNA(INDEX(Tariffs!$E$54:$E$146,MATCH(DMO!D21,Tariffs!$I$54:$I$146,0)),0) -> 0 | F32: =_xlfn.IFNA(INDEX(Tariffs!$F$54:$F$146,MATCH(DMO!D21,Tariffs!$I$54:$I$146,0)),0) -> 0 | G32: =_xlfn.IFNA(INDEX(Tariffs!$G$54:$G$146,MATCH(DMO!D21,Tariffs!$I$54:$I$146,0)),0) -> 0 | H32: 0 | I32: =IF($H32=0,0,INDEX(I$86:I$178,$H32)) -> 0 | J32: =IF($H32=0,0,INDEX(J$86:J$178,$H32)) -> 0 | K32: =IF($H32=0,0,INDEX(K$86:K$178,$H32)) -> 0 | L32: =IF($H32=0,0,INDEX(L$86:L$178,$H32)) -> 0 | M32: =IF($H32=0,0,INDEX(M$86:M$178,$H32)) -> 0 | N32: =IF($H32=0,0,INDEX(N$86:N$178,$H32)) -> 0 | O32: =IF($H32=0,0,INDEX(O$86:O$178,$H32)) -> 0 | P32: =IF($H32=0,0,INDEX(P$86:P$178,$H32)) -> 0 | Q32: =IF($H32=0,0,INDEX(Q$86:Q$178,$H32)) -> 0 | R32: =IF($H32=0,0,INDEX(R$86:R$178,$H32)) -> 0 | S32: =IF($H32=0,0,INDEX(S$86:S$178,$H32)) -> 0 | T32: =IF($H32=0,0,INDEX(T$86:T$178,$H32)) -> 0 | U32: =IF($H32=0,0,INDEX(U$86:U$178,$H32)) -> 0 | V32: =IF($H32=0,0,INDEX(V$86:V$178,$H32)) -> 0 | W32: =IF($H32=0,0,INDEX(W$86:W$178,$H32)) -> 0 | X32: =IF($H32=0,0,INDEX(X$86:X$178,$H32)) -> 0 | Y32: =IF($H32=0,0,INDEX(Y$86:Y$178,$H32)) -> 0 | Z32: =IF($H32=0,0,INDEX(Z$86:Z$178,$H32)) -> 0 | AA32: =IF($H32=0,0,INDEX(AA$86:AA$178,$H32)) -> 0 | AB32: =IF($H32=0,0,INDEX(AB$86:AB$178,$H32)) -> 0 | AC32: =IF($H32=0,0,INDEX(AC$86:AC$178,$H32)) -> 0 | AD32: =IF($H32=0,0,INDEX(AD$86:AD$178,$H32)) -> 0 | AE32: =IF($H32=0,0,INDEX(AE$86:AE$178,$H32)) -> 0 | AF32: =IF($H32=0,0,INDEX(AF$86:AF$178,$H32)) -> 0 | AG32: =IF($H32=0,0,INDEX(AG$86:AG$178,$H32)) -> 0 | AH32: =IF($H32=0,0,INDEX(AH$86:AH$178,$H32)) -> 0 | AI32: =IF($H32=0,0,INDEX(AI$86:AI$178,$H32)) -> 0 | AJ32: =IF($H32=0,0,INDEX(AJ$86:AJ$178,$H32)) -> 0 | AL32: =IF(SUMPRODUCT(--_xlfn.ISFORMULA(C32:AJ32))=34,"OK","CHECK") -> OK
C34: =C181 -> Distribution
C35: =C19 -> Residential Flat | D35: SAC | E35: 8400 | F35: SACS Res | G35: SAC8400 | H35: 1 | I35: =IF($H35=0,0,INDEX(I$182:I$274,$H35)) -> 0.748 | J35: =IF($H35=0,0,INDEX(J$182:J$274,$H35)) -> 0 | K35: =IF($H35=0,0,INDEX(K$182:K$274,$H35)) -> 0.07195 | L35: =IF($H35=0,0,INDEX(L$182:L$274,$H35)) -> 0 | M35: =IF($H35=0,0,INDEX(M$182:M$274,$H35)) -> 0 | N35: =IF($H35=0,0,INDEX(N$182:N$274,$H35)) -> 0 | O35: =IF($H35=0,0,INDEX(O$182:O$274,$H35)) -> 0 | P35: =IF($H35=0,0,INDEX(P$182:P$274,$H35)) -> 0 | Q35: =IF($H35=0,0,INDEX(Q$182:Q$274,$H35)) -> 0 | R35: =IF($H35=0,0,INDEX(R$182:R$274,$H35)) -> 0 | S35: =IF($H35=0,0,INDEX(S$182:S$274,$H35)) -> 0 | T35: =IF($H35=0,0,INDEX(T$182:T$274,$H35)) -> 0 | U35: =IF($H35=0,0,INDEX(U$182:U$274,$H35)) -> 0 | V35: =IF($H35=0,0,INDEX(V$182:V$274,$H35)) -> 0 | W35: =IF($H35=0,0,INDEX(W$182:W$274,$H35)) -> 0 | X35: =IF($H35=0,0,INDEX(X$182:X$274,$H35)) -> 0 | Y35: =IF($H35=0,0,INDEX(Y$182:Y$274,$H35)) -> 0 | Z35: =IF($H35=0,0,INDEX(Z$182:Z$274,$H35)) -> 0 | AA35: =IF($H35=0,0,INDEX(AA$182:AA$274,$H35)) -> 0 | AB35: =IF($H35=0,0,INDEX(AB$182:AB$274,$H35)) -> 0 | AC35: =IF($H35=0,0,INDEX(AC$182:AC$274,$H35)) -> 0 | AD35: =IF($H35=0,0,INDEX(AD$182:AD$274,$H35)) -> 0 | AE35: =IF($H35=0,0,INDEX(AE$182:AE$274,$H35)) -> 0 | AF35: =IF($H35=0,0,INDEX(AF$182:AF$274,$H35)) -> 0 | AG35: =IF($H35=0,0,INDEX(AG$182:AG$274,$H35)) -> 0 | AH35: =IF($H35=0,0,INDEX(AH$182:AH$274,$H35)) -> 0 | AI35: =IF($H35=0,0,INDEX(AI$182:AI$274,$H35)) -> 0 | AJ35: =IF($H35=0,0,INDEX(AJ$182:AJ$274,$H35)) -> 0 | AL35: =IF(SUMPRODUCT(--_xlfn.ISFORMULA(C35:AJ35))=34,"OK","CHECK") -> OK
C36: Residential ToU Energy | D36: SAC | E36: 6900 | F36: SACS Res | G36: SAC6900 | H36: 2 | I36: =IF($H36=0,0,INDEX(I$182:I$274,$H36)) -> 0.528 | J36: =IF($H36=0,0,INDEX(J$182:J$274,$H36)) -> 0 | K36: =IF($H36=0,0,INDEX(K$182:K$274,$H36)) -> 0 | L36: =IF($H36=0,0,INDEX(L$182:L$274,$H36)) -> 0.17 | M36: =IF($H36=0,0,INDEX(M$182:M$274,$H36)) -> 0 | N36: =IF($H36=0,0,INDEX(N$182:N$274,$H36)) -> 0.03536 | O36: =IF($H36=0,0,INDEX(O$182:O$274,$H36)) -> 0 | P36: =IF($H36=0,0,INDEX(P$182:P$274,$H36)) -> 0 | Q36: =IF($H36=0,0,INDEX(Q$182:Q$274,$H36)) -> 0 | R36: =IF($H36=0,0,INDEX(R$182:R$274,$H36)) -> 0 | S36: =IF($H36=0,0,INDEX(S$182:S$274,$H36)) -> 0 | T36: =IF($H36=0,0,INDEX(T$182:T$274,$H36)) -> 0 | U36: =IF($H36=0,0,INDEX(U$182:U$274,$H36)) -> 0 | V36: =IF($H36=0,0,INDEX(V$182:V$274,$H36)) -> 0 | W36: =IF($H36=0,0,INDEX(W$182:W$274,$H36)) -> 0 | X36: =IF($H36=0,0,INDEX(X$182:X$274,$H36)) -> 0 | Y36: =IF($H36=0,0,INDEX(Y$182:Y$274,$H36)) -> 0 | Z36: =IF($H36=0,0,INDEX(Z$182:Z$274,$H36)) -> 0 | AA36: =IF($H36=0,0,INDEX(AA$182:AA$274,$H36)) -> 0 | AB36: =IF($H36=0,0,INDEX(AB$182:AB$274,$H36)) -> 0 | AC36: =IF($H36=0,0,INDEX(AC$182:AC$274,$H36)) -> 0 | AD36: =IF($H36=0,0,INDEX(AD$182:AD$274,$H36)) -> 0 | AE36: =IF($H36=0,0,INDEX(AE$182:AE$274,$H36)) -> 0 | AF36: =IF($H36=0,0,INDEX(AF$182:AF$274,$H36)) -> 0 | AG36: =IF($H36=0,0,INDEX(AG$182:AG$274,$H36)) -> 0 | AH36: =IF($H36=0,0,INDEX(AH$182:AH$274,$H36)) -> 0 | AI36: =IF($H36=0,0,INDEX(AI$182:AI$274,$H36)) -> 0 | AJ36: =IF($H36=0,0,INDEX(AJ$182:AJ$274,$H36)) -> 0 | AL36: =IF(SUMPRODUCT(--_xlfn.ISFORMULA(C36:AJ36))=34,"OK","CHECK") -> OK
C37: Small Business Flat | D37: SAC | E37: 8500 | F37: SACS Bus | G37: SAC8500 | H37: 7 | I37: =IF($H37=0,0,INDEX(I$182:I$274,$H37)) -> 0.966 | J37: =IF($H37=0,0,INDEX(J$182:J$274,$H37)) -> 0 | K37: =IF($H37=0,0,INDEX(K$182:K$274,$H37)) -> 0.08642 | L37: =IF($H37=0,0,INDEX(L$182:L$274,$H37)) -> 0 | M37: =IF($H37=0,0,INDEX(M$182:M$274,$H37)) -> 0 | N37: =IF($H37=0,0,INDEX(N$182:N$274,$H37)) -> 0 | O37: =IF($H37=0,0,INDEX(O$182:O$274,$H37)) -> 0 | P37: =IF($H37=0,0,INDEX(P$182:P$274,$H37)) -> 0 | Q37: =IF($H37=0,0,INDEX(Q$182:Q$274,$H37)) -> 0 | R37: =IF($H37=0,0,INDEX(R$182:R$274,$H37)) -> 0 | S37: =IF($H37=0,0,INDEX(S$182:S$274,$H37)) -> 0 | T37: =IF($H37=0,0,INDEX(T$182:T$274,$H37)) -> 0 | U37: =IF($H37=0,0,INDEX(U$182:U$274,$H37)) -> 0 | V37: =IF($H37=0,0,INDEX(V$182:V$274,$H37)) -> 0 | W37: =IF($H37=0,0,INDEX(W$182:W$274,$H37)) -> 0 | X37: =IF($H37=0,0,INDEX(X$182:X$274,$H37)) -> 0 | Y37: =IF($H37=0,0,INDEX(Y$182:Y$274,$H37)) -> 0 | Z37: =IF($H37=0,0,INDEX(Z$182:Z$274,$H37)) -> 0 | AA37: =IF($H37=0,0,INDEX(AA$182:AA$274,$H37)) -> 0 | AB37: =IF($H37=0,0,INDEX(AB$182:AB$274,$H37)) -> 0 | AC37: =IF($H37=0,0,INDEX(AC$182:AC$274,$H37)) -> 0 | AD37: =IF($H37=0,0,INDEX(AD$182:AD$274,$H37)) -> 0 | AE37: =IF($H37=0,0,INDEX(AE$182:AE$274,$H37)) -> 0 | AF37: =IF($H37=0,0,INDEX(AF$182:AF$274,$H37)) -> 0 | AG37: =IF($H37=0,0,INDEX(AG$182:AG$274,$H37)) -> 0 | AH37: =IF($H37=0,0,INDEX(AH$182:AH$274,$H37)) -> 0 | AI37: =IF($H37=0,0,INDEX(AI$182:AI$274,$H37)) -> 0 | AJ37: =IF($H37=0,0,INDEX(AJ$182:AJ$274,$H37)) -> 0 | AL37: =IF(SUMPRODUCT(--_xlfn.ISFORMULA(C37:AJ37))=34,"OK","CHECK") -> OK
C38: Small Business ToU Energy | D38: SAC | E38: 6800 | F38: SACS Bus | G38: SAC6800 | H38: 8 | I38: =IF($H38=0,0,INDEX(I$182:I$274,$H38)) -> 0.963 | J38: =IF($H38=0,0,INDEX(J$182:J$274,$H38)) -> 0 | K38: =IF($H38=0,0,INDEX(K$182:K$274,$H38)) -> 0 | L38: =IF($H38=0,0,INDEX(L$182:L$274,$H38)) -> 0.24 | M38: =IF($H38=0,0,INDEX(M$182:M$274,$H38)) -> 0.01193 | N38: =IF($H38=0,0,INDEX(N$182:N$274,$H38)) -> 0.05377 | O38: =IF($H38=0,0,INDEX(O$182:O$274,$H38)) -> 0 | P38: =IF($H38=0,0,INDEX(P$182:P$274,$H38)) -> 0 | Q38: =IF($H38=0,0,INDEX(Q$182:Q$274,$H38)) -> 0 | R38: =IF($H38=0,0,INDEX(R$182:R$274,$H38)) -> 0 | S38: =IF($H38=0,0,INDEX(S$182:S$274,$H38)) -> 0 | T38: =IF($H38=0,0,INDEX(T$182:T$274,$H38)) -> 0 | U38: =IF($H38=0,0,INDEX(U$182:U$274,$H38)) -> 0 | V38: =IF($H38=0,0,INDEX(V$182:V$274,$H38)) -> 0 | W38: =IF($H38=0,0,INDEX(W$182:W$274,$H38)) -> 0 | X38: =IF($H38=0,0,INDEX(X$182:X$274,$H38)) -> 0 | Y38: =IF($H38=0,0,INDEX(Y$182:Y$274,$H38)) -> 0 | Z38: =IF($H38=0,0,INDEX(Z$182:Z$274,$H38)) -> 0 | AA38: =IF($H38=0,0,INDEX(AA$182:AA$274,$H38)) -> 0 | AB38: =IF($H38=0,0,INDEX(AB$182:AB$274,$H38)) -> 0 | AC38: =IF($H38=0,0,INDEX(AC$182:AC$274,$H38)) -> 0 | AD38: =IF($H38=0,0,INDEX(AD$182:AD$274,$H38)) -> 0 | AE38: =IF($H38=0,0,INDEX(AE$182:AE$274,$H38)) -> 0 | AF38: =IF($H38=0,0,INDEX(AF$182:AF$274,$H38)) -> 0 | AG38: =IF($H38=0,0,INDEX(AG$182:AG$274,$H38)) -> 0 | AH38: =IF($H38=0,0,INDEX(AH$182:AH$274,$H38)) -> 0 | AI38: =IF($H38=0,0,INDEX(AI$182:AI$274,$H38)) -> 0 | AJ38: =IF($H38=0,0,INDEX(AJ$182:AJ$274,$H38)) -> 0 | AL38: =IF(SUMPRODUCT(--_xlfn.ISFORMULA(C38:AJ38))=34,"OK","CHECK") -> OK
C39: Controlled Load 1 (Super Economy) | D39: SAC | E39: 9000 | F39: SACS CL | G39: SAC9000 | H39: 14 | I39: =IF($H39=0,0,INDEX(I$182:I$274,$H39)) -> 0 | J39: =IF($H39=0,0,INDEX(J$182:J$274,$H39)) -> 0 | K39: =IF($H39=0,0,INDEX(K$182:K$274,$H39)) -> 0.02675 | L39: =IF($H39=0,0,INDEX(L$182:L$274,$H39)) -> 0 | M39: =IF($H39=0,0,INDEX(M$182:M$274,$H39)) -> 0 | N39: =IF($H39=0,0,INDEX(N$182:N$274,$H39)) -> 0 | O39: =IF($H39=0,0,INDEX(O$182:O$274,$H39)) -> 0 | P39: =IF($H39=0,0,INDEX(P$182:P$274,$H39)) -> 0 | Q39: =IF($H39=0,0,INDEX(Q$182:Q$274,$H39)) -> 0 | R39: =IF($H39=0,0,INDEX(R$182:R$274,$H39)) -> 0 | S39: =IF($H39=0,0,INDEX(S$182:S$274,$H39)) -> 0 | T39: =IF($H39=0,0,INDEX(T$182:T$274,$H39)) -> 0 | U39: =IF($H39=0,0,INDEX(U$182:U$274,$H39)) -> 0 | V39: =IF($H39=0,0,INDEX(V$182:V$274,$H39)) -> 0 | W39: =IF($H39=0,0,INDEX(W$182:W$274,$H39)) -> 0 | X39: =IF($H39=0,0,INDEX(X$182:X$274,$H39)) -> 0 | Y39: =IF($H39=0,0,INDEX(Y$182:Y$274,$H39)) -> 0 | Z39: =IF($H39=0,0,INDEX(Z$182:Z$274,$H39)) -> 0 | AA39: =IF($H39=0,0,INDEX(AA$182:AA$274,$H39)) -> 0 | AB39: =IF($H39=0,0,INDEX(AB$182:AB$274,$H39)) -> 0 | AC39: =IF($H39=0,0,INDEX(AC$182:AC$274,$H39)) -> 0 | AD39: =IF($H39=0,0,INDEX(AD$182:AD$274,$H39)) -> 0 | AE39: =IF($H39=0,0,INDEX(AE$182:AE$274,$H39)) -> 0 | AF39: =IF($H39=0,0,INDEX(AF$182:AF$274,$H39)) -> 0 | AG39: =IF($H39=0,0,INDEX(AG$182:AG$274,$H39)) -> 0 | AH39: =IF($H39=0,0,INDEX(AH$182:AH$274,$H39)) -> 0 | AI39: =IF($H39=0,0,INDEX(AI$182:AI$274,$H39)) -> 0 | AJ39: =IF($H39=0,0,INDEX(AJ$182:AJ$274,$H39)) -> 0 | AL39: =IF(SUMPRODUCT(--_xlfn.ISFORMULA(C39:AJ39))=34,"OK","CHECK") -> OK
C40: Controlled Load 2 (Economy) | D40: SAC | E40: 9100 | F40: SACS CL | G40: SAC9100 | H40: 15 | I40: =IF($H40=0,0,INDEX(I$182:I$274,$H40)) -> 0 | J40: =IF($H40=0,0,INDEX(J$182:J$274,$H40)) -> 0 | K40: =IF($H40=0,0,INDEX(K$182:K$274,$H40)) -> 0.02675 | L40: =IF($H40=0,0,INDEX(L$182:L$274,$H40)) -> 0 | M40: =IF($H40=0,0,INDEX(M$182:M$274,$H40)) -> 0 | N40: =IF($H40=0,0,INDEX(N$182:N$274,$H40)) -> 0 | O40: =IF($H40=0,0,INDEX(O$182:O$274,$H40)) -> 0 | P40: =IF($H40=0,0,INDEX(P$182:P$274,$H40)) -> 0 | Q40: =IF($H40=0,0,INDEX(Q$182:Q$274,$H40)) -> 0 | R40: =IF($H40=0,0,INDEX(R$182:R$274,$H40)) -> 0 | S40: =IF($H40=0,0,INDEX(S$182:S$274,$H40)) -> 0 | T40: =IF($H40=0,0,INDEX(T$182:T$274,$H40)) -> 0 | U40: =IF($H40=0,0,INDEX(U$182:U$274,$H40)) -> 0 | V40: =IF($H40=0,0,INDEX(V$182:V$274,$H40)) -> 0 | W40: =IF($H40=0,0,INDEX(W$182:W$274,$H40)) -> 0 | X40: =IF($H40=0,0,INDEX(X$182:X$274,$H40)) -> 0 | Y40: =IF($H40=0,0,INDEX(Y$182:Y$274,$H40)) -> 0 | Z40: =IF($H40=0,0,INDEX(Z$182:Z$274,$H40)) -> 0 | AA40: =IF($H40=0,0,INDEX(AA$182:AA$274,$H40)) -> 0 | AB40: =IF($H40=0,0,INDEX(AB$182:AB$274,$H40)) -> 0 | AC40: =IF($H40=0,0,INDEX(AC$182:AC$274,$H40)) -> 0 | AD40: =IF($H40=0,0,INDEX(AD$182:AD$274,$H40)) -> 0 | AE40: =IF($H40=0,0,INDEX(AE$182:AE$274,$H40)) -> 0 | AF40: =IF($H40=0,0,INDEX(AF$182:AF$274,$H40)) -> 0 | AG40: =IF($H40=0,0,INDEX(AG$182:AG$274,$H40)) -> 0 | AH40: =IF($H40=0,0,INDEX(AH$182:AH$274,$H40)) -> 0 | AI40: =IF($H40=0,0,INDEX(AI$182:AI$274,$H40)) -> 0 | AJ40: =IF($H40=0,0,INDEX(AJ$182:AJ$274,$H40)) -> 0 | AL40: =IF(SUMPRODUCT(--_xlfn.ISFORMULA(C40:AJ40))=34,"OK","CHECK") -> OK
C41: 0 | D41: 0 | E41: 0 | F41: 0 | G41: 0 | H41: 0 | I41: =IF($H41=0,0,INDEX(I$182:I$274,$H41)) -> 0 | J41: =IF($H41=0,0,INDEX(J$182:J$274,$H41)) -> 0 | K41: =IF($H41=0,0,INDEX(K$182:K$274,$H41)) -> 0 | L41: =IF($H41=0,0,INDEX(L$182:L$274,$H41)) -> 0 | M41: =IF($H41=0,0,INDEX(M$182:M$274,$H41)) -> 0 | N41: =IF($H41=0,0,INDEX(N$182:N$274,$H41)) -> 0 | O41: =IF($H41=0,0,INDEX(O$182:O$274,$H41)) -> 0 | P41: =IF($H41=0,0,INDEX(P$182:P$274,$H41)) -> 0 | Q41: =IF($H41=0,0,INDEX(Q$182:Q$274,$H41)) -> 0 | R41: =IF($H41=0,0,INDEX(R$182:R$274,$H41)) -> 0 | S41: =IF($H41=0,0,INDEX(S$182:S$274,$H41)) -> 0 | T41: =IF($H41=0,0,INDEX(T$182:T$274,$H41)) -> 0 | U41: =IF($H41=0,0,INDEX(U$182:U$274,$H41)) -> 0 | V41: =IF($H41=0,0,INDEX(V$182:V$274,$H41)) -> 0 | W41: =IF($H41=0,0,INDEX(W$182:W$274,$H41)) -> 0 | X41: =IF($H41=0,0,INDEX(X$182:X$274,$H41)) -> 0 | Y41: =IF($H41=0,0,INDEX(Y$182:Y$274,$H41)) -> 0 | Z41: =IF($H41=0,0,INDEX(Z$182:Z$274,$H41)) -> 0 | AA41: =IF($H41=0,0,INDEX(AA$182:AA$274,$H41)) -> 0 | AB41: =IF($H41=0,0,INDEX(AB$182:AB$274,$H41)) -> 0 | AC41: =IF($H41=0,0,INDEX(AC$182:AC$274,$H41)) -> 0 | AD41: =IF($H41=0,0,INDEX(AD$182:AD$274,$H41)) -> 0 | AE41: =IF($H41=0,0,INDEX(AE$182:AE$274,$H41)) -> 0 | AF41: =IF($H41=0,0,INDEX(AF$182:AF$274,$H41)) -> 0 | AG41: =IF($H41=0,0,INDEX(AG$182:AG$274,$H41)) -> 0 | AH41: =IF($H41=0,0,INDEX(AH$182:AH$274,$H41)) -> 0 | AI41: =IF($H41=0,0,INDEX(AI$182:AI$274,$H41)) -> 0 | AJ41: =IF($H41=0,0,INDEX(AJ$182:AJ$274,$H41)) -> 0 | AL41: =IF(SUMPRODUCT(--_xlfn.ISFORMULA(C41:AJ41))=34,"OK","CHECK") -> OK
C42: 0 | D42: 0 | E42: 0 | F42: 0 | G42: 0 | H42: 0 | I42: =IF($H42=0,0,INDEX(I$182:I$274,$H42)) -> 0 | J42: =IF($H42=0,0,INDEX(J$182:J$274,$H42)) -> 0 | K42: =IF($H42=0,0,INDEX(K$182:K$274,$H42)) -> 0 | L42: =IF($H42=0,0,INDEX(L$182:L$274,$H42)) -> 0 | M42: =IF($H42=0,0,INDEX(M$182:M$274,$H42)) -> 0 | N42: =IF($H42=0,0,INDEX(N$182:N$274,$H42)) -> 0 | O42: =IF($H42=0,0,INDEX(O$182:O$274,$H42)) -> 0 | P42: =IF($H42=0,0,INDEX(P$182:P$274,$H42)) -> 0 | Q42: =IF($H42=0,0,INDEX(Q$182:Q$274,$H42)) -> 0 | R42: =IF($H42=0,0,INDEX(R$182:R$274,$H42)) -> 0 | S42: =IF($H42=0,0,INDEX(S$182:S$274,$H42)) -> 0 | T42: =IF($H42=0,0,INDEX(T$182:T$274,$H42)) -> 0 | U42: =IF($H42=0,0,INDEX(U$182:U$274,$H42)) -> 0 | V42: =IF($H42=0,0,INDEX(V$182:V$274,$H42)) -> 0 | W42: =IF($H42=0,0,INDEX(W$182:W$274,$H42)) -> 0 | X42: =IF($H42=0,0,INDEX(X$182:X$274,$H42)) -> 0 | Y42: =IF($H42=0,0,INDEX(Y$182:Y$274,$H42)) -> 0 | Z42: =IF($H42=0,0,INDEX(Z$182:Z$274,$H42)) -> 0 | AA42: =IF($H42=0,0,INDEX(AA$182:AA$274,$H42)) -> 0 | AB42: =IF($H42=0,0,INDEX(AB$182:AB$274,$H42)) -> 0 | AC42: =IF($H42=0,0,INDEX(AC$182:AC$274,$H42)) -> 0 | AD42: =IF($H42=0,0,INDEX(AD$182:AD$274,$H42)) -> 0 | AE42: =IF($H42=0,0,INDEX(AE$182:AE$274,$H42)) -> 0 | AF42: =IF($H42=0,0,INDEX(AF$182:AF$274,$H42)) -> 0 | AG42: =IF($H42=0,0,INDEX(AG$182:AG$274,$H42)) -> 0 | AH42: =IF($H42=0,0,INDEX(AH$182:AH$274,$H42)) -> 0 | AI42: =IF($H42=0,0,INDEX(AI$182:AI$274,$H42)) -> 0 | AJ42: =IF($H42=0,0,INDEX(AJ$182:AJ$274,$H42)) -> 0 | AL42: =IF(SUMPRODUCT(--_xlfn.ISFORMULA(C42:AJ42))=34,"OK","CHECK") -> OK
C43: 0 | D43: 0 | E43: 0 | F43: 0 | G43: 0 | H43: 0 | I43: =IF($H43=0,0,INDEX(I$182:I$274,$H43)) -> 0 | J43: =IF($H43=0,0,INDEX(J$182:J$274,$H43)) -> 0 | K43: =IF($H43=0,0,INDEX(K$182:K$274,$H43)) -> 0 | L43: =IF($H43=0,0,INDEX(L$182:L$274,$H43)) -> 0 | M43: =IF($H43=0,0,INDEX(M$182:M$274,$H43)) -> 0 | N43: =IF($H43=0,0,INDEX(N$182:N$274,$H43)) -> 0 | O43: =IF($H43=0,0,INDEX(O$182:O$274,$H43)) -> 0 | P43: =IF($H43=0,0,INDEX(P$182:P$274,$H43)) -> 0 | Q43: =IF($H43=0,0,INDEX(Q$182:Q$274,$H43)) -> 0 | R43: =IF($H43=0,0,INDEX(R$182:R$274,$H43)) -> 0 | S43: =IF($H43=0,0,INDEX(S$182:S$274,$H43)) -> 0 | T43: =IF($H43=0,0,INDEX(T$182:T$274,$H43)) -> 0 | U43: =IF($H43=0,0,INDEX(U$182:U$274,$H43)) -> 0 | V43: =IF($H43=0,0,INDEX(V$182:V$274,$H43)) -> 0 | W43: =IF($H43=0,0,INDEX(W$182:W$274,$H43)) -> 0 | X43: =IF($H43=0,0,INDEX(X$182:X$274,$H43)) -> 0 | Y43: =IF($H43=0,0,INDEX(Y$182:Y$274,$H43)) -> 0 | Z43: =IF($H43=0,0,INDEX(Z$182:Z$274,$H43)) -> 0 | AA43: =IF($H43=0,0,INDEX(AA$182:AA$274,$H43)) -> 0 | AB43: =IF($H43=0,0,INDEX(AB$182:AB$274,$H43)) -> 0 | AC43: =IF($H43=0,0,INDEX(AC$182:AC$274,$H43)) -> 0 | AD43: =IF($H43=0,0,INDEX(AD$182:AD$274,$H43)) -> 0 | AE43: =IF($H43=0,0,INDEX(AE$182:AE$274,$H43)) -> 0 | AF43: =IF($H43=0,0,INDEX(AF$182:AF$274,$H43)) -> 0 | AG43: =IF($H43=0,0,INDEX(AG$182:AG$274,$H43)) -> 0 | AH43: =IF($H43=0,0,INDEX(AH$182:AH$274,$H43)) -> 0 | AI43: =IF($H43=0,0,INDEX(AI$182:AI$274,$H43)) -> 0 | AJ43: =IF($H43=0,0,INDEX(AJ$182:AJ$274,$H43)) -> 0 | AL43: =IF(SUMPRODUCT(--_xlfn.ISFORMULA(C43:AJ43))=34,"OK","CHECK") -> OK
C44: 0 | D44: 0 | E44: 0 | F44: 0 | G44: 0 | H44: 0 | I44: =IF($H44=0,0,INDEX(I$182:I$274,$H44)) -> 0 | J44: =IF($H44=0,0,INDEX(J$182:J$274,$H44)) -> 0 | K44: =IF($H44=0,0,INDEX(K$182:K$274,$H44)) -> 0 | L44: =IF($H44=0,0,INDEX(L$182:L$274,$H44)) -> 0 | M44: =IF($H44=0,0,INDEX(M$182:M$274,$H44)) -> 0 | N44: =IF($H44=0,0,INDEX(N$182:N$274,$H44)) -> 0 | O44: =IF($H44=0,0,INDEX(O$182:O$274,$H44)) -> 0 | P44: =IF($H44=0,0,INDEX(P$182:P$274,$H44)) -> 0 | Q44: =IF($H44=0,0,INDEX(Q$182:Q$274,$H44)) -> 0 | R44: =IF($H44=0,0,INDEX(R$182:R$274,$H44)) -> 0 | S44: =IF($H44=0,0,INDEX(S$182:S$274,$H44)) -> 0 | T44: =IF($H44=0,0,INDEX(T$182:T$274,$H44)) -> 0 | U44: =IF($H44=0,0,INDEX(U$182:U$274,$H44)) -> 0 | V44: =IF($H44=0,0,INDEX(V$182:V$274,$H44)) -> 0 | W44: =IF($H44=0,0,INDEX(W$182:W$274,$H44)) -> 0 | X44: =IF($H44=0,0,INDEX(X$182:X$274,$H44)) -> 0 | Y44: =IF($H44=0,0,INDEX(Y$182:Y$274,$H44)) -> 0 | Z44: =IF($H44=0,0,INDEX(Z$182:Z$274,$H44)) -> 0 | AA44: =IF($H44=0,0,INDEX(AA$182:AA$274,$H44)) -> 0 | AB44: =IF($H44=0,0,INDEX(AB$182:AB$274,$H44)) -> 0 | AC44: =IF($H44=0,0,INDEX(AC$182:AC$274,$H44)) -> 0 | AD44: =IF($H44=0,0,INDEX(AD$182:AD$274,$H44)) -> 0 | AE44: =IF($H44=0,0,INDEX(AE$182:AE$274,$H44)) -> 0 | AF44: =IF($H44=0,0,INDEX(AF$182:AF$274,$H44)) -> 0 | AG44: =IF($H44=0,0,INDEX(AG$182:AG$274,$H44)) -> 0 | AH44: =IF($H44=0,0,INDEX(AH$182:AH$274,$H44)) -> 0 | AI44: =IF($H44=0,0,INDEX(AI$182:AI$274,$H44)) -> 0 | AJ44: =IF($H44=0,0,INDEX(AJ$182:AJ$274,$H44)) -> 0 | AL44: =IF(SUMPRODUCT(--_xlfn.ISFORMULA(C44:AJ44))=34,"OK","CHECK") -> OK
C45: 0 | D45: 0 | E45: 0 | F45: 0 | G45: 0 | H45: 0 | I45: =IF($H45=0,0,INDEX(I$182:I$274,$H45)) -> 0 | J45: =IF($H45=0,0,INDEX(J$182:J$274,$H45)) -> 0 | K45: =IF($H45=0,0,INDEX(K$182:K$274,$H45)) -> 0 | L45: =IF($H45=0,0,INDEX(L$182:L$274,$H45)) -> 0 | M45: =IF($H45=0,0,INDEX(M$182:M$274,$H45)) -> 0 | N45: =IF($H45=0,0,INDEX(N$182:N$274,$H45)) -> 0 | O45: =IF($H45=0,0,INDEX(O$182:O$274,$H45)) -> 0 | P45: =IF($H45=0,0,INDEX(P$182:P$274,$H45)) -> 0 | Q45: =IF($H45=0,0,INDEX(Q$182:Q$274,$H45)) -> 0 | R45: =IF($H45=0,0,INDEX(R$182:R$274,$H45)) -> 0 | S45: =IF($H45=0,0,INDEX(S$182:S$274,$H45)) -> 0 | T45: =IF($H45=0,0,INDEX(T$182:T$274,$H45)) -> 0 | U45: =IF($H45=0,0,INDEX(U$182:U$274,$H45)) -> 0 | V45: =IF($H45=0,0,INDEX(V$182:V$274,$H45)) -> 0 | W45: =IF($H45=0,0,INDEX(W$182:W$274,$H45)) -> 0 | X45: =IF($H45=0,0,INDEX(X$182:X$274,$H45)) -> 0 | Y45: =IF($H45=0,0,INDEX(Y$182:Y$274,$H45)) -> 0 | Z45: =IF($H45=0,0,INDEX(Z$182:Z$274,$H45)) -> 0 | AA45: =IF($H45=0,0,INDEX(AA$182:AA$274,$H45)) -> 0 | AB45: =IF($H45=0,0,INDEX(AB$182:AB$274,$H45)) -> 0 | AC45: =IF($H45=0,0,INDEX(AC$182:AC$274,$H45)) -> 0 | AD45: =IF($H45=0,0,INDEX(AD$182:AD$274,$H45)) -> 0 | AE45: =IF($H45=0,0,INDEX(AE$182:AE$274,$H45)) -> 0 | AF45: =IF($H45=0,0,INDEX(AF$182:AF$274,$H45)) -> 0 | AG45: =IF($H45=0,0,INDEX(AG$182:AG$274,$H45)) -> 0 | AH45: =IF($H45=0,0,INDEX(AH$182:AH$274,$H45)) -> 0 | AI45: =IF($H45=0,0,INDEX(AI$182:AI$274,$H45)) -> 0 | AJ45: =IF($H45=0,0,INDEX(AJ$182:AJ$274,$H45)) -> 0 | AL45: =IF(SUMPRODUCT(--_xlfn.ISFORMULA(C45:AJ45))=34,"OK","CHECK") -> OK
C46: 0 | D46: 0 | E46: 0 | F46: 0 | G46: 0 | H46: 0 | I46: =IF($H46=0,0,INDEX(I$182:I$274,$H46)) -> 0 | J46: =IF($H46=0,0,INDEX(J$182:J$274,$H46)) -> 0 | K46: =IF($H46=0,0,INDEX(K$182:K$274,$H46)) -> 0 | L46: =IF($H46=0,0,INDEX(L$182:L$274,$H46)) -> 0 | M46: =IF($H46=0,0,INDEX(M$182:M$274,$H46)) -> 0 | N46: =IF($H46=0,0,INDEX(N$182:N$274,$H46)) -> 0 | O46: =IF($H46=0,0,INDEX(O$182:O$274,$H46)) -> 0 | P46: =IF($H46=0,0,INDEX(P$182:P$274,$H46)) -> 0 | Q46: =IF($H46=0,0,INDEX(Q$182:Q$274,$H46)) -> 0 | R46: =IF($H46=0,0,INDEX(R$182:R$274,$H46)) -> 0 | S46: =IF($H46=0,0,INDEX(S$182:S$274,$H46)) -> 0 | T46: =IF($H46=0,0,INDEX(T$182:T$274,$H46)) -> 0 | U46: =IF($H46=0,0,INDEX(U$182:U$274,$H46)) -> 0 | V46: =IF($H46=0,0,INDEX(V$182:V$274,$H46)) -> 0 | W46: =IF($H46=0,0,INDEX(W$182:W$274,$H46)) -> 0 | X46: =IF($H46=0,0,INDEX(X$182:X$274,$H46)) -> 0 | Y46: =IF($H46=0,0,INDEX(Y$182:Y$274,$H46)) -> 0 | Z46: =IF($H46=0,0,INDEX(Z$182:Z$274,$H46)) -> 0 | AA46: =IF($H46=0,0,INDEX(AA$182:AA$274,$H46)) -> 0 | AB46: =IF($H46=0,0,INDEX(AB$182:AB$274,$H46)) -> 0 | AC46: =IF($H46=0,0,INDEX(AC$182:AC$274,$H46)) -> 0 | AD46: =IF($H46=0,0,INDEX(AD$182:AD$274,$H46)) -> 0 | AE46: =IF($H46=0,0,INDEX(AE$182:AE$274,$H46)) -> 0 | AF46: =IF($H46=0,0,INDEX(AF$182:AF$274,$H46)) -> 0 | AG46: =IF($H46=0,0,INDEX(AG$182:AG$274,$H46)) -> 0 | AH46: =IF($H46=0,0,INDEX(AH$182:AH$274,$H46)) -> 0 | AI46: =IF($H46=0,0,INDEX(AI$182:AI$274,$H46)) -> 0 | AJ46: =IF($H46=0,0,INDEX(AJ$182:AJ$274,$H46)) -> 0 | AL46: =IF(SUMPRODUCT(--_xlfn.ISFORMULA(C46:AJ46))=34,"OK","CHECK") -> OK
C47: 0 | D47: 0 | E47: 0 | F47: 0 | G47: 0 | H47: 0 | I47: =IF($H47=0,0,INDEX(I$182:I$274,$H47)) -> 0 | J47: =IF($H47=0,0,INDEX(J$182:J$274,$H47)) -> 0 | K47: =IF($H47=0,0,INDEX(K$182:K$274,$H47)) -> 0 | L47: =IF($H47=0,0,INDEX(L$182:L$274,$H47)) -> 0 | M47: =IF($H47=0,0,INDEX(M$182:M$274,$H47)) -> 0 | N47: =IF($H47=0,0,INDEX(N$182:N$274,$H47)) -> 0 | O47: =IF($H47=0,0,INDEX(O$182:O$274,$H47)) -> 0 | P47: =IF($H47=0,0,INDEX(P$182:P$274,$H47)) -> 0 | Q47: =IF($H47=0,0,INDEX(Q$182:Q$274,$H47)) -> 0 | R47: =IF($H47=0,0,INDEX(R$182:R$274,$H47)) -> 0 | S47: =IF($H47=0,0,INDEX(S$182:S$274,$H47)) -> 0 | T47: =IF($H47=0,0,INDEX(T$182:T$274,$H47)) -> 0 | U47: =IF($H47=0,0,INDEX(U$182:U$274,$H47)) -> 0 | V47: =IF($H47=0,0,INDEX(V$182:V$274,$H47)) -> 0 | W47: =IF($H47=0,0,INDEX(W$182:W$274,$H47)) -> 0 | X47: =IF($H47=0,0,INDEX(X$182:X$274,$H47)) -> 0 | Y47: =IF($H47=0,0,INDEX(Y$182:Y$274,$H47)) -> 0 | Z47: =IF($H47=0,0,INDEX(Z$182:Z$274,$H47)) -> 0 | AA47: =IF($H47=0,0,INDEX(AA$182:AA$274,$H47)) -> 0 | AB47: =IF($H47=0,0,INDEX(AB$182:AB$274,$H47)) -> 0 | AC47: =IF($H47=0,0,INDEX(AC$182:AC$274,$H47)) -> 0 | AD47: =IF($H47=0,0,INDEX(AD$182:AD$274,$H47)) -> 0 | AE47: =IF($H47=0,0,INDEX(AE$182:AE$274,$H47)) -> 0 | AF47: =IF($H47=0,0,INDEX(AF$182:AF$274,$H47)) -> 0 | AG47: =IF($H47=0,0,INDEX(AG$182:AG$274,$H47)) -> 0 | AH47: =IF($H47=0,0,INDEX(AH$182:AH$274,$H47)) -> 0 | AI47: =IF($H47=0,0,INDEX(AI$182:AI$274,$H47)) -> 0 | AJ47: =IF($H47=0,0,INDEX(AJ$182:AJ$274,$H47)) -> 0 | AL47: =IF(SUMPRODUCT(--_xlfn.ISFORMULA(C47:AJ47))=34,"OK","CHECK") -> OK
C48: 0 | D48: 0 | E48: 0 | F48: 0 | G48: 0 | H48: 0 | I48: =IF($H48=0,0,INDEX(I$182:I$274,$H48)) -> 0 | J48: =IF($H48=0,0,INDEX(J$182:J$274,$H48)) -> 0 | K48: =IF($H48=0,0,INDEX(K$182:K$274,$H48)) -> 0 | L48: =IF($H48=0,0,INDEX(L$182:L$274,$H48)) -> 0 | M48: =IF($H48=0,0,INDEX(M$182:M$274,$H48)) -> 0 | N48: =IF($H48=0,0,INDEX(N$182:N$274,$H48)) -> 0 | O48: =IF($H48=0,0,INDEX(O$182:O$274,$H48)) -> 0 | P48: =IF($H48=0,0,INDEX(P$182:P$274,$H48)) -> 0 | Q48: =IF($H48=0,0,INDEX(Q$182:Q$274,$H48)) -> 0 | R48: =IF($H48=0,0,INDEX(R$182:R$274,$H48)) -> 0 | S48: =IF($H48=0,0,INDEX(S$182:S$274,$H48)) -> 0 | T48: =IF($H48=0,0,INDEX(T$182:T$274,$H48)) -> 0 | U48: =IF($H48=0,0,INDEX(U$182:U$274,$H48)) -> 0 | V48: =IF($H48=0,0,INDEX(V$182:V$274,$H48)) -> 0 | W48: =IF($H48=0,0,INDEX(W$182:W$274,$H48)) -> 0 | X48: =IF($H48=0,0,INDEX(X$182:X$274,$H48)) -> 0 | Y48: =IF($H48=0,0,INDEX(Y$182:Y$274,$H48)) -> 0 | Z48: =IF($H48=0,0,INDEX(Z$182:Z$274,$H48)) -> 0 | AA48: =IF($H48=0,0,INDEX(AA$182:AA$274,$H48)) -> 0 | AB48: =IF($H48=0,0,INDEX(AB$182:AB$274,$H48)) -> 0 | AC48: =IF($H48=0,0,INDEX(AC$182:AC$274,$H48)) -> 0 | AD48: =IF($H48=0,0,INDEX(AD$182:AD$274,$H48)) -> 0 | AE48: =IF($H48=0,0,INDEX(AE$182:AE$274,$H48)) -> 0 | AF48: =IF($H48=0,0,INDEX(AF$182:AF$274,$H48)) -> 0 | AG48: =IF($H48=0,0,INDEX(AG$182:AG$274,$H48)) -> 0 | AH48: =IF($H48=0,0,INDEX(AH$182:AH$274,$H48)) -> 0 | AI48: =IF($H48=0,0,INDEX(AI$182:AI$274,$H48)) -> 0 | AJ48: =IF($H48=0,0,INDEX(AJ$182:AJ$274,$H48)) -> 0 | AL48: =IF(SUMPRODUCT(--_xlfn.ISFORMULA(C48:AJ48))=34,"OK","CHECK") -> OK
C50: =C277 -> Designated Pricing Proposal Costs
C51: =C19 -> Residential Flat | D51: SAC | E51: 8400 | F51: SACS Res | G51: SAC8400 | H51: 1 | I51: =IF($H51=0,0,INDEX(I$278:I$370,$H51)) -> 0.083 | J51: =IF($H51=0,0,INDEX(J$278:J$370,$H51)) -> 0 | K51: =IF($H51=0,0,INDEX(K$278:K$370,$H51)) -> 0.01762 | L51: =IF($H51=0,0,INDEX(L$278:L$370,$H51)) -> 0 | M51: =IF($H51=0,0,INDEX(M$278:M$370,$H51)) -> 0 | N51: =IF($H51=0,0,INDEX(N$278:N$370,$H51)) -> 0 | O51: =IF($H51=0,0,INDEX(O$278:O$370,$H51)) -> 0 | P51: =IF($H51=0,0,INDEX(P$278:P$370,$H51)) -> 0 | Q51: =IF($H51=0,0,INDEX(Q$278:Q$370,$H51)) -> 0 | R51: =IF($H51=0,0,INDEX(R$278:R$370,$H51)) -> 0 | S51: =IF($H51=0,0,INDEX(S$278:S$370,$H51)) -> 0 | T51: =IF($H51=0,0,INDEX(T$278:T$370,$H51)) -> 0 | U51: =IF($H51=0,0,INDEX(U$278:U$370,$H51)) -> 0 | V51: =IF($H51=0,0,INDEX(V$278:V$370,$H51)) -> 0 | W51: =IF($H51=0,0,INDEX(W$278:W$370,$H51)) -> 0 | X51: =IF($H51=0,0,INDEX(X$278:X$370,$H51)) -> 0 | Y51: =IF($H51=0,0,INDEX(Y$278:Y$370,$H51)) -> 0 | Z51: =IF($H51=0,0,INDEX(Z$278:Z$370,$H51)) -> 0 | AA51: =IF($H51=0,0,INDEX(AA$278:AA$370,$H51)) -> 0 | AB51: =IF($H51=0,0,INDEX(AB$278:AB$370,$H51)) -> 0 | AC51: =IF($H51=0,0,INDEX(AC$278:AC$370,$H51)) -> 0 | AD51: =IF($H51=0,0,INDEX(AD$278:AD$370,$H51)) -> 0 | AE51: =IF($H51=0,0,INDEX(AE$278:AE$370,$H51)) -> 0 | AF51: =IF($H51=0,0,INDEX(AF$278:AF$370,$H51)) -> 0 | AG51: =IF($H51=0,0,INDEX(AG$278:AG$370,$H51)) -> 0 | AH51: =IF($H51=0,0,INDEX(AH$278:AH$370,$H51)) -> 0 | AI51: =IF($H51=0,0,INDEX(AI$278:AI$370,$H51)) -> 0 | AJ51: =IF($H51=0,0,INDEX(AJ$278:AJ$370,$H51)) -> 0 | AL51: =IF(SUMPRODUCT(--_xlfn.ISFORMULA(C51:AJ51))=34,"OK","CHECK") -> OK
C52: Residential ToU Energy | D52: SAC | E52: 6900 | F52: SACS Res | G52: SAC6900 | H52: 2 | I52: =IF($H52=0,0,INDEX(I$278:I$370,$H52)) -> 0.083 | J52: =IF($H52=0,0,INDEX(J$278:J$370,$H52)) -> 0 | K52: =IF($H52=0,0,INDEX(K$278:K$370,$H52)) -> 0 | L52: =IF($H52=0,0,INDEX(L$278:L$370,$H52)) -> 0.02099 | M52: =IF($H52=0,0,INDEX(M$278:M$370,$H52)) -> 0 | N52: =IF($H52=0,0,INDEX(N$278:N$370,$H52)) -> 0.02099 | O52: =IF($H52=0,0,INDEX(O$278:O$370,$H52)) -> 0 | P52: =IF($H52=0,0,INDEX(P$278:P$370,$H52)) -> 0 | Q52: =IF($H52=0,0,INDEX(Q$278:Q$370,$H52)) -> 0 | R52: =IF($H52=0,0,INDEX(R$278:R$370,$H52)) -> 0 | S52: =IF($H52=0,0,INDEX(S$278:S$370,$H52)) -> 0 | T52: =IF($H52=0,0,INDEX(T$278:T$370,$H52)) -> 0 | U52: =IF($H52=0,0,INDEX(U$278:U$370,$H52)) -> 0 | V52: =IF($H52=0,0,INDEX(V$278:V$370,$H52)) -> 0 | W52: =IF($H52=0,0,INDEX(W$278:W$370,$H52)) -> 0 | X52: =IF($H52=0,0,INDEX(X$278:X$370,$H52)) -> 0 | Y52: =IF($H52=0,0,INDEX(Y$278:Y$370,$H52)) -> 0 | Z52: =IF($H52=0,0,INDEX(Z$278:Z$370,$H52)) -> 0 | AA52: =IF($H52=0,0,INDEX(AA$278:AA$370,$H52)) -> 0 | AB52: =IF($H52=0,0,INDEX(AB$278:AB$370,$H52)) -> 0 | AC52: =IF($H52=0,0,INDEX(AC$278:AC$370,$H52)) -> 0 | AD52: =IF($H52=0,0,INDEX(AD$278:AD$370,$H52)) -> 0 | AE52: =IF($H52=0,0,INDEX(AE$278:AE$370,$H52)) -> 0 | AF52: =IF($H52=0,0,INDEX(AF$278:AF$370,$H52)) -> 0 | AG52: =IF($H52=0,0,INDEX(AG$278:AG$370,$H52)) -> 0 | AH52: =IF($H52=0,0,INDEX(AH$278:AH$370,$H52)) -> 0 | AI52: =IF($H52=0,0,INDEX(AI$278:AI$370,$H52)) -> 0 | AJ52: =IF($H52=0,0,INDEX(AJ$278:AJ$370,$H52)) -> 0 | AL52: =IF(SUMPRODUCT(--_xlfn.ISFORMULA(C52:AJ52))=34,"OK","CHECK") -> OK
C53: Small Business Flat | D53: SAC | E53: 8500 | F53: SACS Bus | G53: SAC8500 | H53: 7 | I53: =IF($H53=0,0,INDEX(I$278:I$370,$H53)) -> 0.218 | J53: =IF($H53=0,0,INDEX(J$278:J$370,$H53)) -> 0 | K53: =IF($H53=0,0,INDEX(K$278:K$370,$H53)) -> 0.01684 | L53: =IF($H53=0,0,INDEX(L$278:L$370,$H53)) -> 0 | M53: =IF($H53=0,0,INDEX(M$278:M$370,$H53)) -> 0 | N53: =IF($H53=0,0,INDEX(N$278:N$370,$H53)) -> 0 | O53: =IF($H53=0,0,INDEX(O$278:O$370,$H53)) -> 0 | P53: =IF($H53=0,0,INDEX(P$278:P$370,$H53)) -> 0 | Q53: =IF($H53=0,0,INDEX(Q$278:Q$370,$H53)) -> 0 | R53: =IF($H53=0,0,INDEX(R$278:R$370,$H53)) -> 0 | S53: =IF($H53=0,0,INDEX(S$278:S$370,$H53)) -> 0 | T53: =IF($H53=0,0,INDEX(T$278:T$370,$H53)) -> 0 | U53: =IF($H53=0,0,INDEX(U$278:U$370,$H53)) -> 0 | V53: =IF($H53=0,0,INDEX(V$278:V$370,$H53)) -> 0 | W53: =IF($H53=0,0,INDEX(W$278:W$370,$H53)) -> 0 | X53: =IF($H53=0,0,INDEX(X$278:X$370,$H53)) -> 0 | Y53: =IF($H53=0,0,INDEX(Y$278:Y$370,$H53)) -> 0 | Z53: =IF($H53=0,0,INDEX(Z$278:Z$370,$H53)) -> 0 | AA53: =IF($H53=0,0,INDEX(AA$278:AA$370,$H53)) -> 0 | AB53: =IF($H53=0,0,INDEX(AB$278:AB$370,$H53)) -> 0 | AC53: =IF($H53=0,0,INDEX(AC$278:AC$370,$H53)) -> 0 | AD53: =IF($H53=0,0,INDEX(AD$278:AD$370,$H53)) -> 0 | AE53: =IF($H53=0,0,INDEX(AE$278:AE$370,$H53)) -> 0 | AF53: =IF($H53=0,0,INDEX(AF$278:AF$370,$H53)) -> 0 | AG53: =IF($H53=0,0,INDEX(AG$278:AG$370,$H53)) -> 0 | AH53: =IF($H53=0,0,INDEX(AH$278:AH$370,$H53)) -> 0 | AI53: =IF($H53=0,0,INDEX(AI$278:AI$370,$H53)) -> 0 | AJ53: =IF($H53=0,0,INDEX(AJ$278:AJ$370,$H53)) -> 0 | AL53: =IF(SUMPRODUCT(--_xlfn.ISFORMULA(C53:AJ53))=34,"OK","CHECK") -> OK
C54: Small Business ToU Energy | D54: SAC | E54: 6800 | F54: SACS Bus | G54: SAC6800 | H54: 8 | I54: =IF($H54=0,0,INDEX(I$278:I$370,$H54)) -> 0.218 | J54: =IF($H54=0,0,INDEX(J$278:J$370,$H54)) -> 0 | K54: =IF($H54=0,0,INDEX(K$278:K$370,$H54)) -> 0 | L54: =IF($H54=0,0,INDEX(L$278:L$370,$H54)) -> 0.01884 | M54: =IF($H54=0,0,INDEX(M$278:M$370,$H54)) -> 0 | N54: =IF($H54=0,0,INDEX(N$278:N$370,$H54)) -> 0.01884 | O54: =IF($H54=0,0,INDEX(O$278:O$370,$H54)) -> 0 | P54: =IF($H54=0,0,INDEX(P$278:P$370,$H54)) -> 0 | Q54: =IF($H54=0,0,INDEX(Q$278:Q$370,$H54)) -> 0 | R54: =IF($H54=0,0,INDEX(R$278:R$370,$H54)) -> 0 | S54: =IF($H54=0,0,INDEX(S$278:S$370,$H54)) -> 0 | T54: =IF($H54=0,0,INDEX(T$278:T$370,$H54)) -> 0 | U54: =IF($H54=0,0,INDEX(U$278:U$370,$H54)) -> 0 | V54: =IF($H54=0,0,INDEX(V$278:V$370,$H54)) -> 0 | W54: =IF($H54=0,0,INDEX(W$278:W$370,$H54)) -> 0 | X54: =IF($H54=0,0,INDEX(X$278:X$370,$H54)) -> 0 | Y54: =IF($H54=0,0,INDEX(Y$278:Y$370,$H54)) -> 0 | Z54: =IF($H54=0,0,INDEX(Z$278:Z$370,$H54)) -> 0 | AA54: =IF($H54=0,0,INDEX(AA$278:AA$370,$H54)) -> 0 | AB54: =IF($H54=0,0,INDEX(AB$278:AB$370,$H54)) -> 0 | AC54: =IF($H54=0,0,INDEX(AC$278:AC$370,$H54)) -> 0 | AD54: =IF($H54=0,0,INDEX(AD$278:AD$370,$H54)) -> 0 | AE54: =IF($H54=0,0,INDEX(AE$278:AE$370,$H54)) -> 0 | AF54: =IF($H54=0,0,INDEX(AF$278:AF$370,$H54)) -> 0 | AG54: =IF($H54=0,0,INDEX(AG$278:AG$370,$H54)) -> 0 | AH54: =IF($H54=0,0,INDEX(AH$278:AH$370,$H54)) -> 0 | AI54: =IF($H54=0,0,INDEX(AI$278:AI$370,$H54)) -> 0 | AJ54: =IF($H54=0,0,INDEX(AJ$278:AJ$370,$H54)) -> 0 | AL54: =IF(SUMPRODUCT(--_xlfn.ISFORMULA(C54:AJ54))=34,"OK","CHECK") -> OK
C55: Controlled Load 1 (Super Economy) | D55: SAC | E55: 9000 | F55: SACS CL | G55: SAC9000 | H55: 14 | I55: =IF($H55=0,0,INDEX(I$278:I$370,$H55)) -> 0 | J55: =IF($H55=0,0,INDEX(J$278:J$370,$H55)) -> 0 | K55: =IF($H55=0,0,INDEX(K$278:K$370,$H55)) -> 0 | L55: =IF($H55=0,0,INDEX(L$278:L$370,$H55)) -> 0 | M55: =IF($H55=0,0,INDEX(M$278:M$370,$H55)) -> 0 | N55: =IF($H55=0,0,INDEX(N$278:N$370,$H55)) -> 0 | O55: =IF($H55=0,0,INDEX(O$278:O$370,$H55)) -> 0 | P55: =IF($H55=0,0,INDEX(P$278:P$370,$H55)) -> 0 | Q55: =IF($H55=0,0,INDEX(Q$278:Q$370,$H55)) -> 0 | R55: =IF($H55=0,0,INDEX(R$278:R$370,$H55)) -> 0 | S55: =IF($H55=0,0,INDEX(S$278:S$370,$H55)) -> 0 | T55: =IF($H55=0,0,INDEX(T$278:T$370,$H55)) -> 0 | U55: =IF($H55=0,0,INDEX(U$278:U$370,$H55)) -> 0 | V55: =IF($H55=0,0,INDEX(V$278:V$370,$H55)) -> 0 | W55: =IF($H55=0,0,INDEX(W$278:W$370,$H55)) -> 0 | X55: =IF($H55=0,0,INDEX(X$278:X$370,$H55)) -> 0 | Y55: =IF($H55=0,0,INDEX(Y$278:Y$370,$H55)) -> 0 | Z55: =IF($H55=0,0,INDEX(Z$278:Z$370,$H55)) -> 0 | AA55: =IF($H55=0,0,INDEX(AA$278:AA$370,$H55)) -> 0 | AB55: =IF($H55=0,0,INDEX(AB$278:AB$370,$H55)) -> 0 | AC55: =IF($H55=0,0,INDEX(AC$278:AC$370,$H55)) -> 0 | AD55: =IF($H55=0,0,INDEX(AD$278:AD$370,$H55)) -> 0 | AE55: =IF($H55=0,0,INDEX(AE$278:AE$370,$H55)) -> 0 | AF55: =IF($H55=0,0,INDEX(AF$278:AF$370,$H55)) -> 0 | AG55: =IF($H55=0,0,INDEX(AG$278:AG$370,$H55)) -> 0 | AH55: =IF($H55=0,0,INDEX(AH$278:AH$370,$H55)) -> 0 | AI55: =IF($H55=0,0,INDEX(AI$278:AI$370,$H55)) -> 0 | AJ55: =IF($H55=0,0,INDEX(AJ$278:AJ$370,$H55)) -> 0 | AL55: =IF(SUMPRODUCT(--_xlfn.ISFORMULA(C55:AJ55))=34,"OK","CHECK") -> OK
C56: Controlled Load 2 (Economy) | D56: SAC | E56: 9100 | F56: SACS CL | G56: SAC9100 | H56: 15 | I56: =IF($H56=0,0,INDEX(I$278:I$370,$H56)) -> 0 | J56: =IF($H56=0,0,INDEX(J$278:J$370,$H56)) -> 0 | K56: =IF($H56=0,0,INDEX(K$278:K$370,$H56)) -> 0 | L56: =IF($H56=0,0,INDEX(L$278:L$370,$H56)) -> 0 | M56: =IF($H56=0,0,INDEX(M$278:M$370,$H56)) -> 0 | N56: =IF($H56=0,0,INDEX(N$278:N$370,$H56)) -> 0 | O56: =IF($H56=0,0,INDEX(O$278:O$370,$H56)) -> 0 | P56: =IF($H56=0,0,INDEX(P$278:P$370,$H56)) -> 0 | Q56: =IF($H56=0,0,INDEX(Q$278:Q$370,$H56)) -> 0 | R56: =IF($H56=0,0,INDEX(R$278:R$370,$H56)) -> 0 | S56: =IF($H56=0,0,INDEX(S$278:S$370,$H56)) -> 0 | T56: =IF($H56=0,0,INDEX(T$278:T$370,$H56)) -> 0 | U56: =IF($H56=0,0,INDEX(U$278:U$370,$H56)) -> 0 | V56: =IF($H56=0,0,INDEX(V$278:V$370,$H56)) -> 0 | W56: =IF($H56=0,0,INDEX(W$278:W$370,$H56)) -> 0 | X56: =IF($H56=0,0,INDEX(X$278:X$370,$H56)) -> 0 | Y56: =IF($H56=0,0,INDEX(Y$278:Y$370,$H56)) -> 0 | Z56: =IF($H56=0,0,INDEX(Z$278:Z$370,$H56)) -> 0 | AA56: =IF($H56=0,0,INDEX(AA$278:AA$370,$H56)) -> 0 | AB56: =IF($H56=0,0,INDEX(AB$278:AB$370,$H56)) -> 0 | AC56: =IF($H56=0,0,INDEX(AC$278:AC$370,$H56)) -> 0 | AD56: =IF($H56=0,0,INDEX(AD$278:AD$370,$H56)) -> 0 | AE56: =IF($H56=0,0,INDEX(AE$278:AE$370,$H56)) -> 0 | AF56: =IF($H56=0,0,INDEX(AF$278:AF$370,$H56)) -> 0 | AG56: =IF($H56=0,0,INDEX(AG$278:AG$370,$H56)) -> 0 | AH56: =IF($H56=0,0,INDEX(AH$278:AH$370,$H56)) -> 0 | AI56: =IF($H56=0,0,INDEX(AI$278:AI$370,$H56)) -> 0 | AJ56: =IF($H56=0,0,INDEX(AJ$278:AJ$370,$H56)) -> 0 | AL56: =IF(SUMPRODUCT(--_xlfn.ISFORMULA(C56:AJ56))=34,"OK","CHECK") -> OK
C57: 0 | D57: 0 | E57: 0 | F57: 0 | G57: 0 | H57: 0 | I57: =IF($H57=0,0,INDEX(I$278:I$370,$H57)) -> 0 | J57: =IF($H57=0,0,INDEX(J$278:J$370,$H57)) -> 0 | K57: =IF($H57=0,0,INDEX(K$278:K$370,$H57)) -> 0 | L57: =IF($H57=0,0,INDEX(L$278:L$370,$H57)) -> 0 | M57: =IF($H57=0,0,INDEX(M$278:M$370,$H57)) -> 0 | N57: =IF($H57=0,0,INDEX(N$278:N$370,$H57)) -> 0 | O57: =IF($H57=0,0,INDEX(O$278:O$370,$H57)) -> 0 | P57: =IF($H57=0,0,INDEX(P$278:P$370,$H57)) -> 0 | Q57: =IF($H57=0,0,INDEX(Q$278:Q$370,$H57)) -> 0 | R57: =IF($H57=0,0,INDEX(R$278:R$370,$H57)) -> 0 | S57: =IF($H57=0,0,INDEX(S$278:S$370,$H57)) -> 0 | T57: =IF($H57=0,0,INDEX(T$278:T$370,$H57)) -> 0 | U57: =IF($H57=0,0,INDEX(U$278:U$370,$H57)) -> 0 | V57: =IF($H57=0,0,INDEX(V$278:V$370,$H57)) -> 0 | W57: =IF($H57=0,0,INDEX(W$278:W$370,$H57)) -> 0 | X57: =IF($H57=0,0,INDEX(X$278:X$370,$H57)) -> 0 | Y57: =IF($H57=0,0,INDEX(Y$278:Y$370,$H57)) -> 0 | Z57: =IF($H57=0,0,INDEX(Z$278:Z$370,$H57)) -> 0 | AA57: =IF($H57=0,0,INDEX(AA$278:AA$370,$H57)) -> 0 | AB57: =IF($H57=0,0,INDEX(AB$278:AB$370,$H57)) -> 0 | AC57: =IF($H57=0,0,INDEX(AC$278:AC$370,$H57)) -> 0 | AD57: =IF($H57=0,0,INDEX(AD$278:AD$370,$H57)) -> 0 | AE57: =IF($H57=0,0,INDEX(AE$278:AE$370,$H57)) -> 0 | AF57: =IF($H57=0,0,INDEX(AF$278:AF$370,$H57)) -> 0 | AG57: =IF($H57=0,0,INDEX(AG$278:AG$370,$H57)) -> 0 | AH57: =IF($H57=0,0,INDEX(AH$278:AH$370,$H57)) -> 0 | AI57: =IF($H57=0,0,INDEX(AI$278:AI$370,$H57)) -> 0 | AJ57: =IF($H57=0,0,INDEX(AJ$278:AJ$370,$H57)) -> 0 | AL57: =IF(SUMPRODUCT(--_xlfn.ISFORMULA(C57:AJ57))=34,"OK","CHECK") -> OK
C58: 0 | D58: 0 | E58: 0 | F58: 0 | G58: 0 | H58: 0 | I58: =IF($H58=0,0,INDEX(I$278:I$370,$H58)) -> 0 | J58: =IF($H58=0,0,INDEX(J$278:J$370,$H58)) -> 0 | K58: =IF($H58=0,0,INDEX(K$278:K$370,$H58)) -> 0 | L58: =IF($H58=0,0,INDEX(L$278:L$370,$H58)) -> 0 | M58: =IF($H58=0,0,INDEX(M$278:M$370,$H58)) -> 0 | N58: =IF($H58=0,0,INDEX(N$278:N$370,$H58)) -> 0 | O58: =IF($H58=0,0,INDEX(O$278:O$370,$H58)) -> 0 | P58: =IF($H58=0,0,INDEX(P$278:P$370,$H58)) -> 0 | Q58: =IF($H58=0,0,INDEX(Q$278:Q$370,$H58)) -> 0 | R58: =IF($H58=0,0,INDEX(R$278:R$370,$H58)) -> 0 | S58: =IF($H58=0,0,INDEX(S$278:S$370,$H58)) -> 0 | T58: =IF($H58=0,0,INDEX(T$278:T$370,$H58)) -> 0 | U58: =IF($H58=0,0,INDEX(U$278:U$370,$H58)) -> 0 | V58: =IF($H58=0,0,INDEX(V$278:V$370,$H58)) -> 0 | W58: =IF($H58=0,0,INDEX(W$278:W$370,$H58)) -> 0 | X58: =IF($H58=0,0,INDEX(X$278:X$370,$H58)) -> 0 | Y58: =IF($H58=0,0,INDEX(Y$278:Y$370,$H58)) -> 0 | Z58: =IF($H58=0,0,INDEX(Z$278:Z$370,$H58)) -> 0 | AA58: =IF($H58=0,0,INDEX(AA$278:AA$370,$H58)) -> 0 | AB58: =IF($H58=0,0,INDEX(AB$278:AB$370,$H58)) -> 0 | AC58: =IF($H58=0,0,INDEX(AC$278:AC$370,$H58)) -> 0 | AD58: =IF($H58=0,0,INDEX(AD$278:AD$370,$H58)) -> 0 | AE58: =IF($H58=0,0,INDEX(AE$278:AE$370,$H58)) -> 0 | AF58: =IF($H58=0,0,INDEX(AF$278:AF$370,$H58)) -> 0 | AG58: =IF($H58=0,0,INDEX(AG$278:AG$370,$H58)) -> 0 | AH58: =IF($H58=0,0,INDEX(AH$278:AH$370,$H58)) -> 0 | AI58: =IF($H58=0,0,INDEX(AI$278:AI$370,$H58)) -> 0 | AJ58: =IF($H58=0,0,INDEX(AJ$278:AJ$370,$H58)) -> 0 | AL58: =IF(SUMPRODUCT(--_xlfn.ISFORMULA(C58:AJ58))=34,"OK","CHECK") -> OK
C59: 0 | D59: 0 | E59: 0 | F59: 0 | G59: 0 | H59: 0 | I59: =IF($H59=0,0,INDEX(I$278:I$370,$H59)) -> 0 | J59: =IF($H59=0,0,INDEX(J$278:J$370,$H59)) -> 0 | K59: =IF($H59=0,0,INDEX(K$278:K$370,$H59)) -> 0 | L59: =IF($H59=0,0,INDEX(L$278:L$370,$H59)) -> 0 | M59: =IF($H59=0,0,INDEX(M$278:M$370,$H59)) -> 0 | N59: =IF($H59=0,0,INDEX(N$278:N$370,$H59)) -> 0 | O59: =IF($H59=0,0,INDEX(O$278:O$370,$H59)) -> 0 | P59: =IF($H59=0,0,INDEX(P$278:P$370,$H59)) -> 0 | Q59: =IF($H59=0,0,INDEX(Q$278:Q$370,$H59)) -> 0 | R59: =IF($H59=0,0,INDEX(R$278:R$370,$H59)) -> 0 | S59: =IF($H59=0,0,INDEX(S$278:S$370,$H59)) -> 0 | T59: =IF($H59=0,0,INDEX(T$278:T$370,$H59)) -> 0 | U59: =IF($H59=0,0,INDEX(U$278:U$370,$H59)) -> 0 | V59: =IF($H59=0,0,INDEX(V$278:V$370,$H59)) -> 0 | W59: =IF($H59=0,0,INDEX(W$278:W$370,$H59)) -> 0 | X59: =IF($H59=0,0,INDEX(X$278:X$370,$H59)) -> 0 | Y59: =IF($H59=0,0,INDEX(Y$278:Y$370,$H59)) -> 0 | Z59: =IF($H59=0,0,INDEX(Z$278:Z$370,$H59)) -> 0 | AA59: =IF($H59=0,0,INDEX(AA$278:AA$370,$H59)) -> 0 | AB59: =IF($H59=0,0,INDEX(AB$278:AB$370,$H59)) -> 0 | AC59: =IF($H59=0,0,INDEX(AC$278:AC$370,$H59)) -> 0 | AD59: =IF($H59=0,0,INDEX(AD$278:AD$370,$H59)) -> 0 | AE59: =IF($H59=0,0,INDEX(AE$278:AE$370,$H59)) -> 0 | AF59: =IF($H59=0,0,INDEX(AF$278:AF$370,$H59)) -> 0 | AG59: =IF($H59=0,0,INDEX(AG$278:AG$370,$H59)) -> 0 | AH59: =IF($H59=0,0,INDEX(AH$278:AH$370,$H59)) -> 0 | AI59: =IF($H59=0,0,INDEX(AI$278:AI$370,$H59)) -> 0 | AJ59: =IF($H59=0,0,INDEX(AJ$278:AJ$370,$H59)) -> 0 | AL59: =IF(SUMPRODUCT(--_xlfn.ISFORMULA(C59:AJ59))=34,"OK","CHECK") -> OK
C60: 0 | D60: 0 | E60: 0 | F60: 0 | G60: 0 | H60: 0 | I60: =IF($H60=0,0,INDEX(I$278:I$370,$H60)) -> 0 | J60: =IF($H60=0,0,INDEX(J$278:J$370,$H60)) -> 0 | K60: =IF($H60=0,0,INDEX(K$278:K$370,$H60)) -> 0 | L60: =IF($H60=0,0,INDEX(L$278:L$370,$H60)) -> 0 | M60: =IF($H60=0,0,INDEX(M$278:M$370,$H60)) -> 0 | N60: =IF($H60=0,0,INDEX(N$278:N$370,$H60)) -> 0 | O60: =IF($H60=0,0,INDEX(O$278:O$370,$H60)) -> 0 | P60: =IF($H60=0,0,INDEX(P$278:P$370,$H60)) -> 0 | Q60: =IF($H60=0,0,INDEX(Q$278:Q$370,$H60)) -> 0 | R60: =IF($H60=0,0,INDEX(R$278:R$370,$H60)) -> 0 | S60: =IF($H60=0,0,INDEX(S$278:S$370,$H60)) -> 0 | T60: =IF($H60=0,0,INDEX(T$278:T$370,$H60)) -> 0 | U60: =IF($H60=0,0,INDEX(U$278:U$370,$H60)) -> 0 | V60: =IF($H60=0,0,INDEX(V$278:V$370,$H60)) -> 0 | W60: =IF($H60=0,0,INDEX(W$278:W$370,$H60)) -> 0 | X60: =IF($H60=0,0,INDEX(X$278:X$370,$H60)) -> 0 | Y60: =IF($H60=0,0,INDEX(Y$278:Y$370,$H60)) -> 0 | Z60: =IF($H60=0,0,INDEX(Z$278:Z$370,$H60)) -> 0 | AA60: =IF($H60=0,0,INDEX(AA$278:AA$370,$H60)) -> 0 | AB60: =IF($H60=0,0,INDEX(AB$278:AB$370,$H60)) -> 0 | AC60: =IF($H60=0,0,INDEX(AC$278:AC$370,$H60)) -> 0 | AD60: =IF($H60=0,0,INDEX(AD$278:AD$370,$H60)) -> 0 | AE60: =IF($H60=0,0,INDEX(AE$278:AE$370,$H60)) -> 0 | AF60: =IF($H60=0,0,INDEX(AF$278:AF$370,$H60)) -> 0 | AG60: =IF($H60=0,0,INDEX(AG$278:AG$370,$H60)) -> 0 | AH60: =IF($H60=0,0,INDEX(AH$278:AH$370,$H60)) -> 0 | AI60: =IF($H60=0,0,INDEX(AI$278:AI$370,$H60)) -> 0 | AJ60: =IF($H60=0,0,INDEX(AJ$278:AJ$370,$H60)) -> 0 | AL60: =IF(SUMPRODUCT(--_xlfn.ISFORMULA(C60:AJ60))=34,"OK","CHECK") -> OK
C61: 0 | D61: 0 | E61: 0 | F61: 0 | G61: 0 | H61: 0 | I61: =IF($H61=0,0,INDEX(I$278:I$370,$H61)) -> 0 | J61: =IF($H61=0,0,INDEX(J$278:J$370,$H61)) -> 0 | K61: =IF($H61=0,0,INDEX(K$278:K$370,$H61)) -> 0 | L61: =IF($H61=0,0,INDEX(L$278:L$370,$H61)) -> 0 | M61: =IF($H61=0,0,INDEX(M$278:M$370,$H61)) -> 0 | N61: =IF($H61=0,0,INDEX(N$278:N$370,$H61)) -> 0 | O61: =IF($H61=0,0,INDEX(O$278:O$370,$H61)) -> 0 | P61: =IF($H61=0,0,INDEX(P$278:P$370,$H61)) -> 0 | Q61: =IF($H61=0,0,INDEX(Q$278:Q$370,$H61)) -> 0 | R61: =IF($H61=0,0,INDEX(R$278:R$370,$H61)) -> 0 | S61: =IF($H61=0,0,INDEX(S$278:S$370,$H61)) -> 0 | T61: =IF($H61=0,0,INDEX(T$278:T$370,$H61)) -> 0 | U61: =IF($H61=0,0,INDEX(U$278:U$370,$H61)) -> 0 | V61: =IF($H61=0,0,INDEX(V$278:V$370,$H61)) -> 0 | W61: =IF($H61=0,0,INDEX(W$278:W$370,$H61)) -> 0 | X61: =IF($H61=0,0,INDEX(X$278:X$370,$H61)) -> 0 | Y61: =IF($H61=0,0,INDEX(Y$278:Y$370,$H61)) -> 0 | Z61: =IF($H61=0,0,INDEX(Z$278:Z$370,$H61)) -> 0 | AA61: =IF($H61=0,0,INDEX(AA$278:AA$370,$H61)) -> 0 | AB61: =IF($H61=0,0,INDEX(AB$278:AB$370,$H61)) -> 0 | AC61: =IF($H61=0,0,INDEX(AC$278:AC$370,$H61)) -> 0 | AD61: =IF($H61=0,0,INDEX(AD$278:AD$370,$H61)) -> 0 | AE61: =IF($H61=0,0,INDEX(AE$278:AE$370,$H61)) -> 0 | AF61: =IF($H61=0,0,INDEX(AF$278:AF$370,$H61)) -> 0 | AG61: =IF($H61=0,0,INDEX(AG$278:AG$370,$H61)) -> 0 | AH61: =IF($H61=0,0,INDEX(AH$278:AH$370,$H61)) -> 0 | AI61: =IF($H61=0,0,INDEX(AI$278:AI$370,$H61)) -> 0 | AJ61: =IF($H61=0,0,INDEX(AJ$278:AJ$370,$H61)) -> 0 | AL61: =IF(SUMPRODUCT(--_xlfn.ISFORMULA(C61:AJ61))=34,"OK","CHECK") -> OK
C62: 0 | D62: 0 | E62: 0 | F62: 0 | G62: 0 | H62: 0 | I62: =IF($H62=0,0,INDEX(I$278:I$370,$H62)) -> 0 | J62: =IF($H62=0,0,INDEX(J$278:J$370,$H62)) -> 0 | K62: =IF($H62=0,0,INDEX(K$278:K$370,$H62)) -> 0 | L62: =IF($H62=0,0,INDEX(L$278:L$370,$H62)) -> 0 | M62: =IF($H62=0,0,INDEX(M$278:M$370,$H62)) -> 0 | N62: =IF($H62=0,0,INDEX(N$278:N$370,$H62)) -> 0 | O62: =IF($H62=0,0,INDEX(O$278:O$370,$H62)) -> 0 | P62: =IF($H62=0,0,INDEX(P$278:P$370,$H62)) -> 0 | Q62: =IF($H62=0,0,INDEX(Q$278:Q$370,$H62)) -> 0 | R62: =IF($H62=0,0,INDEX(R$278:R$370,$H62)) -> 0 | S62: =IF($H62=0,0,INDEX(S$278:S$370,$H62)) -> 0 | T62: =IF($H62=0,0,INDEX(T$278:T$370,$H62)) -> 0 | U62: =IF($H62=0,0,INDEX(U$278:U$370,$H62)) -> 0 | V62: =IF($H62=0,0,INDEX(V$278:V$370,$H62)) -> 0 | W62: =IF($H62=0,0,INDEX(W$278:W$370,$H62)) -> 0 | X62: =IF($H62=0,0,INDEX(X$278:X$370,$H62)) -> 0 | Y62: =IF($H62=0,0,INDEX(Y$278:Y$370,$H62)) -> 0 | Z62: =IF($H62=0,0,INDEX(Z$278:Z$370,$H62)) -> 0 | AA62: =IF($H62=0,0,INDEX(AA$278:AA$370,$H62)) -> 0 | AB62: =IF($H62=0,0,INDEX(AB$278:AB$370,$H62)) -> 0 | AC62: =IF($H62=0,0,INDEX(AC$278:AC$370,$H62)) -> 0 | AD62: =IF($H62=0,0,INDEX(AD$278:AD$370,$H62)) -> 0 | AE62: =IF($H62=0,0,INDEX(AE$278:AE$370,$H62)) -> 0 | AF62: =IF($H62=0,0,INDEX(AF$278:AF$370,$H62)) -> 0 | AG62: =IF($H62=0,0,INDEX(AG$278:AG$370,$H62)) -> 0 | AH62: =IF($H62=0,0,INDEX(AH$278:AH$370,$H62)) -> 0 | AI62: =IF($H62=0,0,INDEX(AI$278:AI$370,$H62)) -> 0 | AJ62: =IF($H62=0,0,INDEX(AJ$278:AJ$370,$H62)) -> 0 | AL62: =IF(SUMPRODUCT(--_xlfn.ISFORMULA(C62:AJ62))=34,"OK","CHECK") -> OK
C63: 0 | D63: 0 | E63: 0 | F63: 0 | G63: 0 | H63: 0 | I63: =IF($H63=0,0,INDEX(I$278:I$370,$H63)) -> 0 | J63: =IF($H63=0,0,INDEX(J$278:J$370,$H63)) -> 0 | K63: =IF($H63=0,0,INDEX(K$278:K$370,$H63)) -> 0 | L63: =IF($H63=0,0,INDEX(L$278:L$370,$H63)) -> 0 | M63: =IF($H63=0,0,INDEX(M$278:M$370,$H63)) -> 0 | N63: =IF($H63=0,0,INDEX(N$278:N$370,$H63)) -> 0 | O63: =IF($H63=0,0,INDEX(O$278:O$370,$H63)) -> 0 | P63: =IF($H63=0,0,INDEX(P$278:P$370,$H63)) -> 0 | Q63: =IF($H63=0,0,INDEX(Q$278:Q$370,$H63)) -> 0 | R63: =IF($H63=0,0,INDEX(R$278:R$370,$H63)) -> 0 | S63: =IF($H63=0,0,INDEX(S$278:S$370,$H63)) -> 0 | T63: =IF($H63=0,0,INDEX(T$278:T$370,$H63)) -> 0 | U63: =IF($H63=0,0,INDEX(U$278:U$370,$H63)) -> 0 | V63: =IF($H63=0,0,INDEX(V$278:V$370,$H63)) -> 0 | W63: =IF($H63=0,0,INDEX(W$278:W$370,$H63)) -> 0 | X63: =IF($H63=0,0,INDEX(X$278:X$370,$H63)) -> 0 | Y63: =IF($H63=0,0,INDEX(Y$278:Y$370,$H63)) -> 0 | Z63: =IF($H63=0,0,INDEX(Z$278:Z$370,$H63)) -> 0 | AA63: =IF($H63=0,0,INDEX(AA$278:AA$370,$H63)) -> 0 | AB63: =IF($H63=0,0,INDEX(AB$278:AB$370,$H63)) -> 0 | AC63: =IF($H63=0,0,INDEX(AC$278:AC$370,$H63)) -> 0 | AD63: =IF($H63=0,0,INDEX(AD$278:AD$370,$H63)) -> 0 | AE63: =IF($H63=0,0,INDEX(AE$278:AE$370,$H63)) -> 0 | AF63: =IF($H63=0,0,INDEX(AF$278:AF$370,$H63)) -> 0 | AG63: =IF($H63=0,0,INDEX(AG$278:AG$370,$H63)) -> 0 | AH63: =IF($H63=0,0,INDEX(AH$278:AH$370,$H63)) -> 0 | AI63: =IF($H63=0,0,INDEX(AI$278:AI$370,$H63)) -> 0 | AJ63: =IF($H63=0,0,INDEX(AJ$278:AJ$370,$H63)) -> 0 | AL63: =IF(SUMPRODUCT(--_xlfn.ISFORMULA(C63:AJ63))=34,"OK","CHECK") -> OK
C64: 0 | D64: 0 | E64: 0 | F64: 0 | G64: 0 | H64: 0 | I64: =IF($H64=0,0,INDEX(I$278:I$370,$H64)) -> 0 | J64: =IF($H64=0,0,INDEX(J$278:J$370,$H64)) -> 0 | K64: =IF($H64=0,0,INDEX(K$278:K$370,$H64)) -> 0 | L64: =IF($H64=0,0,INDEX(L$278:L$370,$H64)) -> 0 | M64: =IF($H64=0,0,INDEX(M$278:M$370,$H64)) -> 0 | N64: =IF($H64=0,0,INDEX(N$278:N$370,$H64)) -> 0 | O64: =IF($H64=0,0,INDEX(O$278:O$370,$H64)) -> 0 | P64: =IF($H64=0,0,INDEX(P$278:P$370,$H64)) -> 0 | Q64: =IF($H64=0,0,INDEX(Q$278:Q$370,$H64)) -> 0 | R64: =IF($H64=0,0,INDEX(R$278:R$370,$H64)) -> 0 | S64: =IF($H64=0,0,INDEX(S$278:S$370,$H64)) -> 0 | T64: =IF($H64=0,0,INDEX(T$278:T$370,$H64)) -> 0 | U64: =IF($H64=0,0,INDEX(U$278:U$370,$H64)) -> 0 | V64: =IF($H64=0,0,INDEX(V$278:V$370,$H64)) -> 0 | W64: =IF($H64=0,0,INDEX(W$278:W$370,$H64)) -> 0 | X64: =IF($H64=0,0,INDEX(X$278:X$370,$H64)) -> 0 | Y64: =IF($H64=0,0,INDEX(Y$278:Y$370,$H64)) -> 0 | Z64: =IF($H64=0,0,INDEX(Z$278:Z$370,$H64)) -> 0 | AA64: =IF($H64=0,0,INDEX(AA$278:AA$370,$H64)) -> 0 | AB64: =IF($H64=0,0,INDEX(AB$278:AB$370,$H64)) -> 0 | AC64: =IF($H64=0,0,INDEX(AC$278:AC$370,$H64)) -> 0 | AD64: =IF($H64=0,0,INDEX(AD$278:AD$370,$H64)) -> 0 | AE64: =IF($H64=0,0,INDEX(AE$278:AE$370,$H64)) -> 0 | AF64: =IF($H64=0,0,INDEX(AF$278:AF$370,$H64)) -> 0 | AG64: =IF($H64=0,0,INDEX(AG$278:AG$370,$H64)) -> 0 | AH64: =IF($H64=0,0,INDEX(AH$278:AH$370,$H64)) -> 0 | AI64: =IF($H64=0,0,INDEX(AI$278:AI$370,$H64)) -> 0 | AJ64: =IF($H64=0,0,INDEX(AJ$278:AJ$370,$H64)) -> 0 | AL64: =IF(SUMPRODUCT(--_xlfn.ISFORMULA(C64:AJ64))=34,"OK","CHECK") -> OK
C66: =C373 -> Jurisdictional Scheme Amounts
C67: =C19 -> Residential Flat | D67: SAC | E67: 8400 | F67: SACS Res | G67: SAC8400 | H67: 1 | I67: =IF($H67=0,0,INDEX(I$374:I$466,$H67)) -> 0.04 | J67: =IF($H67=0,0,INDEX(J$374:J$466,$H67)) -> 0 | K67: =IF($H67=0,0,INDEX(K$374:K$466,$H67)) -> 0.00434 | L67: =IF($H67=0,0,INDEX(L$374:L$466,$H67)) -> 0 | M67: =IF($H67=0,0,INDEX(M$374:M$466,$H67)) -> 0 | N67: =IF($H67=0,0,INDEX(N$374:N$466,$H67)) -> 0 | O67: =IF($H67=0,0,INDEX(O$374:O$466,$H67)) -> 0 | P67: =IF($H67=0,0,INDEX(P$374:P$466,$H67)) -> 0 | Q67: =IF($H67=0,0,INDEX(Q$374:Q$466,$H67)) -> 0 | R67: =IF($H67=0,0,INDEX(R$374:R$466,$H67)) -> 0 | S67: =IF($H67=0,0,INDEX(S$374:S$466,$H67)) -> 0 | T67: =IF($H67=0,0,INDEX(T$374:T$466,$H67)) -> 0 | U67: =IF($H67=0,0,INDEX(U$374:U$466,$H67)) -> 0 | V67: =IF($H67=0,0,INDEX(V$374:V$466,$H67)) -> 0 | W67: =IF($H67=0,0,INDEX(W$374:W$466,$H67)) -> 0 | X67: =IF($H67=0,0,INDEX(X$374:X$466,$H67)) -> 0 | Y67: =IF($H67=0,0,INDEX(Y$374:Y$466,$H67)) -> 0 | Z67: =IF($H67=0,0,INDEX(Z$374:Z$466,$H67)) -> 0 | AA67: =IF($H67=0,0,INDEX(AA$374:AA$466,$H67)) -> 0 | AB67: =IF($H67=0,0,INDEX(AB$374:AB$466,$H67)) -> 0 | AC67: =IF($H67=0,0,INDEX(AC$374:AC$466,$H67)) -> 0 | AD67: =IF($H67=0,0,INDEX(AD$374:AD$466,$H67)) -> 0 | AE67: =IF($H67=0,0,INDEX(AE$374:AE$466,$H67)) -> 0 | AF67: =IF($H67=0,0,INDEX(AF$374:AF$466,$H67)) -> 0 | AG67: =IF($H67=0,0,INDEX(AG$374:AG$466,$H67)) -> 0 | AH67: =IF($H67=0,0,INDEX(AH$374:AH$466,$H67)) -> 0 | AI67: =IF($H67=0,0,INDEX(AI$374:AI$466,$H67)) -> 0 | AJ67: =IF($H67=0,0,INDEX(AJ$374:AJ$466,$H67)) -> 0 | AL67: =IF(SUMPRODUCT(--_xlfn.ISFORMULA(C67:AJ67))=34,"OK","CHECK") -> OK
C68: Residential ToU Energy | D68: SAC | E68: 6900 | F68: SACS Res | G68: SAC6900 | H68: 2 | I68: =IF($H68=0,0,INDEX(I$374:I$466,$H68)) -> 0.04 | J68: =IF($H68=0,0,INDEX(J$374:J$466,$H68)) -> 0 | K68: =IF($H68=0,0,INDEX(K$374:K$466,$H68)) -> 0 | L68: =IF($H68=0,0,INDEX(L$374:L$466,$H68)) -> 0.00434 | M68: =IF($H68=0,0,INDEX(M$374:M$466,$H68)) -> 0.00434 | N68: =IF($H68=0,0,INDEX(N$374:N$466,$H68)) -> 0.00434 | O68: =IF($H68=0,0,INDEX(O$374:O$466,$H68)) -> 0 | P68: =IF($H68=0,0,INDEX(P$374:P$466,$H68)) -> 0 | Q68: =IF($H68=0,0,INDEX(Q$374:Q$466,$H68)) -> 0 | R68: =IF($H68=0,0,INDEX(R$374:R$466,$H68)) -> 0 | S68: =IF($H68=0,0,INDEX(S$374:S$466,$H68)) -> 0 | T68: =IF($H68=0,0,INDEX(T$374:T$466,$H68)) -> 0 | U68: =IF($H68=0,0,INDEX(U$374:U$466,$H68)) -> 0 | V68: =IF($H68=0,0,INDEX(V$374:V$466,$H68)) -> 0 | W68: =IF($H68=0,0,INDEX(W$374:W$466,$H68)) -> 0 | X68: =IF($H68=0,0,INDEX(X$374:X$466,$H68)) -> 0 | Y68: =IF($H68=0,0,INDEX(Y$374:Y$466,$H68)) -> 0 | Z68: =IF($H68=0,0,INDEX(Z$374:Z$466,$H68)) -> 0 | AA68: =IF($H68=0,0,INDEX(AA$374:AA$466,$H68)) -> 0 | AB68: =IF($H68=0,0,INDEX(AB$374:AB$466,$H68)) -> 0 | AC68: =IF($H68=0,0,INDEX(AC$374:AC$466,$H68)) -> 0 | AD68: =IF($H68=0,0,INDEX(AD$374:AD$466,$H68)) -> 0 | AE68: =IF($H68=0,0,INDEX(AE$374:AE$466,$H68)) -> 0 | AF68: =IF($H68=0,0,INDEX(AF$374:AF$466,$H68)) -> 0 | AG68: =IF($H68=0,0,INDEX(AG$374:AG$466,$H68)) -> 0 | AH68: =IF($H68=0,0,INDEX(AH$374:AH$466,$H68)) -> 0 | AI68: =IF($H68=0,0,INDEX(AI$374:AI$466,$H68)) -> 0 | AJ68: =IF($H68=0,0,INDEX(AJ$374:AJ$466,$H68)) -> 0 | AL68: =IF(SUMPRODUCT(--_xlfn.ISFORMULA(C68:AJ68))=34,"OK","CHECK") -> OK
C69: Small Business Flat | D69: SAC | E69: 8500 | F69: SACS Bus | G69: SAC8500 | H69: 7 | I69: =IF($H69=0,0,INDEX(I$374:I$466,$H69)) -> 0.04 | J69: =IF($H69=0,0,INDEX(J$374:J$466,$H69)) -> 0 | K69: =IF($H69=0,0,INDEX(K$374:K$466,$H69)) -> 0.00434 | L69: =IF($H69=0,0,INDEX(L$374:L$466,$H69)) -> 0 | M69: =IF($H69=0,0,INDEX(M$374:M$466,$H69)) -> 0 | N69: =IF($H69=0,0,INDEX(N$374:N$466,$H69)) -> 0 | O69: =IF($H69=0,0,INDEX(O$374:O$466,$H69)) -> 0 | P69: =IF($H69=0,0,INDEX(P$374:P$466,$H69)) -> 0 | Q69: =IF($H69=0,0,INDEX(Q$374:Q$466,$H69)) -> 0 | R69: =IF($H69=0,0,INDEX(R$374:R$466,$H69)) -> 0 | S69: =IF($H69=0,0,INDEX(S$374:S$466,$H69)) -> 0 | T69: =IF($H69=0,0,INDEX(T$374:T$466,$H69)) -> 0 | U69: =IF($H69=0,0,INDEX(U$374:U$466,$H69)) -> 0 | V69: =IF($H69=0,0,INDEX(V$374:V$466,$H69)) -> 0 | W69: =IF($H69=0,0,INDEX(W$374:W$466,$H69)) -> 0 | X69: =IF($H69=0,0,INDEX(X$374:X$466,$H69)) -> 0 | Y69: =IF($H69=0,0,INDEX(Y$374:Y$466,$H69)) -> 0 | Z69: =IF($H69=0,0,INDEX(Z$374:Z$466,$H69)) -> 0 | AA69: =IF($H69=0,0,INDEX(AA$374:AA$466,$H69)) -> 0 | AB69: =IF($H69=0,0,INDEX(AB$374:AB$466,$H69)) -> 0 | AC69: =IF($H69=0,0,INDEX(AC$374:AC$466,$H69)) -> 0 | AD69: =IF($H69=0,0,INDEX(AD$374:AD$466,$H69)) -> 0 | AE69: =IF($H69=0,0,INDEX(AE$374:AE$466,$H69)) -> 0 | AF69: =IF($H69=0,0,INDEX(AF$374:AF$466,$H69)) -> 0 | AG69: =IF($H69=0,0,INDEX(AG$374:AG$466,$H69)) -> 0 | AH69: =IF($H69=0,0,INDEX(AH$374:AH$466,$H69)) -> 0 | AI69: =IF($H69=0,0,INDEX(AI$374:AI$466,$H69)) -> 0 | AJ69: =IF($H69=0,0,INDEX(AJ$374:AJ$466,$H69)) -> 0 | AL69: =IF(SUMPRODUCT(--_xlfn.ISFORMULA(C69:AJ69))=34,"OK","CHECK") -> OK
C70: Small Business ToU Energy | D70: SAC | E70: 6800 | F70: SACS Bus | G70: SAC6800 | H70: 8 | I70: =IF($H70=0,0,INDEX(I$374:I$466,$H70)) -> 0.04 | J70: =IF($H70=0,0,INDEX(J$374:J$466,$H70)) -> 0 | K70: =IF($H70=0,0,INDEX(K$374:K$466,$H70)) -> 0 | L70: =IF($H70=0,0,INDEX(L$374:L$466,$H70)) -> 0.00434 | M70: =IF($H70=0,0,INDEX(M$374:M$466,$H70)) -> 0.00434 | N70: =IF($H70=0,0,INDEX(N$374:N$466,$H70)) -> 0.00434 | O70: =IF($H70=0,0,INDEX(O$374:O$466,$H70)) -> 0 | P70: =IF($H70=0,0,INDEX(P$374:P$466,$H70)) -> 0 | Q70: =IF($H70=0,0,INDEX(Q$374:Q$466,$H70)) -> 0 | R70: =IF($H70=0,0,INDEX(R$374:R$466,$H70)) -> 0 | S70: =IF($H70=0,0,INDEX(S$374:S$466,$H70)) -> 0 | T70: =IF($H70=0,0,INDEX(T$374:T$466,$H70)) -> 0 | U70: =IF($H70=0,0,INDEX(U$374:U$466,$H70)) -> 0 | V70: =IF($H70=0,0,INDEX(V$374:V$466,$H70)) -> 0 | W70: =IF($H70=0,0,INDEX(W$374:W$466,$H70)) -> 0 | X70: =IF($H70=0,0,INDEX(X$374:X$466,$H70)) -> 0 | Y70: =IF($H70=0,0,INDEX(Y$374:Y$466,$H70)) -> 0 | Z70: =IF($H70=0,0,INDEX(Z$374:Z$466,$H70)) -> 0 | AA70: =IF($H70=0,0,INDEX(AA$374:AA$466,$H70)) -> 0 | AB70: =IF($H70=0,0,INDEX(AB$374:AB$466,$H70)) -> 0 | AC70: =IF($H70=0,0,INDEX(AC$374:AC$466,$H70)) -> 0 | AD70: =IF($H70=0,0,INDEX(AD$374:AD$466,$H70)) -> 0 | AE70: =IF($H70=0,0,INDEX(AE$374:AE$466,$H70)) -> 0 | AF70: =IF($H70=0,0,INDEX(AF$374:AF$466,$H70)) -> 0 | AG70: =IF($H70=0,0,INDEX(AG$374:AG$466,$H70)) -> 0 | AH70: =IF($H70=0,0,INDEX(AH$374:AH$466,$H70)) -> 0 | AI70: =IF($H70=0,0,INDEX(AI$374:AI$466,$H70)) -> 0 | AJ70: =IF($H70=0,0,INDEX(AJ$374:AJ$466,$H70)) -> 0 | AL70: =IF(SUMPRODUCT(--_xlfn.ISFORMULA(C70:AJ70))=34,"OK","CHECK") -> OK
C71: Controlled Load 1 (Super Economy) | D71: SAC | E71: 9000 | F71: SACS CL | G71: SAC9000 | H71: 14 | I71: =IF($H71=0,0,INDEX(I$374:I$466,$H71)) -> 0 | J71: =IF($H71=0,0,INDEX(J$374:J$466,$H71)) -> 0 | K71: =IF($H71=0,0,INDEX(K$374:K$466,$H71)) -> 0 | L71: =IF($H71=0,0,INDEX(L$374:L$466,$H71)) -> 0 | M71: =IF($H71=0,0,INDEX(M$374:M$466,$H71)) -> 0 | N71: =IF($H71=0,0,INDEX(N$374:N$466,$H71)) -> 0 | O71: =IF($H71=0,0,INDEX(O$374:O$466,$H71)) -> 0 | P71: =IF($H71=0,0,INDEX(P$374:P$466,$H71)) -> 0 | Q71: =IF($H71=0,0,INDEX(Q$374:Q$466,$H71)) -> 0 | R71: =IF($H71=0,0,INDEX(R$374:R$466,$H71)) -> 0 | S71: =IF($H71=0,0,INDEX(S$374:S$466,$H71)) -> 0 | T71: =IF($H71=0,0,INDEX(T$374:T$466,$H71)) -> 0 | U71: =IF($H71=0,0,INDEX(U$374:U$466,$H71)) -> 0 | V71: =IF($H71=0,0,INDEX(V$374:V$466,$H71)) -> 0 | W71: =IF($H71=0,0,INDEX(W$374:W$466,$H71)) -> 0 | X71: =IF($H71=0,0,INDEX(X$374:X$466,$H71)) -> 0 | Y71: =IF($H71=0,0,INDEX(Y$374:Y$466,$H71)) -> 0 | Z71: =IF($H71=0,0,INDEX(Z$374:Z$466,$H71)) -> 0 | AA71: =IF($H71=0,0,INDEX(AA$374:AA$466,$H71)) -> 0 | AB71: =IF($H71=0,0,INDEX(AB$374:AB$466,$H71)) -> 0 | AC71: =IF($H71=0,0,INDEX(AC$374:AC$466,$H71)) -> 0 | AD71: =IF($H71=0,0,INDEX(AD$374:AD$466,$H71)) -> 0 | AE71: =IF($H71=0,0,INDEX(AE$374:AE$466,$H71)) -> 0 | AF71: =IF($H71=0,0,INDEX(AF$374:AF$466,$H71)) -> 0 | AG71: =IF($H71=0,0,INDEX(AG$374:AG$466,$H71)) -> 0 | AH71: =IF($H71=0,0,INDEX(AH$374:AH$466,$H71)) -> 0 | AI71: =IF($H71=0,0,INDEX(AI$374:AI$466,$H71)) -> 0 | AJ71: =IF($H71=0,0,INDEX(AJ$374:AJ$466,$H71)) -> 0 | AL71: =IF(SUMPRODUCT(--_xlfn.ISFORMULA(C71:AJ71))=34,"OK","CHECK") -> OK
C72: Controlled Load 2 (Economy) | D72: SAC | E72: 9100 | F72: SACS CL | G72: SAC9100 | H72: 15 | I72: =IF($H72=0,0,INDEX(I$374:I$466,$H72)) -> 0 | J72: =IF($H72=0,0,INDEX(J$374:J$466,$H72)) -> 0 | K72: =IF($H72=0,0,INDEX(K$374:K$466,$H72)) -> 0 | L72: =IF($H72=0,0,INDEX(L$374:L$466,$H72)) -> 0 | M72: =IF($H72=0,0,INDEX(M$374:M$466,$H72)) -> 0 | N72: =IF($H72=0,0,INDEX(N$374:N$466,$H72)) -> 0 | O72: =IF($H72=0,0,INDEX(O$374:O$466,$H72)) -> 0 | P72: =IF($H72=0,0,INDEX(P$374:P$466,$H72)) -> 0 | Q72: =IF($H72=0,0,INDEX(Q$374:Q$466,$H72)) -> 0 | R72: =IF($H72=0,0,INDEX(R$374:R$466,$H72)) -> 0 | S72: =IF($H72=0,0,INDEX(S$374:S$466,$H72)) -> 0 | T72: =IF($H72=0,0,INDEX(T$374:T$466,$H72)) -> 0 | U72: =IF($H72=0,0,INDEX(U$374:U$466,$H72)) -> 0 | V72: =IF($H72=0,0,INDEX(V$374:V$466,$H72)) -> 0 | W72: =IF($H72=0,0,INDEX(W$374:W$466,$H72)) -> 0 | X72: =IF($H72=0,0,INDEX(X$374:X$466,$H72)) -> 0 | Y72: =IF($H72=0,0,INDEX(Y$374:Y$466,$H72)) -> 0 | Z72: =IF($H72=0,0,INDEX(Z$374:Z$466,$H72)) -> 0 | AA72: =IF($H72=0,0,INDEX(AA$374:AA$466,$H72)) -> 0 | AB72: =IF($H72=0,0,INDEX(AB$374:AB$466,$H72)) -> 0 | AC72: =IF($H72=0,0,INDEX(AC$374:AC$466,$H72)) -> 0 | AD72: =IF($H72=0,0,INDEX(AD$374:AD$466,$H72)) -> 0 | AE72: =IF($H72=0,0,INDEX(AE$374:AE$466,$H72)) -> 0 | AF72: =IF($H72=0,0,INDEX(AF$374:AF$466,$H72)) -> 0 | AG72: =IF($H72=0,0,INDEX(AG$374:AG$466,$H72)) -> 0 | AH72: =IF($H72=0,0,INDEX(AH$374:AH$466,$H72)) -> 0 | AI72: =IF($H72=0,0,INDEX(AI$374:AI$466,$H72)) -> 0 | AJ72: =IF($H72=0,0,INDEX(AJ$374:AJ$466,$H72)) -> 0 | AL72: =IF(SUMPRODUCT(--_xlfn.ISFORMULA(C72:AJ72))=34,"OK","CHECK") -> OK
C73: 0 | D73: 0 | E73: 0 | F73: 0 | G73: 0 | H73: 0 | I73: =IF($H73=0,0,INDEX(I$374:I$466,$H73)) -> 0 | J73: =IF($H73=0,0,INDEX(J$374:J$466,$H73)) -> 0 | K73: =IF($H73=0,0,INDEX(K$374:K$466,$H73)) -> 0 | L73: =IF($H73=0,0,INDEX(L$374:L$466,$H73)) -> 0 | M73: =IF($H73=0,0,INDEX(M$374:M$466,$H73)) -> 0 | N73: =IF($H73=0,0,INDEX(N$374:N$466,$H73)) -> 0 | O73: =IF($H73=0,0,INDEX(O$374:O$466,$H73)) -> 0 | P73: =IF($H73=0,0,INDEX(P$374:P$466,$H73)) -> 0 | Q73: =IF($H73=0,0,INDEX(Q$374:Q$466,$H73)) -> 0 | R73: =IF($H73=0,0,INDEX(R$374:R$466,$H73)) -> 0 | S73: =IF($H73=0,0,INDEX(S$374:S$466,$H73)) -> 0 | T73: =IF($H73=0,0,INDEX(T$374:T$466,$H73)) -> 0 | U73: =IF($H73=0,0,INDEX(U$374:U$466,$H73)) -> 0 | V73: =IF($H73=0,0,INDEX(V$374:V$466,$H73)) -> 0 | W73: =IF($H73=0,0,INDEX(W$374:W$466,$H73)) -> 0 | X73: =IF($H73=0,0,INDEX(X$374:X$466,$H73)) -> 0 | Y73: =IF($H73=0,0,INDEX(Y$374:Y$466,$H73)) -> 0 | Z73: =IF($H73=0,0,INDEX(Z$374:Z$466,$H73)) -> 0 | AA73: =IF($H73=0,0,INDEX(AA$374:AA$466,$H73)) -> 0 | AB73: =IF($H73=0,0,INDEX(AB$374:AB$466,$H73)) -> 0 | AC73: =IF($H73=0,0,INDEX(AC$374:AC$466,$H73)) -> 0 | AD73: =IF($H73=0,0,INDEX(AD$374:AD$466,$H73)) -> 0 | AE73: =IF($H73=0,0,INDEX(AE$374:AE$466,$H73)) -> 0 | AF73: =IF($H73=0,0,INDEX(AF$374:AF$466,$H73)) -> 0 | AG73: =IF($H73=0,0,INDEX(AG$374:AG$466,$H73)) -> 0 | AH73: =IF($H73=0,0,INDEX(AH$374:AH$466,$H73)) -> 0 | AI73: =IF($H73=0,0,INDEX(AI$374:AI$466,$H73)) -> 0 | AJ73: =IF($H73=0,0,INDEX(AJ$374:AJ$466,$H73)) -> 0 | AL73: =IF(SUMPRODUCT(--_xlfn.ISFORMULA(C73:AJ73))=34,"OK","CHECK") -> OK
C74: 0 | D74: 0 | E74: 0 | F74: 0 | G74: 0 | H74: 0 | I74: =IF($H74=0,0,INDEX(I$374:I$466,$H74)) -> 0 | J74: =IF($H74=0,0,INDEX(J$374:J$466,$H74)) -> 0 | K74: =IF($H74=0,0,INDEX(K$374:K$466,$H74)) -> 0 | L74: =IF($H74=0,0,INDEX(L$374:L$466,$H74)) -> 0 | M74: =IF($H74=0,0,INDEX(M$374:M$466,$H74)) -> 0 | N74: =IF($H74=0,0,INDEX(N$374:N$466,$H74)) -> 0 | O74: =IF($H74=0,0,INDEX(O$374:O$466,$H74)) -> 0 | P74: =IF($H74=0,0,INDEX(P$374:P$466,$H74)) -> 0 | Q74: =IF($H74=0,0,INDEX(Q$374:Q$466,$H74)) -> 0 | R74: =IF($H74=0,0,INDEX(R$374:R$466,$H74)) -> 0 | S74: =IF($H74=0,0,INDEX(S$374:S$466,$H74)) -> 0 | T74: =IF($H74=0,0,INDEX(T$374:T$466,$H74)) -> 0 | U74: =IF($H74=0,0,INDEX(U$374:U$466,$H74)) -> 0 | V74: =IF($H74=0,0,INDEX(V$374:V$466,$H74)) -> 0 | W74: =IF($H74=0,0,INDEX(W$374:W$466,$H74)) -> 0 | X74: =IF($H74=0,0,INDEX(X$374:X$466,$H74)) -> 0 | Y74: =IF($H74=0,0,INDEX(Y$374:Y$466,$H74)) -> 0 | Z74: =IF($H74=0,0,INDEX(Z$374:Z$466,$H74)) -> 0 | AA74: =IF($H74=0,0,INDEX(AA$374:AA$466,$H74)) -> 0 | AB74: =IF($H74=0,0,INDEX(AB$374:AB$466,$H74)) -> 0 | AC74: =IF($H74=0,0,INDEX(AC$374:AC$466,$H74)) -> 0 | AD74: =IF($H74=0,0,INDEX(AD$374:AD$466,$H74)) -> 0 | AE74: =IF($H74=0,0,INDEX(AE$374:AE$466,$H74)) -> 0 | AF74: =IF($H74=0,0,INDEX(AF$374:AF$466,$H74)) -> 0 | AG74: =IF($H74=0,0,INDEX(AG$374:AG$466,$H74)) -> 0 | AH74: =IF($H74=0,0,INDEX(AH$374:AH$466,$H74)) -> 0 | AI74: =IF($H74=0,0,INDEX(AI$374:AI$466,$H74)) -> 0 | AJ74: =IF($H74=0,0,INDEX(AJ$374:AJ$466,$H74)) -> 0 | AL74: =IF(SUMPRODUCT(--_xlfn.ISFORMULA(C74:AJ74))=34,"OK","CHECK") -> OK
C75: 0 | D75: 0 | E75: 0 | F75: 0 | G75: 0 | H75: 0 | I75: =IF($H75=0,0,INDEX(I$374:I$466,$H75)) -> 0 | J75: =IF($H75=0,0,INDEX(J$374:J$466,$H75)) -> 0 | K75: =IF($H75=0,0,INDEX(K$374:K$466,$H75)) -> 0 | L75: =IF($H75=0,0,INDEX(L$374:L$466,$H75)) -> 0 | M75: =IF($H75=0,0,INDEX(M$374:M$466,$H75)) -> 0 | N75: =IF($H75=0,0,INDEX(N$374:N$466,$H75)) -> 0 | O75: =IF($H75=0,0,INDEX(O$374:O$466,$H75)) -> 0 | P75: =IF($H75=0,0,INDEX(P$374:P$466,$H75)) -> 0 | Q75: =IF($H75=0,0,INDEX(Q$374:Q$466,$H75)) -> 0 | R75: =IF($H75=0,0,INDEX(R$374:R$466,$H75)) -> 0 | S75: =IF($H75=0,0,INDEX(S$374:S$466,$H75)) -> 0 | T75: =IF($H75=0,0,INDEX(T$374:T$466,$H75)) -> 0 | U75: =IF($H75=0,0,INDEX(U$374:U$466,$H75)) -> 0 | V75: =IF($H75=0,0,INDEX(V$374:V$466,$H75)) -> 0 | W75: =IF($H75=0,0,INDEX(W$374:W$466,$H75)) -> 0 | X75: =IF($H75=0,0,INDEX(X$374:X$466,$H75)) -> 0 | Y75: =IF($H75=0,0,INDEX(Y$374:Y$466,$H75)) -> 0 | Z75: =IF($H75=0,0,INDEX(Z$374:Z$466,$H75)) -> 0 | AA75: =IF($H75=0,0,INDEX(AA$374:AA$466,$H75)) -> 0 | AB75: =IF($H75=0,0,INDEX(AB$374:AB$466,$H75)) -> 0 | AC75: =IF($H75=0,0,INDEX(AC$374:AC$466,$H75)) -> 0 | AD75: =IF($H75=0,0,INDEX(AD$374:AD$466,$H75)) -> 0 | AE75: =IF($H75=0,0,INDEX(AE$374:AE$466,$H75)) -> 0 | AF75: =IF($H75=0,0,INDEX(AF$374:AF$466,$H75)) -> 0 | AG75: =IF($H75=0,0,INDEX(AG$374:AG$466,$H75)) -> 0 | AH75: =IF($H75=0,0,INDEX(AH$374:AH$466,$H75)) -> 0 | AI75: =IF($H75=0,0,INDEX(AI$374:AI$466,$H75)) -> 0 | AJ75: =IF($H75=0,0,INDEX(AJ$374:AJ$466,$H75)) -> 0 | AL75: =IF(SUMPRODUCT(--_xlfn.ISFORMULA(C75:AJ75))=34,"OK","CHECK") -> OK
C76: 0 | D76: 0 | E76: 0 | F76: 0 | G76: 0 | H76: 0 | I76: =IF($H76=0,0,INDEX(I$374:I$466,$H76)) -> 0 | J76: =IF($H76=0,0,INDEX(J$374:J$466,$H76)) -> 0 | K76: =IF($H76=0,0,INDEX(K$374:K$466,$H76)) -> 0 | L76: =IF($H76=0,0,INDEX(L$374:L$466,$H76)) -> 0 | M76: =IF($H76=0,0,INDEX(M$374:M$466,$H76)) -> 0 | N76: =IF($H76=0,0,INDEX(N$374:N$466,$H76)) -> 0 | O76: =IF($H76=0,0,INDEX(O$374:O$466,$H76)) -> 0 | P76: =IF($H76=0,0,INDEX(P$374:P$466,$H76)) -> 0 | Q76: =IF($H76=0,0,INDEX(Q$374:Q$466,$H76)) -> 0 | R76: =IF($H76=0,0,INDEX(R$374:R$466,$H76)) -> 0 | S76: =IF($H76=0,0,INDEX(S$374:S$466,$H76)) -> 0 | T76: =IF($H76=0,0,INDEX(T$374:T$466,$H76)) -> 0 | U76: =IF($H76=0,0,INDEX(U$374:U$466,$H76)) -> 0 | V76: =IF($H76=0,0,INDEX(V$374:V$466,$H76)) -> 0 | W76: =IF($H76=0,0,INDEX(W$374:W$466,$H76)) -> 0 | X76: =IF($H76=0,0,INDEX(X$374:X$466,$H76)) -> 0 | Y76: =IF($H76=0,0,INDEX(Y$374:Y$466,$H76)) -> 0 | Z76: =IF($H76=0,0,INDEX(Z$374:Z$466,$H76)) -> 0 | AA76: =IF($H76=0,0,INDEX(AA$374:AA$466,$H76)) -> 0 | AB76: =IF($H76=0,0,INDEX(AB$374:AB$466,$H76)) -> 0 | AC76: =IF($H76=0,0,INDEX(AC$374:AC$466,$H76)) -> 0 | AD76: =IF($H76=0,0,INDEX(AD$374:AD$466,$H76)) -> 0 | AE76: =IF($H76=0,0,INDEX(AE$374:AE$466,$H76)) -> 0 | AF76: =IF($H76=0,0,INDEX(AF$374:AF$466,$H76)) -> 0 | AG76: =IF($H76=0,0,INDEX(AG$374:AG$466,$H76)) -> 0 | AH76: =IF($H76=0,0,INDEX(AH$374:AH$466,$H76)) -> 0 | AI76: =IF($H76=0,0,INDEX(AI$374:AI$466,$H76)) -> 0 | AJ76: =IF($H76=0,0,INDEX(AJ$374:AJ$466,$H76)) -> 0 | AL76: =IF(SUMPRODUCT(--_xlfn.ISFORMULA(C76:AJ76))=34,"OK","CHECK") -> OK
C77: 0 | D77: 0 | E77: 0 | F77: 0 | G77: 0 | H77: 0 | I77: =IF($H77=0,0,INDEX(I$374:I$466,$H77)) -> 0 | J77: =IF($H77=0,0,INDEX(J$374:J$466,$H77)) -> 0 | K77: =IF($H77=0,0,INDEX(K$374:K$466,$H77)) -> 0 | L77: =IF($H77=0,0,INDEX(L$374:L$466,$H77)) -> 0 | M77: =IF($H77=0,0,INDEX(M$374:M$466,$H77)) -> 0 | N77: =IF($H77=0,0,INDEX(N$374:N$466,$H77)) -> 0 | O77: =IF($H77=0,0,INDEX(O$374:O$466,$H77)) -> 0 | P77: =IF($H77=0,0,INDEX(P$374:P$466,$H77)) -> 0 | Q77: =IF($H77=0,0,INDEX(Q$374:Q$466,$H77)) -> 0 | R77: =IF($H77=0,0,INDEX(R$374:R$466,$H77)) -> 0 | S77: =IF($H77=0,0,INDEX(S$374:S$466,$H77)) -> 0 | T77: =IF($H77=0,0,INDEX(T$374:T$466,$H77)) -> 0 | U77: =IF($H77=0,0,INDEX(U$374:U$466,$H77)) -> 0 | V77: =IF($H77=0,0,INDEX(V$374:V$466,$H77)) -> 0 | W77: =IF($H77=0,0,INDEX(W$374:W$466,$H77)) -> 0 | X77: =IF($H77=0,0,INDEX(X$374:X$466,$H77)) -> 0 | Y77: =IF($H77=0,0,INDEX(Y$374:Y$466,$H77)) -> 0 | Z77: =IF($H77=0,0,INDEX(Z$374:Z$466,$H77)) -> 0 | AA77: =IF($H77=0,0,INDEX(AA$374:AA$466,$H77)) -> 0 | AB77: =IF($H77=0,0,INDEX(AB$374:AB$466,$H77)) -> 0 | AC77: =IF($H77=0,0,INDEX(AC$374:AC$466,$H77)) -> 0 | AD77: =IF($H77=0,0,INDEX(AD$374:AD$466,$H77)) -> 0 | AE77: =IF($H77=0,0,INDEX(AE$374:AE$466,$H77)) -> 0 | AF77: =IF($H77=0,0,INDEX(AF$374:AF$466,$H77)) -> 0 | AG77: =IF($H77=0,0,INDEX(AG$374:AG$466,$H77)) -> 0 | AH77: =IF($H77=0,0,INDEX(AH$374:AH$466,$H77)) -> 0 | AI77: =IF($H77=0,0,INDEX(AI$374:AI$466,$H77)) -> 0 | AJ77: =IF($H77=0,0,INDEX(AJ$374:AJ$466,$H77)) -> 0 | AL77: =IF(SUMPRODUCT(--_xlfn.ISFORMULA(C77:AJ77))=34,"OK","CHECK") -> OK
C78: 0 | D78: 0 | E78: 0 | F78: 0 | G78: 0 | H78: 0 | I78: =IF($H78=0,0,INDEX(I$374:I$466,$H78)) -> 0 | J78: =IF($H78=0,0,INDEX(J$374:J$466,$H78)) -> 0 | K78: =IF($H78=0,0,INDEX(K$374:K$466,$H78)) -> 0 | L78: =IF($H78=0,0,INDEX(L$374:L$466,$H78)) -> 0 | M78: =IF($H78=0,0,INDEX(M$374:M$466,$H78)) -> 0 | N78: =IF($H78=0,0,INDEX(N$374:N$466,$H78)) -> 0 | O78: =IF($H78=0,0,INDEX(O$374:O$466,$H78)) -> 0 | P78: =IF($H78=0,0,INDEX(P$374:P$466,$H78)) -> 0 | Q78: =IF($H78=0,0,INDEX(Q$374:Q$466,$H78)) -> 0 | R78: =IF($H78=0,0,INDEX(R$374:R$466,$H78)) -> 0 | S78: =IF($H78=0,0,INDEX(S$374:S$466,$H78)) -> 0 | T78: =IF($H78=0,0,INDEX(T$374:T$466,$H78)) -> 0 | U78: =IF($H78=0,0,INDEX(U$374:U$466,$H78)) -> 0 | V78: =IF($H78=0,0,INDEX(V$374:V$466,$H78)) -> 0 | W78: =IF($H78=0,0,INDEX(W$374:W$466,$H78)) -> 0 | X78: =IF($H78=0,0,INDEX(X$374:X$466,$H78)) -> 0 | Y78: =IF($H78=0,0,INDEX(Y$374:Y$466,$H78)) -> 0 | Z78: =IF($H78=0,0,INDEX(Z$374:Z$466,$H78)) -> 0 | AA78: =IF($H78=0,0,INDEX(AA$374:AA$466,$H78)) -> 0 | AB78: =IF($H78=0,0,INDEX(AB$374:AB$466,$H78)) -> 0 | AC78: =IF($H78=0,0,INDEX(AC$374:AC$466,$H78)) -> 0 | AD78: =IF($H78=0,0,INDEX(AD$374:AD$466,$H78)) -> 0 | AE78: =IF($H78=0,0,INDEX(AE$374:AE$466,$H78)) -> 0 | AF78: =IF($H78=0,0,INDEX(AF$374:AF$466,$H78)) -> 0 | AG78: =IF($H78=0,0,INDEX(AG$374:AG$466,$H78)) -> 0 | AH78: =IF($H78=0,0,INDEX(AH$374:AH$466,$H78)) -> 0 | AI78: =IF($H78=0,0,INDEX(AI$374:AI$466,$H78)) -> 0 | AJ78: =IF($H78=0,0,INDEX(AJ$374:AJ$466,$H78)) -> 0 | AL78: =IF(SUMPRODUCT(--_xlfn.ISFORMULA(C78:AJ78))=34,"OK","CHECK") -> OK
C79: 0 | D79: 0 | E79: 0 | F79: 0 | G79: 0 | H79: 0 | I79: =IF($H79=0,0,INDEX(I$374:I$466,$H79)) -> 0 | J79: =IF($H79=0,0,INDEX(J$374:J$466,$H79)) -> 0 | K79: =IF($H79=0,0,INDEX(K$374:K$466,$H79)) -> 0 | L79: =IF($H79=0,0,INDEX(L$374:L$466,$H79)) -> 0 | M79: =IF($H79=0,0,INDEX(M$374:M$466,$H79)) -> 0 | N79: =IF($H79=0,0,INDEX(N$374:N$466,$H79)) -> 0 | O79: =IF($H79=0,0,INDEX(O$374:O$466,$H79)) -> 0 | P79: =IF($H79=0,0,INDEX(P$374:P$466,$H79)) -> 0 | Q79: =IF($H79=0,0,INDEX(Q$374:Q$466,$H79)) -> 0 | R79: =IF($H79=0,0,INDEX(R$374:R$466,$H79)) -> 0 | S79: =IF($H79=0,0,INDEX(S$374:S$466,$H79)) -> 0 | T79: =IF($H79=0,0,INDEX(T$374:T$466,$H79)) -> 0 | U79: =IF($H79=0,0,INDEX(U$374:U$466,$H79)) -> 0 | V79: =IF($H79=0,0,INDEX(V$374:V$466,$H79)) -> 0 | W79: =IF($H79=0,0,INDEX(W$374:W$466,$H79)) -> 0 | X79: =IF($H79=0,0,INDEX(X$374:X$466,$H79)) -> 0 | Y79: =IF($H79=0,0,INDEX(Y$374:Y$466,$H79)) -> 0 | Z79: =IF($H79=0,0,INDEX(Z$374:Z$466,$H79)) -> 0 | AA79: =IF($H79=0,0,INDEX(AA$374:AA$466,$H79)) -> 0 | AB79: =IF($H79=0,0,INDEX(AB$374:AB$466,$H79)) -> 0 | AC79: =IF($H79=0,0,INDEX(AC$374:AC$466,$H79)) -> 0 | AD79: =IF($H79=0,0,INDEX(AD$374:AD$466,$H79)) -> 0 | AE79: =IF($H79=0,0,INDEX(AE$374:AE$466,$H79)) -> 0 | AF79: =IF($H79=0,0,INDEX(AF$374:AF$466,$H79)) -> 0 | AG79: =IF($H79=0,0,INDEX(AG$374:AG$466,$H79)) -> 0 | AH79: =IF($H79=0,0,INDEX(AH$374:AH$466,$H79)) -> 0 | AI79: =IF($H79=0,0,INDEX(AI$374:AI$466,$H79)) -> 0 | AJ79: =IF($H79=0,0,INDEX(AJ$374:AJ$466,$H79)) -> 0 | AL79: =IF(SUMPRODUCT(--_xlfn.ISFORMULA(C79:AJ79))=34,"OK","CHECK") -> OK
C80: 0 | D80: 0 | E80: 0 | F80: 0 | G80: 0 | H80: 0 | I80: =IF($H80=0,0,INDEX(I$374:I$466,$H80)) -> 0 | J80: =IF($H80=0,0,INDEX(J$374:J$466,$H80)) -> 0 | K80: =IF($H80=0,0,INDEX(K$374:K$466,$H80)) -> 0 | L80: =IF($H80=0,0,INDEX(L$374:L$466,$H80)) -> 0 | M80: =IF($H80=0,0,INDEX(M$374:M$466,$H80)) -> 0 | N80: =IF($H80=0,0,INDEX(N$374:N$466,$H80)) -> 0 | O80: =IF($H80=0,0,INDEX(O$374:O$466,$H80)) -> 0 | P80: =IF($H80=0,0,INDEX(P$374:P$466,$H80)) -> 0 | Q80: =IF($H80=0,0,INDEX(Q$374:Q$466,$H80)) -> 0 | R80: =IF($H80=0,0,INDEX(R$374:R$466,$H80)) -> 0 | S80: =IF($H80=0,0,INDEX(S$374:S$466,$H80)) -> 0 | T80: =IF($H80=0,0,INDEX(T$374:T$466,$H80)) -> 0 | U80: =IF($H80=0,0,INDEX(U$374:U$466,$H80)) -> 0 | V80: =IF($H80=0,0,INDEX(V$374:V$466,$H80)) -> 0 | W80: =IF($H80=0,0,INDEX(W$374:W$466,$H80)) -> 0 | X80: =IF($H80=0,0,INDEX(X$374:X$466,$H80)) -> 0 | Y80: =IF($H80=0,0,INDEX(Y$374:Y$466,$H80)) -> 0 | Z80: =IF($H80=0,0,INDEX(Z$374:Z$466,$H80)) -> 0 | AA80: =IF($H80=0,0,INDEX(AA$374:AA$466,$H80)) -> 0 | AB80: =IF($H80=0,0,INDEX(AB$374:AB$466,$H80)) -> 0 | AC80: =IF($H80=0,0,INDEX(AC$374:AC$466,$H80)) -> 0 | AD80: =IF($H80=0,0,INDEX(AD$374:AD$466,$H80)) -> 0 | AE80: =IF($H80=0,0,INDEX(AE$374:AE$466,$H80)) -> 0 | AF80: =IF($H80=0,0,INDEX(AF$374:AF$466,$H80)) -> 0 | AG80: =IF($H80=0,0,INDEX(AG$374:AG$466,$H80)) -> 0 | AH80: =IF($H80=0,0,INDEX(AH$374:AH$466,$H80)) -> 0 | AI80: =IF($H80=0,0,INDEX(AI$374:AI$466,$H80)) -> 0 | AJ80: =IF($H80=0,0,INDEX(AJ$374:AJ$466,$H80)) -> 0 | AL80: =IF(SUMPRODUCT(--_xlfn.ISFORMULA(C80:AJ80))=34,"OK","CHECK") -> OK
B83: ="Tariff schedule 3 | "&forecastyear&" prices" -> Tariff schedule 3 | 2026–27 prices | D83: Tariff class | E83: =tariffid1 -> Code/NMI | F83: =tariffid2 -> Secondary class | G83: =tariffid3 -> Combined | I83: ='Prop. prices'!I5 -> Fixed | J83: ='Prop. prices'!J5 -> Connection | K83: ='Prop. prices'!K5 -> Anytime | L83: ='Prop. prices'!L5 -> Peak | M83: ='Prop. prices'!M5 -> Off-peak | N83: ='Prop. prices'!N5 -> Shoulder | O83: ='Prop. prices'!O5 -> General | P83: ='Prop. prices'!P5 -> Common | Q83: ='Prop. prices'!Q5 -> Dmd kVA | R83: ='Prop. prices'!R5 -> Pk Dmd kVA | S83: ='Prop. prices'!S5 -> Shd Dmd kVA | T83: ='Prop. prices'!T5 -> Opk Dmd kVA | U83: ='Prop. prices'!U5 -> Dmd kW | V83: ='Prop. prices'!V5 -> Pk Dmd kW | W83: ='Prop. prices'!W5 -> Shd Dmd kW | X83: ='Prop. prices'!X5 -> Opk Dmd kW | Y83: ='Prop. prices'!Y5 -> Location | Z83: ='Prop. prices'!Z5 -> Capacity | AA83: ='Prop. prices'!AA5 -> CPP import | AB83: ='Prop. prices'!AB5 -> CPP export | AC83: ='Prop. prices'!AC5 -> CPP E reward | AD83: ='Prop. prices'!AD5 -> CPP E reward | AE83: ='Prop. prices'!AE5 -> CPP I reward | AF83: ='Prop. prices'!AF5 -> CPPI charge | AG83: ='Prop. prices'!AG5 -> CPPE charge | AH83: ='Prop. prices'!AH5 -> Vol Exp charge | AI83: ='Prop. prices'!AI5 -> Vol Exp reward | AJ83: ='Prop. prices'!AJ5 -> 0
I84: ='Prop. prices'!I6 -> $/day | J84: ='Prop. prices'!J6 -> $/day | K84: ='Prop. prices'!K6 -> $/kWh | L84: ='Prop. prices'!L6 -> $/kWh | M84: ='Prop. prices'!M6 -> $/kWh | N84: ='Prop. prices'!N6 -> $/kWh | O84: ='Prop. prices'!O6 -> $/kWh | P84: ='Prop. prices'!P6 -> $/kWh | Q84: ='Prop. prices'!Q6 -> $/kVA | R84: ='Prop. prices'!R6 -> $/kVA | S84: ='Prop. prices'!S6 -> $/kVA | T84: ='Prop. prices'!T6 -> $/kVA | U84: ='Prop. prices'!U6 -> $/kW | V84: ='Prop. prices'!V6 -> $/kW | W84: ='Prop. prices'!W6 -> $/kW | X84: ='Prop. prices'!X6 -> $/kW | Y84: ='Prop. prices'!Y6 -> $/kW | Z84: ='Prop. prices'!Z6 -> $/kVA/month | AA84: ='Prop. prices'!AA6 -> $/kVA | AB84: ='Prop. prices'!AB6 -> $/kW | AC84: ='Prop. prices'!AC6 -> $/kW | AD84: ='Prop. prices'!AD6 -> $/kWh | AE84: ='Prop. prices'!AE6 -> $/kWh | AF84: ='Prop. prices'!AF6 -> $/kWh | AG84: ='Prop. prices'!AG6 -> $/kWh | AH84: ='Prop. prices'!AH6 -> $/kWh | AI84: ='Prop. prices'!AI6 -> $/kWh | AJ84: ='Prop. prices'!AJ6 -> 
C85: Total network prices
C86: =Qty!C36 -> Residential Flat | D86: =Qty!D36 -> SAC | E86: =Qty!E36 -> 8400 | F86: =Qty!F36 -> SACS Res | G86: =Qty!G36 -> SAC8400 | I86: =I182+I278+I374 -> 0.871 | J86: 0 | K86: 0.09391 | L86: 0 | M86: 0 | N86: 0 | O86: 0 | P86: 0 | Q86: 0 | R86: 0 | S86: 0 | T86: 0 | U86: 0 | V86: 0 | W86: 0 | X86: 0 | Y86: 0 | Z86: 0 | AA86: 0 | AB86: 0 | AC86: 0 | AD86: 0 | AE86: 0 | AF86: 0 | AG86: 0 | AH86: 0 | AI86: 0 | AJ86: 0 | AL86: =IF(SUMPRODUCT(--_xlfn.ISFORMULA(C86:AJ86))=33,"OK","CHECK") -> OK
C87: =Qty!C37 -> Residential ToU Energy | D87: =Qty!D37 -> SAC | E87: =Qty!E37 -> 6900 | F87: =Qty!F37 -> SACS Res | G87: =Qty!G37 -> SAC6900 | I87: 0.651 | J87: 0 | K87: 0 | L87: 0.19533 | M87: 0.00434 | N87: 0.06069 | O87: 0 | P87: 0 | Q87: 0 | R87: 0 | S87: 0 | T87: 0 | U87: 0 | V87: 0 | W87: 0 | X87: 0 | Y87: 0 | Z87: 0 | AA87: 0 | AB87: 0 | AC87: 0 | AD87: 0 | AE87: 0 | AF87: 0 | AG87: 0 | AH87: 0 | AI87: 0 | AJ87: 0 | AL87: =IF(SUMPRODUCT(--_xlfn.ISFORMULA(C87:AJ87))=33,"OK","CHECK") -> OK
C88: =Qty!C38 -> Residential TOU Demand&Energy | D88: =Qty!D38 -> SAC | E88: =Qty!E38 -> 3900 | F88: =Qty!F38 -> SACS Res | G88: =Qty!G38 -> SAC3900 | I88: 0.451 | J88: 0 | K88: 0 | L88: 0.02533 | M88: 0.00434 | N88: 0.06069 | O88: 0 | P88: 0 | Q88: 0 | R88: 0 | S88: 0 | T88: 0 | U88: 0 | V88: 7 | W88: 0 | X88: 0 | Y88: 0 | Z88: 0 | AA88: 0 | AB88: 0 | AC88: 0 | AD88: 0 | AE88: 0 | AF88: 0 | AG88: 0 | AH88: 0 | AI88: 0 | AJ88: 0 | AL88: =IF(SUMPRODUCT(--_xlfn.ISFORMULA(C88:AJ88))=33,"OK","CHECK") -> OK
C89: =Qty!C39 -> Residential Flexible Load | D89: =Qty!D39 -> SAC | E89: =Qty!E39 -> TBA13 | F89: =Qty!F39 -> SACS Res | G89: =Qty!G39 -> SACTBA13 | I89: 0 | J89: 0 | K89: 0 | L89: 0 | M89: 0 | N89: 0 | O89: 0 | P89: 0 | Q89: 0 | R89: 0 | S89: 0 | T89: 0 | U89: 0 | V89: 0 | W89: 0 | X89: 0 | Y89: 0 | Z89: 0 | AA89: 0 | AB89: 0 | AC89: 0 | AD89: 0 | AE89: 0 | AF89: 0 | AG89: 0 | AH89: 0 | AI89: 0 | AJ89: 0 | AL89: =IF(SUMPRODUCT(--_xlfn.ISFORMULA(C89:AJ89))=33,"OK","CHECK") -> OK
C90: =Qty!C40 -> Residential Demand | D90: =Qty!D40 -> SAC | E90: =Qty!E40 -> TBA11 | F90: =Qty!F40 -> SACS Res | G90: =Qty!G40 -> SACTBA11 | I90: 0 | J90: 0 | K90: 0 | L90: 0 | M90: 0 | N90: 0 | O90: 0 | P90: 0 | Q90: 0 | R90: 0 | S90: 0 | T90: 0 | U90: 0 | V90: 0 | W90: 0 | X90: 0 | Y90: 0 | Z90: 0 | AA90: 0 | AB90: 0 | AC90: 0 | AD90: 0 | AE90: 0 | AF90: 0 | AG90: 0 | AH90: 0 | AI90: 0 | AJ90: 0 | AL90: =IF(SUMPRODUCT(--_xlfn.ISFORMULA(C90:AJ90))=33,"OK","CHECK") -> OK
C91: =Qty!C41 -> 0 | D91: =Qty!D41 -> 0 | E91: =Qty!E41 -> 0 | F91: =Qty!F41 -> 0 | G91: =Qty!G41 -> 0 | I91: 0 | J91: 0 | K91: 0 | L91: 0 | M91: 0 | N91: 0 | O91: 0 | P91: 0 | Q91: 0 | R91: 0 | S91: 0 | T91: 0 | U91: 0 | V91: 0 | W91: 0 | X91: 0 | Y91: 0 | Z91: 0 | AA91: 0 | AB91: 0 | AC91: 0 | AD91: 0 | AE91: 0 | AF91: 0 | AG91: 0 | AH91: 0 | AI91: 0 | AJ91: 0 | AL91: =IF(SUMPRODUCT(--_xlfn.ISFORMULA(C91:AJ91))=33,"OK","CHECK") -> OK
C92: =Qty!C42 -> Small Business Flat | D92: =Qty!D42 -> SAC | E92: =Qty!E42 -> 8500 | F92: =Qty!F42 -> SACS Bus | G92: =Qty!G42 -> SAC8500 | I92: 1.224 | J92: 0 | K92: 0.1076 | L92: 0 | M92: 0 | N92: 0 | O92: 0 | P92: 0 | Q92: 0 | R92: 0 | S92: 0 | T92: 0 | U92: 0 | V92: 0 | W92: 0 | X92: 0 | Y92: 0 | Z92: 0 | AA92: 0 | AB92: 0 | AC92: 0 | AD92: 0 | AE92: 0 | AF92: 0 | AG92: 0 | AH92: 0 | AI92: 0 | AJ92: 0 | AL92: =IF(SUMPRODUCT(--_xlfn.ISFORMULA(C92:AJ92))=33,"OK","CHECK") -> OK
C93: =Qty!C43 -> Small Business ToU Energy | D93: =Qty!D43 -> SAC | E93: =Qty!E43 -> 6800 | F93: =Qty!F43 -> SACS Bus | G93: =Qty!G43 -> SAC6800 | I93: 1.221 | J93: 0 | K93: 0 | L93: 0.26318 | M93: 0.01627 | N93: 0.07695 | O93: 0 | P93: 0 | Q93: 0 | R93: 0 | S93: 0 | T93: 0 | U93: 0 | V93: 0 | W93: 0 | X93: 0 | Y93: 0 | Z93: 0 | AA93: 0 | AB93: 0 | AC93: 0 | AD93: 0 | AE93: 0 | AF93: 0 | AG93: 0 | AH93: 0 | AI93: 0 | AJ93: 0 | AL93: =IF(SUMPRODUCT(--_xlfn.ISFORMULA(C93:AJ93))=33,"OK","CHECK") -> OK
C94: =Qty!C44 -> Small Business TOU Demand&Energy | D94: =Qty!D44 -> SAC | E94: =Qty!E44 -> 3800 | F94: =Qty!F44 -> SACS Bus | G94: =Qty!G44 -> SAC3800 | I94: 0.863 | J94: 0 | K94: 0 | L94: 0.02318 | M94: 0.01627 | N94: 0.0822 | O94: 0 | P94: 0 | Q94: 0 | R94: 0 | S94: 0 | T94: 0 | U94: 0 | V94: 7 | W94: 0 | X94: 0 | Y94: 0 | Z94: 0 | AA94: 0 | AB94: 0 | AC94: 0 | AD94: 0 | AE94: 0 | AF94: 0 | AG94: 0 | AH94: 0 | AI94: 0 | AJ94: 0 | AL94: =IF(SUMPRODUCT(--_xlfn.ISFORMULA(C94:AJ94))=33,"OK","CHECK") -> OK
C95: =Qty!C45 -> Small Business Primary Load Control | D95: =Qty!D45 -> SAC | E95: =Qty!E45 -> 5700 | F95: =Qty!F45 -> SACS Bus | G95: =Qty!G45 -> SAC5700 | I95: 0.863 | J95: 0 | K95: 0.05586 | L95: =L191+L287+L383 -> 0 | M95: 0 | N95: 0 | O95: 0 | P95: 0 | Q95: 0 | R95: 0 | S95: 0 | T95: 0 | U95: 0 | V95: 0 | W95: 0 | X95: 0 | Y95: 0 | Z95: 0 | AA95: 0 | AB95: 0 | AC95: 0 | AD95: 0 | AE95: 0 | AF95: 0 | AG95: 0 | AH95: 0 | AI95: 0 | AJ95: 0 | AL95: =IF(SUMPRODUCT(--_xlfn.ISFORMULA(C95:AJ95))=33,"OK","CHECK") -> OK
C96: =Qty!C46 -> Small Business Flexible Load | D96: =Qty!D46 -> SAC | E96: =Qty!E46 -> TBA10 | F96: =Qty!F46 -> SACS Bus | G96: =Qty!G46 -> SACTBA10 | I96: =I192+I288+I384 -> 0 | J96: 0 | K96: 0 | L96: 0 | M96: 0 | N96: 0 | O96: 0 | P96: 0 | Q96: 0 | R96: 0 | S96: 0 | T96: 0 | U96: 0 | V96: 0 | W96: 0 | X96: 0 | Y96: 0 | Z96: 0 | AA96: 0 | AB96: 0 | AC96: 0 | AD96: 0 | AE96: 0 | AF96: 0 | AG96: 0 | AH96: 0 | AI96: 0 | AJ96: 0 | AL96: =IF(SUMPRODUCT(--_xlfn.ISFORMULA(C96:AJ96))=33,"OK","CHECK") -> OK
C97: =Qty!C47 -> Small Business Demand | D97: =Qty!D47 -> SAC | E97: =Qty!E47 -> TBA8 | F97: =Qty!F47 -> SACS Bus | G97: =Qty!G47 -> SACTBA8 | I97: 0 | J97: 0 | K97: 0 | L97: 0 | M97: 0 | N97: 0 | O97: 0 | P97: 0 | Q97: 0 | R97: 0 | S97: 0 | T97: 0 | U97: 0 | V97: 0 | W97: 0 | X97: 0 | Y97: 0 | Z97: 0 | AA97: 0 | AB97: 0 | AC97: 0 | AD97: 0 | AE97: 0 | AF97: 0 | AG97: 0 | AH97: 0 | AI97: 0 | AJ97: 0 | AL97: =IF(SUMPRODUCT(--_xlfn.ISFORMULA(C97:AJ97))=33,"OK","CHECK") -> OK
C98: =Qty!C48 -> 0 | D98: =Qty!D48 -> 0 | E98: =Qty!E48 -> 0 | F98: =Qty!F48 -> 0 | G98: =Qty!G48 -> 0 | I98: 0 | J98: 0 | K98: 0 | L98: 0 | M98: 0 | N98: 0 | O98: 0 | P98: 0 | Q98: 0 | R98: 0 | S98: 0 | T98: 0 | U98: 0 | V98: 0 | W98: 0 | X98: 0 | Y98: 0 | Z98: 0 | AA98: 0 | AB98: 0 | AC98: 0 | AD98: 0 | AE98: 0 | AF98: 0 | AG98: 0 | AH98: 0 | AI98: 0 | AJ98: 0 | AL98: =IF(SUMPRODUCT(--_xlfn.ISFORMULA(C98:AJ98))=33,"OK","CHECK") -> OK
C99: =Qty!C49 -> Controlled Load 1 (Super Economy) | D99: =Qty!D49 -> SAC | E99: =Qty!E49 -> 9000 | F99: =Qty!F49 -> SACS CL | G99: =Qty!G49 -> SAC9000 | I99: 0 | J99: 0 | K99: 0.02675 | L99: 0 | M99: 0 | N99: 0 | O99: 0 | P99: 0 | Q99: 0 | R99: 0 | S99: 0 | T99: 0 | U99: 0 | V99: 0 | W99: 0 | X99: 0 | Y99: 0 | Z99: 0 | AA99: 0 | AB99: 0 | AC99: 0 | AD99: 0 | AE99: 0 | AF99: 0 | AG99: 0 | AH99: 0 | AI99: 0 | AJ99: 0 | AL99: =IF(SUMPRODUCT(--_xlfn.ISFORMULA(C99:AJ99))=33,"OK","CHECK") -> OK
C100: =Qty!C50 -> Controlled Load 2 (Economy) | D100: =Qty!D50 -> SAC | E100: =Qty!E50 -> 9100 | F100: =Qty!F50 -> SACS CL | G100: =Qty!G50 -> SAC9100 | I100: 0 | J100: 0 | K100: 0.02675 | L100: 0 | M100: 0 | N100: 0 | O100: 0 | P100: 0 | Q100: 0 | R100: 0 | S100: 0 | T100: 0 | U100: 0 | V100: 0 | W100: 0 | X100: 0 | Y100: 0 | Z100: 0 | AA100: 0 | AB100: 0 | AC100: 0 | AD100: 0 | AE100: 0 | AF100: 0 | AG100: 0 | AH100: 0 | AI100: 0 | AJ100: 0 | AL100: =IF(SUMPRODUCT(--_xlfn.ISFORMULA(C100:AJ100))=33,"OK","CHECK") -> OK
C101: =Qty!C51 -> Unmetered | D101: =Qty!D51 -> SAC | E101: =Qty!E51 -> 9600 | F101: =Qty!F51 -> SACS Unm | G101: =Qty!G51 -> SAC9600 | I101: 0 | J101: 0 | K101: 0.08922 | L101: 0 | M101: 0 | N101: 0 | O101: 0 | P101: 0 | Q101: 0 | R101: 0 | S101: 0 | T101: 0 | U101: 0 | V101: 0 | W101: 0 | X101: 0 | Y101: 0 | Z101: 0 | AA101: 0 | AB101: 0 | AC101: 0 | AD101: 0 | AE101: 0 | AF101: 0 | AG101: 0 | AH101: 0 | AI101: 0 | AJ101: 0 | AL101: =IF(SUMPRODUCT(--_xlfn.ISFORMULA(C101:AJ101))=33,"OK","CHECK") -> OK
C102: =Qty!C52 -> 0 | D102: =Qty!D52 -> 0 | E102: =Qty!E52 -> 0 | F102: =Qty!F52 -> 0 | G102: =Qty!G52 -> 0 | I102: 0 | J102: 0 | K102: 0 | L102: 0 | M102: 0 | N102: 0 | O102: 0 | P102: 0 | Q102: 0 | R102: 0 | S102: 0 | T102: 0 | U102: 0 | V102: 0 | W102: 0 | X102: 0 | Y102: 0 | Z102: 0 | AA102: 0 | AB102: 0 | AC102: 0 | AD102: 0 | AE102: 0 | AF102: 0 | AG102: 0 | AH102: 0 | AI102: 0 | AJ102: 0 | AL102: =IF(SUMPRODUCT(--_xlfn.ISFORMULA(C102:AJ102))=33,"OK","CHECK") -> OK
C103: =Qty!C53 -> Demand Small | D103: =Qty!D53 -> SAC | E103: =Qty!E53 -> 8300 | F103: =Qty!F53 -> SACL | G103: =Qty!G53 -> SAC8300 | I103: 10.317 | J103: 0 | K103: 0.03365 | L103: 0 | M103: 0 | N103: 0 | O103: 0 | P103: 0 | Q103: 13.913 | R103: 0 | S103: 0 | T103: 0 | U103: 0 | V103: 0 | W103: 0 | X103: 0 | Y103: 0 | Z103: 0 | AA103: 0 | AB103: 0 | AC103: 0 | AD103: 0 | AE103: 0 | AF103: 0 | AG103: 0 | AH103: 0 | AI103: 0 | AJ103: 0 | AL103: =IF(SUMPRODUCT(--_xlfn.ISFORMULA(C103:AJ103))=33,"OK","CHECK") -> OK
C104: =Qty!C54 -> Large TOU Demand&Energy | D104: =Qty!D54 -> SAC | E104: =Qty!E54 -> 7200 | F104: =Qty!F54 -> SACL | G104: =Qty!G54 -> SAC7200 | I104: 9.134 | J104: 0 | K104: 0 | L104: 0.01876 | M104: 0.01627 | N104: 0.02947 | O104: 0 | P104: 0 | Q104: 0 | R104: 13.913 | S104: 3.672 | T104: 0 | U104: 0 | V104: 15.459 | W104: 4.08 | X104: 0 | Y104: 0 | Z104: 0 | AA104: 0 | AB104: 0 | AC104: 0 | AD104: 0 | AE104: 0 | AF104: 0 | AG104: 0 | AH104: 0 | AI104: 0 | AJ104: 0 | AL104: =IF(SUMPRODUCT(--_xlfn.ISFORMULA(C104:AJ104))=33,"OK","CHECK") -> OK
C105: =Qty!C55 -> Large Business Energy | D105: =Qty!D55 -> SAC | E105: =Qty!E55 -> 6700 | F105: =Qty!F55 -> SACL | G105: =Qty!G55 -> SAC6700 | I105: 8.759 | J105: 0 | K105: 0.11191 | L105: =L201+L297+L393 -> 0 | M105: 0 | N105: 0 | O105: 0 | P105: 0 | Q105: 0 | R105: 0 | S105: 0 | T105: 0 | U105: 0 | V105: 0 | W105: 0 | X105: 0 | Y105: 0 | Z105: 0 | AA105: 0 | AB105: 0 | AC105: 0 | AD105: 0 | AE105: 0 | AF105: 0 | AG105: 0 | AH105: 0 | AI105: 0 | AJ105: 0 | AL105: =IF(SUMPRODUCT(--_xlfn.ISFORMULA(C105:AJ105))=33,"OK","CHECK") -> OK
C106: =Qty!C56 -> Large TOU Energy | D106: =Qty!D56 -> SAC | E106: =Qty!E56 -> 94300 | F106: =Qty!F56 -> SACL | G106: =Qty!G56 -> SAC94300 | I106: =I202+I298+I394 -> 7.777 | J106: 0 | K106: 0 | L106: 0.25876 | M106: 0.01627 | N106: 0.1954 | O106: 0 | P106: 0 | Q106: 0 | R106: 0 | S106: 0 | T106: 0 | U106: 0 | V106: 0 | W106: 0 | X106: 0 | Y106: 0 | Z106: 0 | AA106: 0 | AB106: 0 | AC106: 0 | AD106: 0 | AE106: 0 | AF106: 0 | AG106: 0 | AH106: 0 | AI106: 0 | AJ106: 0 | AL106: =IF(SUMPRODUCT(--_xlfn.ISFORMULA(C106:AJ106))=33,"OK","CHECK") -> OK
C107: =Qty!C57 -> Large Business Primary Load Control | D107: =Qty!D57 -> SAC | E107: =Qty!E57 -> 5800 | F107: =Qty!F57 -> SACL | G107: =Qty!G57 -> SAC5800 | I107: 9.134 | J107: 0 | K107: 0.06987 | L107: 0 | M107: 0 | N107: 0 | O107: 0 | P107: 0 | Q107: 0 | R107: 0 | S107: 0 | T107: 0 | U107: 0 | V107: 0 | W107: 0 | X107: 0 | Y107: 0 | Z107: 0 | AA107: 0 | AB107: 0 | AC107: 0 | AD107: 0 | AE107: 0 | AF107: 0 | AG107: 0 | AH107: 0 | AI107: 0 | AJ107: 0 | AL107: =IF(SUMPRODUCT(--_xlfn.ISFORMULA(C107:AJ107))=33,"OK","CHECK") -> OK
C108: =Qty!C58 -> Large Business Secondary Load Control | D108: =Qty!D58 -> SAC | E108: =Qty!E58 -> 5900 | F108: =Qty!F58 -> SACL CL | G108: =Qty!G58 -> SAC5900 | I108: 0 | J108: 0 | K108: 0.06987 | L108: 0 | M108: 0 | N108: 0 | O108: 0 | P108: 0 | Q108: 0 | R108: 0 | S108: 0 | T108: 0 | U108: 0 | V108: 0 | W108: 0 | X108: 0 | Y108: 0 | Z108: 0 | AA108: 0 | AB108: 0 | AC108: 0 | AD108: 0 | AE108: 0 | AF108: 0 | AG108: 0 | AH108: 0 | AI108: 0 | AJ108: 0 | AL108: =IF(SUMPRODUCT(--_xlfn.ISFORMULA(C108:AJ108))=33,"OK","CHECK") -> OK
C109: =Qty!C59 -> Large Dynamic Flex Storage | D109: =Qty!D59 -> SAC | E109: =Qty!E59 -> 94000 | F109: =Qty!F59 -> SACL | G109: =Qty!G59 -> SAC94000 | I109: 8.382 | J109: 0 | K109: 0 | L109: 0.01876 | M109: 0 | N109: 0 | O109: 0 | P109: 0 | Q109: 0 | R109: 0 | S109: 0 | T109: 0 | U109: 0 | V109: 0 | W109: 0 | X109: 0 | Y109: 0 | Z109: 0 | AA109: 0 | AB109: 0 | AC109: 0 | AD109: 0 | AE109: 0 | AF109: 0 | AG109: 0 | AH109: 0 | AI109: 0 | AJ109: 0 | AL109: =IF(SUMPRODUCT(--_xlfn.ISFORMULA(C109:AJ109))=33,"OK","CHECK") -> OK
C110: =Qty!C60 -> 0 | D110: =Qty!D60 -> 0 | E110: =Qty!E60 -> 0 | F110: =Qty!F60 -> 0 | G110: =Qty!G60 -> 0 | I110: 0 | J110: 0 | K110: 0 | L110: 0 | M110: 0 | N110: 0 | O110: 0 | P110: 0 | Q110: 0 | R110: 0 | S110: 0 | T110: 0 | U110: 0 | V110: 0 | W110: 0 | X110: 0 | Y110: 0 | Z110: 0 | AA110: 0 | AB110: 0 | AC110: 0 | AD110: 0 | AE110: 0 | AF110: 0 | AG110: 0 | AH110: 0 | AI110: 0 | AJ110: 0 | AL110: =IF(SUMPRODUCT(--_xlfn.ISFORMULA(C110:AJ110))=33,"OK","CHECK") -> OK
C111: =Qty!C61 -> 11kV ToU Demand | D111: =Qty!D61 -> CAC | E111: =Qty!E61 -> 7400 | F111: =Qty!F61 -> HVL | G111: =Qty!G61 -> CAC7400 | I111: 25.986 | J111: 7.525 | K111: 0.0223 | L111: 0 | M111: 0 | N111: 0 | O111: 0 | P111: 0 | Q111: 0 | R111: 12.018 | S111: 0 | T111: 0 | U111: 0 | V111: 0 | W111: 0 | X111: 0 | Y111: 0 | Z111: 0 | AA111: 0 | AB111: 0 | AC111: 0 | AD111: 0 | AE111: 0 | AF111: 0 | AG111: 0 | AH111: 0 | AI111: 0 | AJ111: 0 | AL111: =IF(SUMPRODUCT(--_xlfn.ISFORMULA(C111:AJ111))=33,"OK","CHECK") -> OK
C112: =Qty!C62 -> 11 kV Bus | D112: =Qty!D62 -> CAC | E112: =Qty!E62 -> 4000 | F112: =Qty!F62 -> HVB | G112: =Qty!G62 -> CAC4000 | I112: 110.27 | J112: 7.525 | K112: 0 | L112: 0.01379 | M112: 0.01379 | N112: 0 | O112: 0 | P112: 0 | Q112: 8.495 | R112: 0 | S112: 0 | T112: 0 | U112: 0 | V112: 0 | W112: 0 | X112: 0 | Y112: 0 | Z112: 0 | AA112: 0 | AB112: 0 | AC112: 0 | AD112: 0 | AE112: 0 | AF112: 0 | AG112: 0 | AH112: 0 | AI112: 0 | AJ112: 0 | AL112: =IF(SUMPRODUCT(--_xlfn.ISFORMULA(C112:AJ112))=33,"OK","CHECK") -> OK
C113: =Qty!C63 -> CAC HV Bus TOU Demand | D113: =Qty!D63 -> CAC | E113: =Qty!E63 -> 92400 | F113: =Qty!F63 -> HVB | G113: =Qty!G63 -> CAC92400 | I113: 73.479 | J113: 7.525 | K113: 0.01349 | L113: 0 | M113: 0 | N113: 0 | O113: 0 | P113: 0 | Q113: 0 | R113: 7.008 | S113: 5.077 | T113: 0 | U113: 1.406 | V113: 0 | W113: 0 | X113: 0 | Y113: 0 | Z113: 0 | AA113: 0 | AB113: 0 | AC113: 0 | AD113: 0 | AE113: 0 | AF113: 0 | AG113: 0 | AH113: 0 | AI113: 0 | AJ113: 0 | AL113: =IF(SUMPRODUCT(--_xlfn.ISFORMULA(C113:AJ113))=33,"OK","CHECK") -> OK
C114: =Qty!C64 -> CAC HV Line TOU Demand | D114: =Qty!D64 -> CAC | E114: =Qty!E64 -> 92300 | F114: =Qty!F64 -> HVL | G114: =Qty!G64 -> CAC92300 | I114: 39.676 | J114: 7.525 | K114: 0.01349 | L114: 0 | M114: 0 | N114: 0 | O114: 0 | P114: 0 | Q114: 0 | R114: 9.815 | S114: 5.264 | T114: 0 | U114: 1.406 | V114: 0 | W114: 0 | X114: 0 | Y114: 0 | Z114: 0 | AA114: 0 | AB114: 0 | AC114: 0 | AD114: 0 | AE114: 0 | AF114: 0 | AG114: 0 | AH114: 0 | AI114: 0 | AJ114: 0 | AL114: =IF(SUMPRODUCT(--_xlfn.ISFORMULA(C114:AJ114))=33,"OK","CHECK") -> OK
C115: =Qty!C65 -> CAC Dynamic Flex Storage | D115: =Qty!D65 -> CAC | E115: =Qty!E65 -> 92000 | F115: =Qty!F65 -> HV | G115: =Qty!G65 -> CAC92000 | I115: 74.237 | J115: 0 | K115: 0 | L115: =L211+L307+L403 -> 0.00639 | M115: 0 | N115: 0 | O115: 0 | P115: 0 | Q115: 0 | R115: 0 | S115: 0 | T115: 0 | U115: 0 | V115: 0 | W115: 0 | X115: 0 | Y115: 0 | Z115: 0 | AA115: 0 | AB115: 0 | AC115: 0 | AD115: 0 | AE115: 0 | AF115: 0 | AG115: 0 | AH115: 0 | AI115: 0 | AJ115: 0 | AL115: =IF(SUMPRODUCT(--_xlfn.ISFORMULA(C115:AJ115))=33,"OK","CHECK") -> OK
C116: =Qty!C66 -> 0 | D116: =Qty!D66 -> 0 | E116: =Qty!E66 -> 0 | F116: =Qty!F66 -> 0 | G116: =Qty!G66 -> 0 | I116: =I212+I308+I404 -> 0 | J116: 0 | K116: 0 | L116: 0 | M116: 0 | N116: 0 | O116: 0 | P116: 0 | Q116: 0 | R116: 0 | S116: 0 | T116: 0 | U116: 0 | V116: 0 | W116: 0 | X116: 0 | Y116: 0 | Z116: 0 | AA116: 0 | AB116: 0 | AC116: 0 | AD116: 0 | AE116: 0 | AF116: 0 | AG116: 0 | AH116: 0 | AI116: 0 | AJ116: 0 | AL116: =IF(SUMPRODUCT(--_xlfn.ISFORMULA(C116:AJ116))=33,"OK","CHECK") -> OK
C117: =Qty!C67 -> ICC | D117: =Qty!D67 -> ICC | E117: =Qty!E67 -> 1000 | F117: =Qty!F67 -> 0 | G117: =Qty!G67 -> ICC1000 | I117: 0 | J117: 0 | K117: 0 | L117: 0 | M117: 0 | N117: 0 | O117: 0 | P117: 0 | Q117: 0 | R117: 0 | S117: 0 | T117: 0 | U117: 0 | V117: 0 | W117: 0 | X117: 0 | Y117: 0 | Z117: 0 | AA117: 0 | AB117: 0 | AC117: 0 | AD117: 0 | AE117: 0 | AF117: 0 | AG117: 0 | AH117: 0 | AI117: 0 | AJ117: 0 | AL117: =IF(SUMPRODUCT(--_xlfn.ISFORMULA(C117:AJ117))=33,"OK","CHECK") -> OK
C118: =Qty!C68 -> 0 | D118: =Qty!D68 -> 0 | E118: =Qty!E68 -> 0 | F118: =Qty!F68 -> 0 | G118: =Qty!G68 -> 0 | I118: 0 | J118: 0 | K118: 0 | L118: 0 | M118: 0 | N118: 0 | O118: 0 | P118: 0 | Q118: 0 | R118: 0 | S118: 0 | T118: 0 | U118: 0 | V118: 0 | W118: 0 | X118: 0 | Y118: 0 | Z118: 0 | AA118: 0 | AB118: 0 | AC118: 0 | AD118: 0 | AE118: 0 | AF118: 0 | AG118: 0 | AH118: 0 | AI118: 0 | AJ118: 0 | AL118: =IF(SUMPRODUCT(--_xlfn.ISFORMULA(C118:AJ118))=33,"OK","CHECK") -> OK
C119: =Qty!C69 -> Historic SAC | D119: =Qty!D69 -> SAC | E119: =Qty!E69 -> HSAC | F119: =Qty!F69 -> 0 | G119: =Qty!G69 -> 0 | I119: 0 | J119: 0 | K119: 0 | L119: 0 | M119: 0 | N119: 0 | O119: 0 | P119: 0 | Q119: 0 | R119: 0 | S119: 0 | T119: 0 | U119: 0 | V119: 0 | W119: 0 | X119: 0 | Y119: 0 | Z119: 0 | AA119: 0 | AB119: 0 | AC119: 0 | AD119: 0 | AE119: 0 | AF119: 0 | AG119: 0 | AH119: 0 | AI119: 0 | AJ119: 0 | AL119: =IF(SUMPRODUCT(--_xlfn.ISFORMULA(C119:AJ119))=33,"OK","CHECK") -> OK
C120: =Qty!C70 -> Historic CAC | D120: =Qty!D70 -> CAC | E120: =Qty!E70 -> CSAC | F120: =Qty!F70 -> 0 | G120: =Qty!G70 -> 0 | I120: 0 | J120: 0 | K120: 0 | L120: 0 | M120: 0 | N120: 0 | O120: 0 | P120: 0 | Q120: 0 | R120: 0 | S120: 0 | T120: 0 | U120: 0 | V120: 0 | W120: 0 | X120: 0 | Y120: 0 | Z120: 0 | AA120: 0 | AB120: 0 | AC120: 0 | AD120: 0 | AE120: 0 | AF120: 0 | AG120: 0 | AH120: 0 | AI120: 0 | AJ120: 0 | AL120: =IF(SUMPRODUCT(--_xlfn.ISFORMULA(C120:AJ120))=33,"OK","CHECK") -> OK
C121: =Qty!C71 -> 0 | D121: =Qty!D71 -> 0 | E121: =Qty!E71 -> 0 | F121: =Qty!F71 -> 0 | G121: =Qty!G71 -> 0 | I121: 0 | J121: 0 | K121: 0 | L121: 0 | M121: 0 | N121: 0 | O121: 0 | P121: 0 | Q121: 0 | R121: 0 | S121: 0 | T121: 0 | U121: 0 | V121: 0 | W121: 0 | X121: 0 | Y121: 0 | Z121: 0 | AA121: 0 | AB121: 0 | AC121: 0 | AD121: 0 | AE121: 0 | AF121: 0 | AG121: 0 | AH121: 0 | AI121: 0 | AJ121: 0 | AL121: =IF(SUMPRODUCT(--_xlfn.ISFORMULA(C121:AJ121))=33,"OK","CHECK") -> OK
C122: =Qty!C72 -> 0 | D122: =Qty!D72 -> 0 | E122: =Qty!E72 -> 0 | F122: =Qty!F72 -> 0 | G122: =Qty!G72 -> 0 | I122: 0 | J122: 0 | K122: 0 | L122: 0 | M122: 0 | N122: 0 | O122: 0 | P122: 0 | Q122: 0 | R122: 0 | S122: 0 | T122: 0 | U122: 0 | V122: 0 | W122: 0 | X122: 0 | Y122: 0 | Z122: 0 | AA122: 0 | AB122: 0 | AC122: 0 | AD122: 0 | AE122: 0 | AF122: 0 | AG122: 0 | AH122: 0 | AI122: 0 | AJ122: 0 | AL122: =IF(SUMPRODUCT(--_xlfn.ISFORMULA(C122:AJ122))=33,"OK","CHECK") -> OK
C123: =Qty!C73 -> 0 | D123: =Qty!D73 -> 0 | E123: =Qty!E73 -> 0 | F123: =Qty!F73 -> 0 | G123: =Qty!G73 -> 0 | I123: 0 | J123: 0 | K123: 0 | L123: 0 | M123: 0 | N123: 0 | O123: 0 | P123: 0 | Q123: 0 | R123: 0 | S123: 0 | T123: 0 | U123: 0 | V123: 0 | W123: 0 | X123: 0 | Y123: 0 | Z123: 0 | AA123: 0 | AB123: 0 | AC123: 0 | AD123: 0 | AE123: 0 | AF123: 0 | AG123: 0 | AH123: 0 | AI123: 0 | AJ123: 0 | AL123: =IF(SUMPRODUCT(--_xlfn.ISFORMULA(C123:AJ123))=33,"OK","CHECK") -> OK
C124: =Qty!C74 -> 0 | D124: =Qty!D74 -> 0 | E124: =Qty!E74 -> 0 | F124: =Qty!F74 -> 0 | G124: =Qty!G74 -> 0 | I124: 0 | J124: 0 | K124: 0 | L124: 0 | M124: 0 | N124: 0 | O124: 0 | P124: 0 | Q124: 0 | R124: 0 | S124: 0 | T124: 0 | U124: 0 | V124: 0 | W124: 0 | X124: 0 | Y124: 0 | Z124: 0 | AA124: 0 | AB124: 0 | AC124: 0 | AD124: 0 | AE124: 0 | AF124: 0 | AG124: 0 | AH124: 0 | AI124: 0 | AJ124: 0 | AL124: =IF(SUMPRODUCT(--_xlfn.ISFORMULA(C124:AJ124))=33,"OK","CHECK") -> OK
C125: =Qty!C75 -> 0 | D125: =Qty!D75 -> 0 | E125: =Qty!E75 -> 0 | F125: =Qty!F75 -> 0 | G125: =Qty!G75 -> 0 | I125: 0 | J125: 0 | K125: 0 | L125: =L221+L317+L413 -> 0 | M125: 0 | N125: 0 | O125: 0 | P125: 0 | Q125: 0 | R125: 0 | S125: 0 | T125: 0 | U125: 0 | V125: 0 | W125: 0 | X125: 0 | Y125: 0 | Z125: 0 | AA125: 0 | AB125: 0 | AC125: 0 | AD125: 0 | AE125: 0 | AF125: 0 | AG125: 0 | AH125: 0 | AI125: 0 | AJ125: 0 | AL125: =IF(SUMPRODUCT(--_xlfn.ISFORMULA(C125:AJ125))=33,"OK","CHECK") -> OK
... 51 more rows

Sheet Stakeholder report
E3: =DNSP&" "&forecastyear&" pricing" -> Energex 2026–27 pricing
E4: Stakeholder report
B6: ="The AER provides the below information in relation to "&DNSP&"'s "&forecastyear&" pricing proposal. This information includes:" -> The AER provides the below information in relation to Energex's 2026–27 pricing proposal. This information includes: | G6: Revenue trends | H6: Consumption trends | I6: Cost movements
B7: This report is intended to compliment the AER's Statement of Reasons, published upon approval of the pricing proposal. More information regarding our decision can be found in the AER's Statement of Reasons.
B8: ="More information underlying that provided below can be found in "&DNSP&"'s "&forecastyear&" pricing model and proposal document." -> More information underlying that provided below can be found in Energex's 2026–27 pricing model and proposal document.
B9: If you require assistance navigating the data and mechanisms below, navigating underlying data, or have any feedback, please reach out to AERPricing@aer.gov.au
B11: Revenue trends
B12: ="The below table provides allowed revenues for "&DNSP&" for "&forecastyear&" as well as historical years. This includes revenues allowed to pass-through any transmission and jurisdictional scheme costs." -> The below table provides allowed revenues for Energex for 2026–27 as well as historical years. This includes revenues allowed to pass-through any transmission and jurisdictional scheme costs.
B13: ="Allowed revenues are as per the AER's final "&LEFT(RCP_firstyear,5)&RIGHT(RCP_lastyear,2)&" determination, adjusted for actual CPI and annual debt updates, and may also include approved cost pass-throughs." -> Allowed revenues are as per the AER's final 2025–30 determination, adjusted for actual CPI and annual debt updates, and may also include approved cost pass-throughs.
B14: Other adjustments are listed, including incentive schemes, cost pass-throughs, true-ups for under/over-recovered revenues. Cost pass-throughs may be applied through the allowed revenue (X-factor), or through adjustments (C-factor).
B15: Please note, metering revenue is excluded from network revenue below as metering operates as a price cap for some networks.
D17: =tminus3_year -> 2023–24 | E17: =previousyear -> 2024–25 | F17: =currentyear -> 2025–26 | G17: =forecastyear -> 2026–27 | H17: =forecastyear& " movement" -> 2026–27 movement | I17: ="3-year trend to "&forecastyear -> 3-year trend to 2026–27
B18: Allowed distribution revenue ($m) | D18: ='Stakeholder report'!D22-'Stakeholder report'!D19-'Stakeholder report'!D20-INDEX(Financial!$J$35:$Q$35,1,MATCH('Stakeholder report'!D17,Financial!$J$14:$Q$14,0)) -> 1290.902291 | E18: ='Stakeholder report'!E22-'Stakeholder report'!E19-'Stakeholder report'!E20-INDEX(Financial!$J$35:$Q$35,1,MATCH('Stakeholder report'!E17,Financial!$J$14:$Q$14,0)) -> 1404.062185 | F18: ='Stakeholder report'!F22-'Stakeholder report'!F19-'Stakeholder report'!F20-INDEX(Financial!$J$35:$Q$35,1,MATCH('Stakeholder report'!F17,Financial!$J$14:$Q$14,0)) -> 1534.683366 | G18: ='Stakeholder report'!G22-'Stakeholder report'!G19-'Stakeholder report'!G20-INDEX(Financial!$J$35:$Q$35,1,MATCH('Stakeholder report'!G17,Financial!$J$14:$Q$14,0)) -> 1662.829385 | H18: =IFERROR(G18/F18-1,0) -> 0.08349997278 | I18: =IFERROR(SLOPE(D18:G18,'Qty forecasts'!$H$6:$K$6)/D18,0) -> 0.09655281217
B19: Incentive schemes ($m) | D19: =INDEX(Financial!$J$24:$Q$24,1,MATCH('Stakeholder report'!D17,Financial!$J$14:$Q$14,0)) -> 4.022457151 | E19: =INDEX(Financial!$J$24:$Q$24,1,MATCH('Stakeholder report'!E17,Financial!$J$14:$Q$14,0)) -> 24.480039 | F19: =INDEX(Financial!$J$24:$Q$24,1,MATCH('Stakeholder report'!F17,Financial!$J$14:$Q$14,0)) -> 2.526655 | G19: =INDEX(Financial!$J$24:$Q$24,1,MATCH('Stakeholder report'!G17,Financial!$J$14:$Q$14,0)) -> -19.96420454 | H19: =IFERROR(G19/F19-1,0) -> -8.901436698 | I19: =IFERROR(SLOPE(D19:G19,'Qty forecasts'!$H$6:$K$6)/D19,0) -> -2.334726401
B20: Cost pass-throughs ($m) | D20: =INDEX(Financial!$J$29:$Q$29,1,MATCH('Stakeholder report'!D17,Financial!$J$14:$Q$14,0)) -> 0 | E20: =INDEX(Financial!$J$29:$Q$29,1,MATCH('Stakeholder report'!E17,Financial!$J$14:$Q$14,0)) -> 0 | F20: =INDEX(Financial!$J$29:$Q$29,1,MATCH('Stakeholder report'!F17,Financial!$J$14:$Q$14,0)) -> 7.11556653 | G20: =INDEX(Financial!$J$29:$Q$29,1,MATCH('Stakeholder report'!G17,Financial!$J$14:$Q$14,0)) -> 39.65051318 | H20: 4.57236209 | I20: =IFERROR(SLOPE(D20:G20,'Qty forecasts'!$H$6:$K$6)/D20,0) -> 0
B21: Unders/overs true-up ($m) | D21: =INDEX(Accounts!$J$18:$Q$18,1,MATCH('Stakeholder report'!D17,Accounts!$J$11:$Q$11,0)) -> 5.935732954 | E21: =INDEX(Accounts!$J$18:$Q$18,1,MATCH('Stakeholder report'!E17,Accounts!$J$11:$Q$11,0)) -> -0.9979049576 | F21: =INDEX(Accounts!$J$18:$Q$18,1,MATCH('Stakeholder report'!F17,Accounts!$J$11:$Q$11,0)) -> -65.13852249 | G21: =INDEX(Accounts!$J$18:$Q$18,1,MATCH('Stakeholder report'!G17,Accounts!$J$11:$Q$11,0)) -> -29.29551431 | H21: -0.5502582313 | I21: =IFERROR(SLOPE(D21:G21,'Qty forecasts'!$H$6:$K$6)/D21,0) -> -2.861219678
B22: Total allowed distribution revenue ($m)¹ | D22: =INDEX(Accounts!$J$17:$Q$17,1,MATCH('Stakeholder report'!D17,Accounts!$J$11:$Q$11,0))+INDEX(Accounts!$J$18:$Q$18,1,MATCH('Stakeholder report'!D17,Accounts!$J$11:$Q$11,0)) -> 1300.860481 | E22: =INDEX(Accounts!$J$17:$Q$17,1,MATCH('Stakeholder report'!E17,Accounts!$J$11:$Q$11,0))+INDEX(Accounts!$J$18:$Q$18,1,MATCH('Stakeholder report'!E17,Accounts!$J$11:$Q$11,0)) -> 1427.544319 | F22: =INDEX(Accounts!$J$17:$Q$17,1,MATCH('Stakeholder report'!F17,Accounts!$J$11:$Q$11,0))+INDEX(Accounts!$J$18:$Q$18,1,MATCH('Stakeholder report'!F17,Accounts!$J$11:$Q$11,0)) -> 1479.187065 | G22: =INDEX(Accounts!$J$17:$Q$17,1,MATCH('Stakeholder report'!G17,Accounts!$J$11:$Q$11,0))+INDEX(Accounts!$J$18:$Q$18,1,MATCH('Stakeholder report'!G17,Accounts!$J$11:$Q$11,0)) -> 1653.220179 | H22: 0.1176545676 | I22: =IFERROR(SLOPE(D22:G22,'Qty forecasts'!$H$6:$K$6)/D22,0) -> 0.08522988114
B24: Transmission (DPPC) costs ($m) | D24: =INDEX(Accounts!$J$35:$Q$35,1,MATCH('Stakeholder report'!D17,Accounts!$J$11:$Q$11,0)) -> 293.4693468 | E24: =INDEX(Accounts!$J$35:$Q$35,1,MATCH('Stakeholder report'!E17,Accounts!$J$11:$Q$11,0)) -> 368.62166 | F24: =INDEX(Accounts!$J$35:$Q$35,1,MATCH('Stakeholder report'!F17,Accounts!$J$11:$Q$11,0)) -> 352.8407556 | G24: =INDEX(Accounts!$J$35:$Q$35,1,MATCH('Stakeholder report'!G17,Accounts!$J$11:$Q$11,0)) -> 410.9116114 | H24: 0.1645809191 | I24: =IFERROR(SLOPE(D24:G24,'Qty forecasts'!$H$6:$K$6)/D24,0) -> 0.1146783788
B25: Unders/overs true-up ($m) | D25: =INDEX(Accounts!$J$36:$Q$36,1,MATCH('Stakeholder report'!D17,Accounts!$J$11:$Q$11,0)) -> 2.282210816 | E25: =INDEX(Accounts!$J$36:$Q$36,1,MATCH('Stakeholder report'!E17,Accounts!$J$11:$Q$11,0)) -> 1.302586296 | F25: =INDEX(Accounts!$J$36:$Q$36,1,MATCH('Stakeholder report'!F17,Accounts!$J$11:$Q$11,0)) -> -4.426527375 | G25: =INDEX(Accounts!$J$36:$Q$36,1,MATCH('Stakeholder report'!G17,Accounts!$J$11:$Q$11,0)) -> -8.808830179 | H25: 0.9900091952 | I25: =IFERROR(SLOPE(D25:G25,'Qty forecasts'!$H$6:$K$6)/D25,0) -> -1.708967304
B26: Total allowed transmission (DPPC) revenue ($m) | D26: =D24+D25 -> 295.7515576 | E26: =E24+E25 -> 369.9242463 | F26: =F24+F25 -> 348.4142282 | G26: =G24+G25 -> 402.1027812 | H26: 0.1540940315 | I26: =IFERROR(SLOPE(D26:G26,'Qty forecasts'!$H$6:$K$6)/D26,0) -> 0.1006059461
B28: Jurisdictional scheme amounts ($m) | D28: =INDEX(Accounts!$J$55:$Q$55,1,MATCH('Stakeholder report'!D17,Accounts!$J$11:$Q$11,0)) -> 102.0932329 | E28: =INDEX(Accounts!$J$55:$Q$55,1,MATCH('Stakeholder report'!E17,Accounts!$J$11:$Q$11,0)) -> 95.84545412 | F28: =INDEX(Accounts!$J$55:$Q$55,1,MATCH('Stakeholder report'!F17,Accounts!$J$11:$Q$11,0)) -> 109.8080739 | G28: =INDEX(Accounts!$J$55:$Q$55,1,MATCH('Stakeholder report'!G17,Accounts!$J$11:$Q$11,0)) -> 97.68919321 | H28: -0.1103642044 | I28: =IFERROR(SLOPE(D28:G28,'Qty forecasts'!$H$6:$K$6)/D28,0) -> 0.0007351130984
B29: Unders/overs true-up ($m) | D29: =INDEX(Accounts!$J$56:$Q$56,1,MATCH('Stakeholder report'!D17,Accounts!$J$11:$Q$11,0)) -> -39.65508525 | E29: =INDEX(Accounts!$J$56:$Q$56,1,MATCH('Stakeholder report'!E17,Accounts!$J$11:$Q$11,0)) -> 17.35793706 | F29: =INDEX(Accounts!$J$56:$Q$56,1,MATCH('Stakeholder report'!F17,Accounts!$J$11:$Q$11,0)) -> -14.71690856 | G29: =INDEX(Accounts!$J$56:$Q$56,1,MATCH('Stakeholder report'!G17,Accounts!$J$11:$Q$11,0)) -> 0.6541104729 | H29: -1.044446187 | I29: =IFERROR(SLOPE(D29:G29,'Qty forecasts'!$H$6:$K$6)/D29,0) -> -0.2240639277
B30: Total allowed jurisdictional scheme revenue ($m) | D30: =D28+D29 -> 62.43814765 | E30: =E28+E29 -> 113.2033912 | F30: =F28+F29 -> 95.09116536 | G30: =G28+G29 -> 98.34330368 | H30: 0.03420021518 | I30: =IFERROR(SLOPE(D30:G30,'Qty forecasts'!$H$6:$K$6)/D30,0) -> 0.1435072078
B32: Total allowed network revenue ($m) | D32: =D22+D26+D30 -> 1659.050186 | E32: =E22+E26+E30 -> 1910.671957 | F32: =F22+F26+F30 -> 1922.692458 | G32: =G22+G26+G30 -> 2153.666264 | H32: 0.1201303957 | I32: =IFERROR(SLOPE(D32:G32,'Qty forecasts'!$H$6:$K$6)/D32,0) -> 0.09016416436
B33: 1 - Total allowed distribution revenue may not equal the sum of the proceeding rows as other minor adjustments may exist.
B36: Consumption trends
B37: ="The below table provides energy consumption trends for "&DNSP&". Some datasets are only now available due to the use of the standardised pricing models or new data requirements, and therefore historical data is not provided here." -> The below table provides energy consumption trends for Energex. Some datasets are only now available due to the use of the standardised pricing models or new data requirements, and therefore historical data is not provided here.
B38: Charts are provided below to visualise some of these data trends.
D40: =tminus6_year -> 2020–21 | E40: =tminus5_year -> 2021–22 | F40: =tminus4_year -> 2022–23 | G40: =tminus3_year -> 2023–24 | H40: =previousyear -> 2024–25 | I40: =currentyear -> 2025–26 | J40: =forecastyear -> 2026–27 | K40: =H17 -> 2026–27 movement | L40: 6-year trend to 2023–24
B41: Residential consumption (GWh) | D41: ='Qty forecasts'!E9 -> 8110 | E41: ='Qty forecasts'!F9 -> 8115.5 | F41: ='Qty forecasts'!G9 -> 8439.626028 | G41: ='Qty forecasts'!H9 -> 8709.41 | H41: ='Qty forecasts'!I9 -> 8914.675796 | I41: ='Qty forecasts'!J9 -> 8857.614083 | J41: ='Qty forecasts'!K9 -> 8665.335335 | K41: =IFERROR(J41/I41-1,0) -> -0.02170773603 | L41: =IFERROR(SLOPE(D41:J41,'Qty forecasts'!$E$6:$K$6)/D41,0) -> 0.01596478747
B42: Small business consumption (GWh) | D42: ='Qty forecasts'!E10 -> 1986.647196 | E42: ='Qty forecasts'!F10 -> 2029.458444 | F42: ='Qty forecasts'!G10 -> 1761.002462 | G42: ='Qty forecasts'!H10 -> 976.541542 | H42: ='Qty forecasts'!I10 -> 1070.187047 | I42: ='Qty forecasts'!J10 -> 1815.672702 | J42: ='Qty forecasts'!K10 -> 1834.91 | K42: =IFERROR(J42/I42-1,0) -> 0.01059513546 | L42: =IFERROR(SLOPE(D42:J42,'Qty forecasts'!$E$6:$K$6)/D42,0) -> -0.02828884068
B43: Other consumption (GWh) | D43: ='Qty forecasts'!E14 -> 11036.3528 | E43: ='Qty forecasts'!F14 -> 11149.63156 | F43: ='Qty forecasts'!G14 -> 11515.23504 | G43: ='Qty forecasts'!H14 -> 12678.30846 | H43: ='Qty forecasts'!I14 -> 12662.8129 | I43: ='Qty forecasts'!J14 -> 11905.52018 | J43: ='Qty forecasts'!K14 -> 12093.29639 | K43: 0.01577219681 | L43: =IFERROR(SLOPE(D43:J43,'Qty forecasts'!$E$6:$K$6)/D43,0) -> 0.0188668238
B44: Total Consumption (GWh) | D44: ='Qty forecasts'!E21 -> 21133 | E44: ='Qty forecasts'!F21 -> 21294.59 | F44: ='Qty forecasts'!G21 -> 21715.86353 | G44: ='Qty forecasts'!H21 -> 22364.26 | H44: ='Qty forecasts'!I21 -> 22647.67574 | I44: ='Qty forecasts'!J21 -> 22578.80697 | J44: ='Qty forecasts'!K21 -> 22593.54172 | K44: 0.0006525923753 | L44: =IFERROR(SLOPE(D44:J44,'Qty forecasts'!$E$6:$K$6)/D44,0) -> 0.0133201819
K45: 0 | L45: =IFERROR(SLOPE(D45:J45,'Qty forecasts'!$E$6:$K$6)/D45,0) -> 0
B46: Residential customer numbers | D46: ='Qty forecasts'!E25 -> 1402509 | E46: ='Qty forecasts'!F25 -> 1421406 | F46: ='Qty forecasts'!G25 -> 1439197 | G46: ='Qty forecasts'!H25 -> 1455890 | H46: ='Qty forecasts'!I25 -> 1481802 | I46: ='Qty forecasts'!J25 -> 1486245 | J46: ='Qty forecasts'!K25 -> 1503731.66 | K46: 0.01176566428 | L46: =IFERROR(SLOPE(D46:J46,'Qty forecasts'!$E$6:$K$6)/D46,0) -> 0.01211988604
B47: Small business customer numbers | D47: ='Qty forecasts'!E26 -> 109705.0572 | E47: ='Qty forecasts'!F26 -> 109483.25 | F47: ='Qty forecasts'!G26 -> 109870.6667 | G47: ='Qty forecasts'!H26 -> 85983 | H47: ='Qty forecasts'!I26 -> 89160 | I47: ='Qty forecasts'!J26 -> 112166 | J47: ='Qty forecasts'!K26 -> 113067 | K47: 0.008032737193 | L47: =IFERROR(SLOPE(D47:J47,'Qty forecasts'!$E$6:$K$6)/D47,0) -> -0.001712168185
B48: Other customer numbers | D48: ='Qty forecasts'!E30 -> 23185.94281 | E48: ='Qty forecasts'!F30 -> 38860.75 | F48: ='Qty forecasts'!G30 -> 53051.33333 | G48: ='Qty forecasts'!H30 -> 76497 | H48: ='Qty forecasts'!I30 -> 46403 | I48: ='Qty forecasts'!J30 -> 44925.5 | J48: ='Qty forecasts'!K30 -> 44657 | K48: -0.005976561196 | L48: =IFERROR(SLOPE(D48:J48,'Qty forecasts'!$E$6:$K$6)/D48,0) -> 0.1076611974
B49: Total customer numbers | D49: ='Qty forecasts'!E32 -> 1535400 | E49: ='Qty forecasts'!F32 -> 1569750 | F49: ='Qty forecasts'!G32 -> 1602119 | G49: ='Qty forecasts'!H32 -> 1618370 | H49: ='Qty forecasts'!I32 -> 1617365 | I49: ='Qty forecasts'!J32 -> 1643336.5 | J49: ='Qty forecasts'!K32 -> 1661455.66 | K49: 0.01102583658 | L49: =IFERROR(SLOPE(D49:J49,'Qty forecasts'!$E$6:$K$6)/D49,0) -> 0.01257434031
K50: 0 | L50: =IFERROR(SLOPE(D50:J50,'Qty forecasts'!$E$6:$K$6)/D50,0) -> 0
B51: Average residential consumption (kWh) | D51: =IFERROR(D41*1000000/D46,0) -> 5782.494087 | E51: =IFERROR(E41*1000000/E46,0) -> 5709.487648 | F51: 5864.121471 | G51: 5982.189588 | H51: 6016.104578 | I51: 5959.72675 | J51: 5762.554296 | K51: -0.03308414339 | L51: =IFERROR(SLOPE(D51:J51,'Qty forecasts'!$E$6:$K$6)/D51,0) -> 0.003660320804
B52: Average small business consumption (kWh) | D52: =IFERROR(D42*1000000/D47,0) -> 18108.98465 | E52: 18536.70259 | F52: 16027.95829 | G52: 11357.37927 | H52: 12002.99514 | I52: 16187.37141 | J52: 16228.51937 | K52: 0.002541979212 | L52: =IFERROR(SLOPE(D52:J52,'Qty forecasts'!$E$6:$K$6)/D52,0) -> -0.02833049372
B53: Average other consumption (kWh) | D53: 475993.273 | E53: 286912.4131 | F53: 217058.353 | G53: 165736.0218 | H53: 272887.8068 | I53: 265005.847 | J53: 270804.0484 | K53: 0.02187952231 | L53: =IFERROR(SLOPE(D53:J53,'Qty forecasts'!$E$6:$K$6)/D53,0) -> -0.04528510518
B54: Average total consumption (kWh) | D54: 13763.84004 | E54: 13565.59325 | F54: 13554.46351 | G54: 13819.00307 | H54: 14002.82295 | I54: 13739.61265 | J54: 13598.64261 | K54: -0.01026011783 | L54: =IFERROR(SLOPE(D54:J54,'Qty forecasts'!$E$6:$K$6)/D54,0) -> 0.0007805284932
B79: Cost movements
B80: The second table below provides cost movement analysis for small customer consumption tariffs. Tariffs with demand/capacity components are not included in this mechanism.
B81: Tariffs can be selected from the drop-down menus in the first table below. Consumption profiles can also be adjusted in this table to override calculated average consumption (including exports and TOU where applicable).
B82: Where no overrides are entered, consumption will be calculated on averages of the most recent actual data for that tariff. Demand and capacity will be calculated in this way as no overrides are provided.
B83: Waterfall charts are also provided to visualise these cost movements and how revenue adjustments might impact at the tariff level.
B85: Please note, an assumption is made in this analysis that revenue adjustments are apportioned equally across all tariffs.
B86: Any residual movements are grouped with the volume updates and tariff path components. These residuals would also include the variance of application from our assumption.
B88: Tariff selection | D88: Consumption overrides | E88: Exports | F88: TOU - Peak % | G88: TOU - Shoulder % | H88: TOU - Off peak %
B89: b
B90: d
B91: b
B92: d
D94: Customer type | E94: Ratio of customer type | F94: Consumption (kWh) | G94: =previousyear -> 2024–25 | H94: =currentyear -> 2025–26 | I94: =forecastyear -> 2026–27 | J94: ="$ change in "&forecastyear -> $ change in 2026–27 | K94: ="% change in "&forecastyear -> % change in 2026–27
B95: =B89 -> b | D95: =INDEX('Stakeholder report data'!I$207:I$272,MATCH('Stakeholder report'!$B95,'Stakeholder report data'!$C$207:$C$272,0)) ->  | E95: =INDEX('Stakeholder report data'!J$207:J$272,MATCH('Stakeholder report'!$B95,'Stakeholder report data'!$C$207:$C$272,0)) ->  | F95: =INDEX('Stakeholder report data'!K$207:K$272,MATCH('Stakeholder report'!$B95,'Stakeholder report data'!$C$207:$C$272,0)) ->  | G95: =INDEX('Stakeholder report data'!L$207:L$272,MATCH('Stakeholder report'!$B95,'Stakeholder report data'!$C$207:$C$272,0)) ->  | H95: =INDEX('Stakeholder report data'!M$207:M$272,MATCH('Stakeholder report'!$B95,'Stakeholder report data'!$C$207:$C$272,0)) ->  | I95: =INDEX('Stakeholder report data'!N$207:N$272,MATCH('Stakeholder report'!$B95,'Stakeholder report data'!$C$207:$C$272,0)) ->  | J95: =INDEX('Stakeholder report data'!O$207:O$272,MATCH('Stakeholder report'!$B95,'Stakeholder report data'!$C$207:$C$272,0)) ->  | K95: =INDEX('Stakeholder report data'!P$207:P$272,MATCH('Stakeholder report'!$B95,'Stakeholder report data'!$C$207:$C$272,0)) -> 
B96: =B90 -> d | D96: =INDEX('Stakeholder report data'!I$207:I$272,MATCH('Stakeholder report'!$B96,'Stakeholder report data'!$C$207:$C$272,0)) ->  | E96: =INDEX('Stakeholder report data'!J$207:J$272,MATCH('Stakeholder report'!$B96,'Stakeholder report data'!$C$207:$C$272,0)) ->  | F96: =INDEX('Stakeholder report data'!K$207:K$272,MATCH('Stakeholder report'!$B96,'Stakeholder report data'!$C$207:$C$272,0)) ->  | G96: =INDEX('Stakeholder report data'!L$207:L$272,MATCH('Stakeholder report'!$B96,'Stakeholder report data'!$C$207:$C$272,0)) ->  | H96: =INDEX('Stakeholder report data'!M$207:M$272,MATCH('Stakeholder report'!$B96,'Stakeholder report data'!$C$207:$C$272,0)) ->  | I96: =INDEX('Stakeholder report data'!N$207:N$272,MATCH('Stakeholder report'!$B96,'Stakeholder report data'!$C$207:$C$272,0)) ->  | J96: =INDEX('Stakeholder report data'!O$207:O$272,MATCH('Stakeholder report'!$B96,'Stakeholder report data'!$C$207:$C$272,0)) ->  | K96: =INDEX('Stakeholder report data'!P$207:P$272,MATCH('Stakeholder report'!$B96,'Stakeholder report data'!$C$207:$C$272,0)) -> 
B97: =B91 -> b | D97: =INDEX('Stakeholder report data'!I$207:I$272,MATCH('Stakeholder report'!$B97,'Stakeholder report data'!$C$207:$C$272,0)) ->  | E97: =INDEX('Stakeholder report data'!J$207:J$272,MATCH('Stakeholder report'!$B97,'Stakeholder report data'!$C$207:$C$272,0)) ->  | F97: =INDEX('Stakeholder report data'!K$207:K$272,MATCH('Stakeholder report'!$B97,'Stakeholder report data'!$C$207:$C$272,0)) ->  | G97: =INDEX('Stakeholder report data'!L$207:L$272,MATCH('Stakeholder report'!$B97,'Stakeholder report data'!$C$207:$C$272,0)) ->  | H97: =INDEX('Stakeholder report data'!M$207:M$272,MATCH('Stakeholder report'!$B97,'Stakeholder report data'!$C$207:$C$272,0)) ->  | I97: =INDEX('Stakeholder report data'!N$207:N$272,MATCH('Stakeholder report'!$B97,'Stakeholder report data'!$C$207:$C$272,0)) ->  | J97: =INDEX('Stakeholder report data'!O$207:O$272,MATCH('Stakeholder report'!$B97,'Stakeholder report data'!$C$207:$C$272,0)) ->  | K97: =INDEX('Stakeholder report data'!P$207:P$272,MATCH('Stakeholder report'!$B97,'Stakeholder report data'!$C$207:$C$272,0)) -> 
B98: =B92 -> d | D98: =INDEX('Stakeholder report data'!I$207:I$272,MATCH('Stakeholder report'!$B98,'Stakeholder report data'!$C$207:$C$272,0)) ->  | E98: =INDEX('Stakeholder report data'!J$207:J$272,MATCH('Stakeholder report'!$B98,'Stakeholder report data'!$C$207:$C$272,0)) ->  | F98: =INDEX('Stakeholder report data'!K$207:K$272,MATCH('Stakeholder report'!$B98,'Stakeholder report data'!$C$207:$C$272,0)) ->  | G98: =INDEX('Stakeholder report data'!L$207:L$272,MATCH('Stakeholder report'!$B98,'Stakeholder report data'!$C$207:$C$272,0)) ->  | H98: =INDEX('Stakeholder report data'!M$207:M$272,MATCH('Stakeholder report'!$B98,'Stakeholder report data'!$C$207:$C$272,0)) ->  | I98: =INDEX('Stakeholder report data'!N$207:N$272,MATCH('Stakeholder report'!$B98,'Stakeholder report data'!$C$207:$C$272,0)) ->  | J98: =INDEX('Stakeholder report data'!O$207:O$272,MATCH('Stakeholder report'!$B98,'Stakeholder report data'!$C$207:$C$272,0)) ->  | K98: =INDEX('Stakeholder report data'!P$207:P$272,MATCH('Stakeholder report'!$B98,'Stakeholder report data'!$C$207:$C$272,0)) -> 

Sheet Proposal report
E3: =DNSP&" "&forecastyear&" pricing" -> Energex 2026–27 pricing
E4: Pricing proposal report
B6: ="The below information is provided in relation to "&DNSP&"'s "&forecastyear&" pricing proposal. This information includes:" -> The below information is provided in relation to Energex's 2026–27 pricing proposal. This information includes: | F6: Revenues | G6: Unders/overs accounts | H6: Side constraints | I6: Tariff trials | J6: Standalone and avoidable costs
B7: ="This report is intended to compliment "&DNSP&"'s "&forecastyear&" pricing proposal by highlighting key data from this model for the purposes of demonstrating compliance with the National Electricity Rules and other requirements." -> This report is intended to compliment Energex's 2026–27 pricing proposal by highlighting key data from this model for the purposes of demonstrating compliance with the National Electricity Rules and other requirements.
B8: ="More information underlying that provided below can be found in "&DNSP&"'s "&forecastyear&" pricing model and proposal document." -> More information underlying that provided below can be found in Energex's 2026–27 pricing model and proposal document.
B10: Revenues
B11: ="The below table provides weighted average revenues for "&DNSP&" for "&forecastyear&" and "&currentyear&". This information is provided at the tariff class level." -> The below table provides weighted average revenues for Energex for 2026–27 and 2025–26. This information is provided at the tariff class level.
B12: ="This table supports the requirement for "&DNSP&" to set out, for each tariff class related to standard control services, the expected weighted average revenue for the relevant regulatory year and also for the current regulatory year." -> This table supports the requirement for Energex to set out, for each tariff class related to standard control services, the expected weighted average revenue for the relevant regulatory year and also for the current regulatory year.
B13: This requirement is set out in the NER at cl.6.18.2(b)(4).
D15: =currentyear&" ($m)" -> 2025–26 ($m) | E15: =forecastyear&" ($m)" -> 2026–27 ($m) | F15: % change | G15: =currentyear&" with "&forecastyear&" quantities ($m)" -> 2025–26 with 2026–27 quantities ($m) | H15: =forecastyear&" ($m)" -> 2026–27 ($m) | I15: weighted average % change
B16: =Tables!C9 -> SAC | D16: =Tables!D9 -> 1336.108248 | E16: =Tables!E9 -> 1468.526049 | F16: =Tables!F9 -> 0.0991070902 | G16: =Tables!G9 -> 1300.904885 | H16: =Tables!H9 -> 1468.526049 | I16: =Tables!I9 -> 0.1288496686
B17: =Tables!C10 -> CAC | D17: =Tables!D10 -> 130.6392839 | E17: =Tables!E10 -> 143.6773646 | F17: =Tables!F10 -> 0.09980214445 | G17: =Tables!G10 -> 129.610264 | H17: =Tables!H10 -> 143.6773646 | I17: =Tables!I10 -> 0.1085338474
B18: =Tables!C11 -> ICC | D18: =Tables!D11 -> 35.77943195 | E18: =Tables!E11 -> 39.42834179 | F18: =Tables!F11 -> 0.1019834482 | G18: =Tables!G11 -> 34.65818092 | H18: =Tables!H11 -> 39.42834179 | I18: =Tables!I11 -> 0.1376344848
B19: =Tables!C12 -> 0 | D19: =Tables!D12 -> 0 | E19: =Tables!E12 -> 0 | F19: =Tables!F12 -> 0 | G19: =Tables!G12 -> 0 | H19: =Tables!H12 -> 0 | I19: =Tables!I12 -> 0
B20: =Tables!C13 -> 0 | D20: =Tables!D13 -> 0 | E20: =Tables!E13 -> 0 | F20: =Tables!F13 -> 0 | G20: =Tables!G13 -> 0 | H20: =Tables!H13 -> 0 | I20: =Tables!I13 -> 0
B21: =Tables!C14 -> 0 | D21: =Tables!D14 -> 0 | E21: =Tables!E14 -> 0 | F21: =Tables!F14 -> 0 | G21: =Tables!G14 -> 0 | H21: =Tables!H14 -> 0 | I21: =Tables!I14 -> 0
B22: =Tables!C15 -> 0 | D22: =Tables!D15 -> 0 | E22: =Tables!E15 -> 0 | F22: =Tables!F15 -> 0 | G22: =Tables!G15 -> 0 | H22: =Tables!H15 -> 0 | I22: =Tables!I15 -> 0
B23: =Tables!C16 -> 0 | D23: =Tables!D16 -> 0 | E23: =Tables!E16 -> 0 | F23: =Tables!F16 -> 0 | G23: =Tables!G16 -> 0 | H23: =Tables!H16 -> 0 | I23: =Tables!I16 -> 0
B24: =Tables!C17 -> 0 | D24: =Tables!D17 -> 0 | E24: =Tables!E17 -> 0 | F24: =Tables!F17 -> 0 | G24: =Tables!G17 -> 0 | H24: =Tables!H17 -> 0 | I24: =Tables!I17 -> 0
B25: =Tables!C18 -> 0 | D25: =Tables!D18 -> 0 | E25: =Tables!E18 -> 0 | F25: =Tables!F18 -> 0 | G25: =Tables!G18 -> 0 | H25: =Tables!H18 -> 0 | I25: =Tables!I18 -> 0
B26: =Tables!C19 -> 0 | D26: =Tables!D19 -> 0 | E26: =Tables!E19 -> 0 | F26: =Tables!F19 -> 0 | G26: =Tables!G19 -> 0 | H26: =Tables!H19 -> 0 | I26: =Tables!I19 -> 0
B27: Total | D27: =Tables!D20 -> 1502.526964 | E27: =Tables!E20 -> 1651.631755 | F27: =Tables!F20 -> 0.0992360169 | G27: =Tables!G20 -> 1465.17333 | H27: =Tables!H20 -> 1651.631755 | I27: =Tables!I20 -> 0.1272603186
B30: The below tables provide the build-up of allowable revenue for each component of network revenue - distribution, designated pricing proposal charges, and jurisdictional schemes.
B31: ="These tables support the NER requirements for "&DNSP&" to set out how desingated pricing proposal charges and jurisdictional sheme amounts are to be passed on to consumers, as per NER cll. 6.18.2(b)(6) and (6A)." -> These tables support the NER requirements for Energex to set out how desingated pricing proposal charges and jurisdictional sheme amounts are to be passed on to consumers, as per NER cll. 6.18.2(b)(6) and (6A).
B32: ="These tables also support the NER requirements for "&DNSP&" to demonstrate compliance with the control mechanism formulae set out in the applicable distribution determination, as per NER cl. 6.18.2(b)(7)." -> These tables also support the NER requirements for Energex to demonstrate compliance with the control mechanism formulae set out in the applicable distribution determination, as per NER cl. 6.18.2(b)(7).
B34: Distribution | D34: $m | E34: $m | H34: Designated pricing proposal charges | J34: $m | K34: $m
B35: =Tables!C26 -> Adjusted annual smoothed revenue for 2025–26 (AARt-1) | E35: =Tables!E26 -> 1534.683366 | H35: =Tables!C41 -> Transmission expenditure charges for 2026–27 | J35: =Tables!D41 -> 410.5145495
B36: =Tables!C27 -> Inflation (CPI) | D36: =Tables!D27 -> 0.03625658506 | H36: =Tables!C42 -> Avoided TUOS charges for 2026–27 | J36: =Tables!D42 -> 0.3096278512
B37: =Tables!C28 -> X-factor for 2026–27 | D37: =Tables!D28 -> -0.04559043426 | H37: =Tables!C43 -> Cross-boundary expenditure charges for 2026–27 | J37: =Tables!D43 -> 0.087434
B38: =Tables!C29 -> S factor (STPIS 1.2) | D38: =Tables!D29 -> 0 | H38: =Tables!C44 ->  | J38: =Tables!D44 -> 0
B39: =Tables!C31 -> Adjusted annual smoothed revenue for 2026–27 (AARt) | E39: =Tables!E31 -> 1662.829385 | H39: =Tables!C45 ->  | J39: =Tables!D45 -> 0
B40: =Tables!C32 -> I factor (incentive schemes payments applied in 2026–27) | D40: =Tables!D32 -> -19.96420454 | H40: =Tables!C46 -> Total Forecast DPPC | J40: =Tables!I33 -> 0 | K40: =Tables!E46 -> 410.9116114
B41: =Tables!C33 -> C factor (approved cost pass-through factors applied in 2026–27) | D41: =Tables!D33 -> 39.65051318 | H41: =Tables!C47 -> Under/over-recovery adjustment applied in 2026–27 | J41: =Tables!D47 -> -8.808830179
B42: =Tables!C34 -> B factor (annual adjustments applied in 2026–27) | D42: =Tables!D34 -> -29.29551431 | H42: =Tables!C48 -> Total allowable revenue for 2026–27 | J42: =Tables!I35 -> 0 | K42: =Tables!E48 -> 402.1027812
B43: =Tables!C35 -> Total allowable revenue for 2026–27 (TARt) | E43: =Tables!E35 -> 1653.220179
B46: Metering (where a revenue cap is applicable) | D46: $m | E46: $m | H46: Jurisdictional scheme amounts | J46: $m | K46: $m
B47: =Tables!C76 -> Adjusted annual smoothed revenue for 2025–26 (AARt-1) | E47: =Tables!E76 -> 71.20465405 | H47: =Tables!C57 -> Solar Bonus Scheme charges for 2026–27 | J47: =Tables!D57 -> 80.28317291
B48: =Tables!C77 -> Inflation (CPI) | D48: =Tables!D77 -> 0 | H48: =Tables!C58 -> AEMC levy charges for 2026–27 | J48: =Tables!D58 -> 1.215957767
B49: =Tables!C78 -> Metering X-factor for 2026–27 | D49: =Tables!D78 -> 0 | H49: =Tables!C59 -> ESO levy (from 2025-26) charges for 2026–27 | J49: =Tables!D59 -> 16.19006253
B50: =Tables!C79 -> Adjusted annual smoothed revenue for 2026–27 (AARt) | E50: =Tables!E79 -> 73.78629164 | H50: =Tables!C60 ->  | J50: =Tables!D60 -> 0
B51: =Tables!C80 -> Metering C-factor applied in 2026–27 | D51: =Tables!D80 -> 0 | H51: =Tables!C61 -> Total Forecast JSA | J51: =Tables!I47 -> 0 | K51: =Tables!E61 -> 97.68919321
B52: =Tables!C81 -> Metering B-factorapplied in 2026–27 | D52: =Tables!D81 -> 0.003603948066 | H52: =Tables!C62 -> Under/over-recovery adjustment applied in 2026–27 | J52: =Tables!D62 -> 0.6541104729
B53: =Tables!C82 -> Total allowable revenue for 2026–27 (TARMt) | E53: =Tables!E82 -> 73.78989559 | H53: =Tables!C63 -> Total allowable revenue for 2026–27 | J53: =Tables!I49 -> 0 | K53: =Tables!E63 -> 98.34330368
B56: Unders/overs accounts
B57: The below tables provide a summary of the unders/overs statements and accounts for each component of network revenue - distribution, designated pricing proposal charges, and jurisdictional schemes.
B58: ="These tables support the NER requirements for "&DNSP&" to set out how desingated pricing proposal charges and jurisdictional scheme amounts are to be passed on to consumers, as per NER cll. 6.18.2(b)(6) and (6A)." -> These tables support the NER requirements for Energex to set out how desingated pricing proposal charges and jurisdictional scheme amounts are to be passed on to consumers, as per NER cll. 6.18.2(b)(6) and (6A).
B59: ="These tables also support the NER requirements for "&DNSP&" to demonstrate compliance with the mechanisms set out in the applicable distribution determination, as per NER cl. 6.18.2(b)(7)." -> These tables also support the NER requirements for Energex to demonstrate compliance with the mechanisms set out in the applicable distribution determination, as per NER cl. 6.18.2(b)(7).
B61: Distribution | D61: =previousyear&" ($m)" -> 2024–25 ($m) | E61: =currentyear&" ($m)" -> 2025–26 ($m) | F61: =forecastyear&" ($m)" -> 2026–27 ($m) | H61: Designated pricing proposal charges | J61: =D61 -> 2024–25 ($m) | K61: =E61 -> 2025–26 ($m) | L61: =F61 -> 2026–27 ($m)
B62: Revenue from charges | D62: =Tables!L26 -> 1467.401961 | E62: =Tables!M26 -> 1502.526964 | F62: =Tables!N26 -> 1652.658066 | H62: =B62 -> Revenue from charges | J62: =Tables!L41 -> 377.182193 | K62: =Tables!M41 -> 356.9458973 | L62: =Tables!N41 -> 401.6488629
B63: Deliberate under-recoveries | D63: =Tables!L27 -> 0 | E63: =Tables!M27 -> 0 | F63: =Tables!N27 -> 0 | H63: Cross-boundary revenue | J63: =Tables!L42 -> 0 | K63: =Tables!M42 -> 0 | L63: =Tables!N42 -> 0
B64: Unpaid network charges (deducted from revenue) | D64: =Tables!L28 -> 0 | E64: =Tables!M28 -> 0 | F64: =Tables!N28 -> 0 | H64: =B63 -> Deliberate under-recoveries | J64: =Tables!L43 -> 0 | K64: =Tables!M43 -> 0 | L64: =Tables!N43 -> 0
B65: Total revenue | D65: =Tables!L29 -> 1467.401961 | E65: =Tables!M29 -> 1502.526964 | F65: =Tables!N29 -> 1652.658066 | H65: =B64 -> Unpaid network charges (deducted from revenue) | J65: =Tables!L44 -> 0 | K65: =Tables!M44 -> 0 | L65: =Tables!N44 -> 0
B66: Total allowable revenue | D66: =Tables!L30 -> 1428.542224 | E66: =Tables!M30 -> 1544.325587 | F66: =Tables!N30 -> 1682.515694 | H66: =B65 -> Total revenue | J66: =Tables!L45 -> 377.182193 | K66: =Tables!M45 -> 356.9458973 | L66: =Tables!N45 -> 401.6488629
B67: Total under/over-recovery of revenue for regulatory year | D67: =D65-D66 -> 38.85973667 | E67: =E65-E66 -> -41.79862352 | F67: =F65-F66 -> -29.85762721 | H67: Total designated pricing proposal charges | J67: =Tables!L46 -> 368.62166 | K67: =Tables!M46 -> 352.8407556 | L67: =Tables!N46 -> 410.9116114
B68: Balancing adjustment made when year was 't' | D68: =Tables!L31 -> -0.9979049576 | E68: =Tables!M31 -> -65.13852249 | F68: =Tables!N31 -> -29.29551431 | H68: =B67 -> Total under/over-recovery of revenue for regulatory year | J68: =J66-J67 -> 8.560533 | K68: =K66-K67 -> 4.105141722 | L68: =L66-L67 -> -9.262748548
B69: Net under/over-recovery of revenue for regulatory year | D69: =Tables!L32 -> 39.85764162 | E69: =Tables!M32 -> 23.33989897 | F69: =Tables!N32 -> -0.5621128978 | H69: =B68 -> Balancing adjustment made when year was 't' | J69: =Tables!L47 -> 1.302586296 | K69: =Tables!M47 -> -4.426527375 | L69: =Tables!N47 -> -8.808830179
H70: =B69 -> Net under/over-recovery of revenue for regulatory year | J70: =Tables!L48 -> 7.257946704 | K70: =Tables!M48 -> 8.531669097 | L70: =Tables!N48 -> -0.453918369
B71: Opening balance | D71: =Tables!L33 -> 25.65780046 | E71: =Tables!M33 -> 67.40659994 | F71: =Tables!N33 -> 28.31577546
B72: Interest on opening balance | D72: =Tables!L34 -> 1.655210652 | E72: =Tables!M34 -> 3.899980113 | F72: =Tables!N34 -> 1.993377133 | H72: =B71 -> Opening balance | J72: =Tables!L49 -> -4.485702992 | K72: =Tables!M49 -> 4.057261928 | L72: =Tables!N49 -> 8.514233773
B73: Under/over-recovery of revenue for regulatory year | D73: =Tables!L35 -> 38.85973667 | E73: =Tables!M35 -> -41.79862352 | F73: =Tables!N35 -> -29.85762721 | H73: =B72 -> Interest on opening balance | J73: =Tables!L50 -> -0.2893772358 | K73: =Tables!M50 -> 0.2347431979 | L73: =Tables!N50 -> 0.599385983
B74: Interest on under/over-recovery for regulatory year | D74: =Tables!L36 -> 1.233852168 | E74: =Tables!M36 -> -1.19218108 | F74: =Tables!N36 -> -1.033087639 | H74: =B73 -> Under/over-recovery of revenue for regulatory year | J74: =Tables!L51 -> 8.560533 | K74: =Tables!M51 -> 4.105141722 | L74: =Tables!N51 -> -9.262748548
B75: Closing balance | D75: =Tables!L37 -> 67.40659994 | E75: =Tables!M37 -> 28.31577546 | F75: =Tables!N37 -> -0.5815622627 | H75: =B74 -> Interest on under/over-recovery for regulatory year | J75: =Tables!L52 -> 0.2718091554 | K75: =Tables!M52 -> 0.1170869249 | L75: =Tables!N52 -> -0.3204953615
H76: =B75 -> Closing balance | J76: =Tables!L53 -> 4.057261928 | K76: =Tables!M53 -> 8.514233773 | L76: =Tables!N53 -> -0.4696241534
B79: Jurisdictional scheme amounts | D79: =D61 -> 2024–25 ($m) | E79: =E61 -> 2025–26 ($m) | F79: =F61 -> 2026–27 ($m) | H79: Metering (where a revenue cap is applicable) | J79: =D61 -> 2024–25 ($m) | K79: =E61 -> 2025–26 ($m) | L79: =F61 -> 2026–27 ($m)
B80: =B62 -> Revenue from charges | D80: =Tables!L57 -> 118.459812 | E80: =Tables!M57 -> 91.92368352 | F80: =Tables!N57 -> 98.28072585 | H80: =B62 -> Revenue from charges | J80: =Tables!L76 -> 0 | K80: =Tables!M76 -> 71.20126722 | L80: =Tables!N76 -> 73.20334739
B81: =B63 -> Deliberate under-recoveries | D81: =Tables!L58 -> 0 | E81: =Tables!M58 -> 0 | F81: =Tables!N58 -> 0 | H81: =B63 -> Deliberate under-recoveries | J81: =Tables!L77 -> 0 | K81: =Tables!M77 -> 0 | L81: =Tables!N77 -> 0
B82: Unpaid network charges (deducted from revenue) | D82: =Tables!L59 -> 0 | E82: =Tables!M59 -> 0 | F82: =Tables!N59 -> 0 | H82: Unpaid network charges (deducted from revenue) | J82: =Tables!L78 -> 0 | K82: =Tables!M78 -> 0 | L82: =Tables!N78 -> 0
B83: Total revenue | D83: =Tables!L60 -> 118.459812 | E83: =Tables!M60 -> 91.92368352 | F83: =Tables!N60 -> 98.28072585 | H83: Total revenue | J83: =Tables!L79 -> 0 | K83: =Tables!M79 -> 71.20126722 | L83: =Tables!N79 -> 73.20334739
B84: Total jurisdictional scheme amounts | D84: =Tables!L65 -> 95.84545412 | E84: =Tables!M65 -> 109.8080739 | F84: =Tables!N65 -> 97.68919321 | H84: Total allowable revenue | J84: =Tables!L80 -> 0 | K84: =Tables!M80 -> 71.20465405 | L84: =Tables!N80 -> 73.78629164
B85: Total under/over-recovery of revenue for regulatory year | D85: =D83-D84 -> 22.61435788 | E85: =E83-E84 -> -17.8843904 | F85: =F83-F84 -> 0.591532642 | H85: Total under/over-recovery of revenue for regulatory year | J85: =J83-J84 -> 0 | K85: =K83-K84 -> -0.003386821154 | L85: =L83-L84 -> -0.5829442502
B86: Balancing adjustment made when year was 't' | D86: =Tables!L66 -> 17.35793706 | E86: =Tables!M66 -> -14.71690856 | F86: =Tables!N66 -> 0.6541104729 | H86: Balancing adjustment made when year was 't' | J86: =Tables!L81 -> 0 | K86: =Tables!M81 -> 0 | L86: =Tables!N81 -> 0.003603948066
B87: Net under/over-recovery of revenue for regulatory year | D87: =Tables!L67 -> 5.256420818 | E87: =Tables!M67 -> -3.16748184 | F87: =Tables!N67 -> -0.06257783088 | H87: Net under/over-recovery of revenue for regulatory year | J87: =Tables!L82 -> 0 | K87: =Tables!M82 -> -0.003386821154 | L87: =Tables!N82 -> -0.5865481982
B88: 0 | H88: 0 | J88: =Tables!I86 -> 0 | K88: =Tables!J86 -> 0 | L88: =Tables!K86 -> 0
B89: Opening balance | D89: =Tables!L68 -> -6.145182955 | E89: =Tables!M68 -> 16.79078114 | F89: =Tables!N68 -> -0.632234856 | H89: Opening balance | J89: =Tables!L83 -> 0 | K89: =Tables!M83 -> 0 | L89: =Tables!N83 -> -0.003483420127
B90: Interest on opening balance | D90: =Tables!L69 -> -0.3964319663 | E90: =Tables!M69 -> 0.9714733062 | F90: =Tables!N69 -> -0.04450814022 | H90: Interest on opening balance | J90: =Tables!L84 -> 0 | K90: =Tables!M84 -> 0 | L90: =Tables!N84 -> -0.0002452262003
B91: Under/over-recovery of revenue for regulatory year | D91: =Tables!L70 -> 22.61435788 | E91: =Tables!M70 -> -17.8843904 | F91: =Tables!N70 -> 0.591532642 | H91: Under/over-recovery of revenue for regulatory year | J91: =Tables!L85 -> 0 | K91: =Tables!M85 -> -0.003386821154 | L91: =Tables!N85 -> -0.5829442502
B92: Interest on under/over-recovery for regulatory year | D92: =Tables!L71 -> 0.7180381778 | E92: =Tables!M71 -> -0.5100988995 | F92: =Tables!N71 -> 0.02046730158 | H92: Interest on under/over-recovery for regulatory year | J92: =Tables!L86 -> 0 | K92: =Tables!M86 -> -9.659897289e-05 | L92: =Tables!N86 -> -0.02017013927
B93: Closing balance | D93: =Tables!L72 -> 16.79078114 | E93: =Tables!M72 -> -0.632234856 | F93: =Tables!N72 -> -0.06474305262 | H93: Closing balance | J93: =Tables!L87 -> 0 | K93: =Tables!M87 -> -0.003483420127 | L93: =Tables!N87 -> -0.6068430358
B96: Side constraints
B97: ="The below table provides weighted average revenue movements for "&DNSP&" for "&forecastyear&" and "&currentyear&". This information is provided at the tariff class level." -> The below table provides weighted average revenue movements for Energex for 2026–27 and 2025–26. This information is provided at the tariff class level.
B98: Also provided is the components of the permissable percentage threshold for which weighted average tariff class revenue movements are constrained by.
B99: ="This table supports the requirement for "&DNSP&" to ensure that the weighted average revenue to be raised from a tariff class in any year must not exceed the corresponding expected revenue for the preceding year by more than the permissable percentage." -> This table supports the requirement for Energex to ensure that the weighted average revenue to be raised from a tariff class in any year must not exceed the corresponding expected revenue for the preceding year by more than the permissable percentage.
B100: This requirement is set out in the NER at cl.6.18.6(b). This requirement does not apply in the first year of a new regulatory control period.
D102: =G15 -> 2025–26 with 2026–27 quantities ($m) | E102: =H15 -> 2026–27 ($m) | F102: =I15 -> weighted average % change | I102: Permissable percentage
B103: =Tables!C93 -> SAC | D103: =Tables!D93 -> 1300.904885 | E103: =Tables!E93 -> 1468.526049 | F103: =Tables!F93 -> 0.1288496686 | H103: =Tables!H93 -> Inflation | I103: =Tables!J93 -> 0.03625658506
B104: =Tables!C94 -> CAC | D104: =Tables!D94 -> 129.610264 | E104: =Tables!E94 -> 143.6773646 | F104: =Tables!F94 -> 0.1085338474 | H104: =Tables!H94 -> X-factor (if X>0, X=0) | I104: =Tables!J94 -> -0.04559043426
B105: =Tables!C95 -> ICC | D105: =Tables!D95 -> 34.65818092 | E105: =Tables!E95 -> 39.42834179 | F105: =Tables!F95 -> 0.1376344848 | H105: =Tables!H95 -> NER allowance | I105: =Tables!J95 -> 0.02
B106: =Tables!C96 -> 0 | D106: =Tables!D96 -> 0 | E106: =Tables!E96 -> 0 | F106: =Tables!F96 -> 0 | H106: =Tables!H96 -> AA factor | I106: =Tables!J96 -> 0.03131854392
B107: =Tables!C97 -> 0 | D107: =Tables!D97 -> 0 | E107: =Tables!E97 -> 0 | F107: =Tables!F97 -> 0 | H107: =Tables!H97 -> D factor | I107: =Tables!J97 -> 1.04744151
B108: =Tables!C98 -> 0 | D108: =Tables!D98 -> 0 | E108: =Tables!E98 -> 0 | F108: =Tables!F98 -> 0 | H108: =Tables!H98 -> Q factor | I108: =Tables!J98 -> 0.009564557596
B109: =Tables!C99 -> 0 | D109: =Tables!D99 -> 0 | E109: =Tables!E99 -> 0 | F109: =Tables!F99 -> 0 | H109: =Tables!H99 -> 0 | I109: =Tables!J99 -> 0
B110: =Tables!C100 -> 0 | D110: =Tables!D100 -> 0 | E110: =Tables!E100 -> 0 | F110: =Tables!F100 -> 0
B111: =Tables!C101 -> 0 | D111: =Tables!D101 -> 0 | E111: =Tables!E101 -> 0 | F111: =Tables!F101 -> 0
B112: =Tables!C102 -> 0 | D112: =Tables!D102 -> 0 | E112: =Tables!E102 -> 0 | F112: =Tables!F102 -> 0
B113: =Tables!C103 -> 0 | D113: =Tables!D103 -> 0 | E113: =Tables!E103 -> 0 | F113: =Tables!F103 -> 0
B114: =Tables!C104 -> Total | D114: =Tables!D104 -> 1465.17333 | E114: =Tables!E104 -> 1651.631755 | F114: =Tables!F104 -> 0.1272603186 | H114: Permissable percentage | I114: =Tables!J100 -> 0.1510424961
B117: Tariff trials
B118: ="The below table provides trial tariff revenues for "&DNSP&" for "&forecastyear&" and historical years." -> The below table provides trial tariff revenues for Energex for 2026–27 and historical years.
B119: ="This table supports the requirement for "&DNSP&" to ensure that the forecast revenue to be raised from a tariff trial in any year must not exceed a threshold of "&individualtrialthreshold*100&"%." -> This table supports the requirement for Energex to ensure that the forecast revenue to be raised from a tariff trial in any year must not exceed a threshold of 1%.
B120: ="This table also supports the requirement for "&DNSP&" to ensure that the aggregate forecast revenue to be raised from all tariff trials in any year must not exceed a threshold of "&General!F22*100&"%." -> This table also supports the requirement for Energex to ensure that the aggregate forecast revenue to be raised from all tariff trials in any year must not exceed a threshold of 5%.
B121: This requirement is set out in the NER at cl.6.18.1C(a). Historical years are provided for information.
D123: =previousyear -> 2024–25 | E123: =currentyear -> 2025–26 | F123: =forecastyear -> 2026–27
B124: =Compliance!C64 -> CAC Dynamic Price Storage | D124: =INDEX(Compliance!$J64:$Q64,1,MATCH('Proposal report'!D$123,Compliance!$J$62:$Q$62,0)) -> 8.881344061e-06 | E124: =INDEX(Compliance!$J64:$Q64,1,MATCH('Proposal report'!E$123,Compliance!$J$62:$Q$62,0)) -> 1.054400713e-05 | F124: =INDEX(Compliance!$J64:$Q64,1,MATCH('Proposal report'!F$123,Compliance!$J$62:$Q$62,0)) -> 0
B125: =Compliance!C65 -> SAC Dynamic Price Storage | D125: =INDEX(Compliance!$J65:$Q65,1,MATCH('Proposal report'!D$123,Compliance!$J$62:$Q$62,0)) -> 0 | E125: =INDEX(Compliance!$J65:$Q65,1,MATCH('Proposal report'!E$123,Compliance!$J$62:$Q$62,0)) -> 0 | F125: =INDEX(Compliance!$J65:$Q65,1,MATCH('Proposal report'!F$123,Compliance!$J$62:$Q$62,0)) -> 0
B126: =Compliance!C66 -> CAC Secondary Dynamic Price Storage | D126: =INDEX(Compliance!$J66:$Q66,1,MATCH('Proposal report'!D$123,Compliance!$J$62:$Q$62,0)) -> 0 | E126: =INDEX(Compliance!$J66:$Q66,1,MATCH('Proposal report'!E$123,Compliance!$J$62:$Q$62,0)) -> 0 | F126: =INDEX(Compliance!$J66:$Q66,1,MATCH('Proposal report'!F$123,Compliance!$J$62:$Q$62,0)) -> 0
B127: =Compliance!C67 -> SAC Secondary Dynamic Price Storage | D127: =INDEX(Compliance!$J67:$Q67,1,MATCH('Proposal report'!D$123,Compliance!$J$62:$Q$62,0)) -> 0 | E127: =INDEX(Compliance!$J67:$Q67,1,MATCH('Proposal report'!E$123,Compliance!$J$62:$Q$62,0)) -> 0 | F127: =INDEX(Compliance!$J67:$Q67,1,MATCH('Proposal report'!F$123,Compliance!$J$62:$Q$62,0)) -> 0
B128: =Compliance!C68 -> CAC Dynamic Flex Storage | D128: =INDEX(Compliance!$J68:$Q68,1,MATCH('Proposal report'!D$123,Compliance!$J$62:$Q$62,0)) -> 0 | E128: =INDEX(Compliance!$J68:$Q68,1,MATCH('Proposal report'!E$123,Compliance!$J$62:$Q$62,0)) -> 0 | F128: =INDEX(Compliance!$J68:$Q68,1,MATCH('Proposal report'!F$123,Compliance!$J$62:$Q$62,0)) -> 0
B129: =Compliance!C69 -> SAC Dynamic Flex Storage | D129: =INDEX(Compliance!$J69:$Q69,1,MATCH('Proposal report'!D$123,Compliance!$J$62:$Q$62,0)) -> 0 | E129: =INDEX(Compliance!$J69:$Q69,1,MATCH('Proposal report'!E$123,Compliance!$J$62:$Q$62,0)) -> 0 | F129: =INDEX(Compliance!$J69:$Q69,1,MATCH('Proposal report'!F$123,Compliance!$J$62:$Q$62,0)) -> 0
B130: =Compliance!C70 -> Dynamic Business HV | D130: =INDEX(Compliance!$J70:$Q70,1,MATCH('Proposal report'!D$123,Compliance!$J$62:$Q$62,0)) -> 0 | E130: =INDEX(Compliance!$J70:$Q70,1,MATCH('Proposal report'!E$123,Compliance!$J$62:$Q$62,0)) -> 0 | F130: =INDEX(Compliance!$J70:$Q70,1,MATCH('Proposal report'!F$123,Compliance!$J$62:$Q$62,0)) -> 3.950663802e-05
B131: =Compliance!C71 -> Dynamic Business LV | D131: =INDEX(Compliance!$J71:$Q71,1,MATCH('Proposal report'!D$123,Compliance!$J$62:$Q$62,0)) -> 0 | E131: =INDEX(Compliance!$J71:$Q71,1,MATCH('Proposal report'!E$123,Compliance!$J$62:$Q$62,0)) -> 0 | F131: =INDEX(Compliance!$J71:$Q71,1,MATCH('Proposal report'!F$123,Compliance!$J$62:$Q$62,0)) -> 1.803736789e-05
B132: =Compliance!C72 -> Residential Two-way tariff | D132: =INDEX(Compliance!$J72:$Q72,1,MATCH('Proposal report'!D$123,Compliance!$J$62:$Q$62,0)) -> 0 | E132: =INDEX(Compliance!$J72:$Q72,1,MATCH('Proposal report'!E$123,Compliance!$J$62:$Q$62,0)) -> 0 | F132: =INDEX(Compliance!$J72:$Q72,1,MATCH('Proposal report'!F$123,Compliance!$J$62:$Q$62,0)) -> 0.0005524422903
B133: =Compliance!C73 -> 0 | D133: =INDEX(Compliance!$J73:$Q73,1,MATCH('Proposal report'!D$123,Compliance!$J$62:$Q$62,0)) -> 0 | E133: =INDEX(Compliance!$J73:$Q73,1,MATCH('Proposal report'!E$123,Compliance!$J$62:$Q$62,0)) -> 0 | F133: =INDEX(Compliance!$J73:$Q73,1,MATCH('Proposal report'!F$123,Compliance!$J$62:$Q$62,0)) -> 0
B134: =Compliance!C74 -> 0 | D134: =INDEX(Compliance!$J74:$Q74,1,MATCH('Proposal report'!D$123,Compliance!$J$62:$Q$62,0)) -> 0 | E134: =INDEX(Compliance!$J74:$Q74,1,MATCH('Proposal report'!E$123,Compliance!$J$62:$Q$62,0)) -> 0 | F134: =INDEX(Compliance!$J74:$Q74,1,MATCH('Proposal report'!F$123,Compliance!$J$62:$Q$62,0)) -> 0
B135: =Compliance!C75 -> 0 | D135: =INDEX(Compliance!$J75:$Q75,1,MATCH('Proposal report'!D$123,Compliance!$J$62:$Q$62,0)) -> 0 | E135: =INDEX(Compliance!$J75:$Q75,1,MATCH('Proposal report'!E$123,Compliance!$J$62:$Q$62,0)) -> 0 | F135: =INDEX(Compliance!$J75:$Q75,1,MATCH('Proposal report'!F$123,Compliance!$J$62:$Q$62,0)) -> 0
B136: =Compliance!C76 -> 0 | D136: =INDEX(Compliance!$J76:$Q76,1,MATCH('Proposal report'!D$123,Compliance!$J$62:$Q$62,0)) -> 0 | E136: =INDEX(Compliance!$J76:$Q76,1,MATCH('Proposal report'!E$123,Compliance!$J$62:$Q$62,0)) -> 0 | F136: =INDEX(Compliance!$J76:$Q76,1,MATCH('Proposal report'!F$123,Compliance!$J$62:$Q$62,0)) -> 0
B137: =Compliance!C77 -> 0 | D137: =INDEX(Compliance!$J77:$Q77,1,MATCH('Proposal report'!D$123,Compliance!$J$62:$Q$62,0)) -> 0 | E137: =INDEX(Compliance!$J77:$Q77,1,MATCH('Proposal report'!E$123,Compliance!$J$62:$Q$62,0)) -> 0 | F137: =INDEX(Compliance!$J77:$Q77,1,MATCH('Proposal report'!F$123,Compliance!$J$62:$Q$62,0)) -> 0
B138: =Compliance!C78 -> 0 | D138: =INDEX(Compliance!$J78:$Q78,1,MATCH('Proposal report'!D$123,Compliance!$J$62:$Q$62,0)) -> 0 | E138: =INDEX(Compliance!$J78:$Q78,1,MATCH('Proposal report'!E$123,Compliance!$J$62:$Q$62,0)) -> 0 | F138: =INDEX(Compliance!$J78:$Q78,1,MATCH('Proposal report'!F$123,Compliance!$J$62:$Q$62,0)) -> 0
B139: =Compliance!C79 -> 0 | D139: =INDEX(Compliance!$J79:$Q79,1,MATCH('Proposal report'!D$123,Compliance!$J$62:$Q$62,0)) -> 0 | E139: =INDEX(Compliance!$J79:$Q79,1,MATCH('Proposal report'!E$123,Compliance!$J$62:$Q$62,0)) -> 0 | F139: =INDEX(Compliance!$J79:$Q79,1,MATCH('Proposal report'!F$123,Compliance!$J$62:$Q$62,0)) -> 0
B140: =Compliance!C80 -> 0 | D140: =INDEX(Compliance!$J80:$Q80,1,MATCH('Proposal report'!D$123,Compliance!$J$62:$Q$62,0)) -> 0 | E140: =INDEX(Compliance!$J80:$Q80,1,MATCH('Proposal report'!E$123,Compliance!$J$62:$Q$62,0)) -> 0 | F140: =INDEX(Compliance!$J80:$Q80,1,MATCH('Proposal report'!F$123,Compliance!$J$62:$Q$62,0)) -> 0
B141: =Compliance!C81 -> 0 | D141: =INDEX(Compliance!$J81:$Q81,1,MATCH('Proposal report'!D$123,Compliance!$J$62:$Q$62,0)) -> 0 | E141: =INDEX(Compliance!$J81:$Q81,1,MATCH('Proposal report'!E$123,Compliance!$J$62:$Q$62,0)) -> 0 | F141: =INDEX(Compliance!$J81:$Q81,1,MATCH('Proposal report'!F$123,Compliance!$J$62:$Q$62,0)) -> 0
B142: =Compliance!C82 -> 0 | D142: =INDEX(Compliance!$J82:$Q82,1,MATCH('Proposal report'!D$123,Compliance!$J$62:$Q$62,0)) -> 0 | E142: =INDEX(Compliance!$J82:$Q82,1,MATCH('Proposal report'!E$123,Compliance!$J$62:$Q$62,0)) -> 0 | F142: =INDEX(Compliance!$J82:$Q82,1,MATCH('Proposal report'!F$123,Compliance!$J$62:$Q$62,0)) -> 0
B143: =Compliance!C83 -> 0 | D143: =INDEX(Compliance!$J83:$Q83,1,MATCH('Proposal report'!D$123,Compliance!$J$62:$Q$62,0)) -> 0 | E143: =INDEX(Compliance!$J83:$Q83,1,MATCH('Proposal report'!E$123,Compliance!$J$62:$Q$62,0)) -> 0 | F143: =INDEX(Compliance!$J83:$Q83,1,MATCH('Proposal report'!F$123,Compliance!$J$62:$Q$62,0)) -> 0
B144: =Compliance!C84 -> Total trial tariffs | D144: =INDEX(Compliance!$J84:$Q84,1,MATCH('Proposal report'!D$123,Compliance!$J$62:$Q$62,0)) -> 8.881344061e-06 | E144: =INDEX(Compliance!$J84:$Q84,1,MATCH('Proposal report'!E$123,Compliance!$J$62:$Q$62,0)) -> 1.054400713e-05 | F144: =INDEX(Compliance!$J84:$Q84,1,MATCH('Proposal report'!F$123,Compliance!$J$62:$Q$62,0)) -> 0.0006099862962
B147: Standalone and avoidable costs
B148: ="The below table provides the total revenues for each tariff class for "&DNSP&" for "&forecastyear&". Information on the standalone and avoidable costs for each tariff class is also provided." -> The below table provides the total revenues for each tariff class for Energex for 2026–27. Information on the standalone and avoidable costs for each tariff class is also provided.
B149: ="This table supports the requirement for "&DNSP&" to ensure that the revenue expected to be recovered for each tariff class must lie between the stand alone cost of serving those customers, and the avoidable cost of not serving those customers." -> This table supports the requirement for Energex to ensure that the revenue expected to be recovered for each tariff class must lie between the stand alone cost of serving those customers, and the avoidable cost of not serving those customers.
B150: This requirement is set out in the NER at cl.6.18.5(e).
D152: Avoidable costs ($m) | E152: Forecast revenue ($m) | F152: Standalone costs ($m)
B153: =Tables!C110 -> SAC | D153: =Tables!D110 -> 214.0658634 | E153: =Tables!E110 -> 1468.526049 | F153: =Tables!F110 -> 1657.156457
B154: =Tables!C111 -> CAC | D154: =Tables!D111 -> 21.01786006 | E154: =Tables!E111 -> 143.6773646 | F154: =Tables!F111 -> 603.7480711
B155: =Tables!C112 -> ICC | D155: =Tables!D112 -> 11.37192826 | E155: =Tables!E112 -> 39.42834179 | F155: =Tables!F112 -> 163.9219482
B156: =Tables!C113 -> 0 | D156: =Tables!D113 -> 0 | E156: =Tables!E113 -> 0 | F156: =Tables!F113 -> 0
B157: =Tables!C114 -> 0 | D157: =Tables!D114 -> 0 | E157: =Tables!E114 -> 0 | F157: =Tables!F114 -> 0
B158: =Tables!C115 -> 0 | D158: =Tables!D115 -> 0 | E158: =Tables!E115 -> 0 | F158: =Tables!F115 -> 0
B159: =Tables!C116 -> 0 | D159: =Tables!D116 -> 0 | E159: =Tables!E116 -> 0 | F159: =Tables!F116 -> 0
B160: =Tables!C117 -> 0 | D160: =Tables!D117 -> 0 | E160: =Tables!E117 -> 0 | F160: =Tables!F117 -> 0
B161: =Tables!C118 -> 0 | D161: =Tables!D118 -> 0 | E161: =Tables!E118 -> 0 | F161: =Tables!F118 -> 0
B162: =Tables!C119 -> 0 | D162: =Tables!D119 -> 0 | E162: =Tables!E119 -> 0 | F162: =Tables!F119 -> 0
B163: =Tables!C120 -> 0 | D163: =Tables!D120 -> 0 | E163: =Tables!E120 -> 0 | F163: =Tables!F120 -> 0

Sheet Model report
B1: ='Outputs>>'!B1 -> AER pricing model - Energex 2026–27 | I1: Back to Index
B2: ='Outputs>>'!C10 -> Model report | J2: =IF(COUNTIF(E5:E68,"NON-COMPLIANT")+COUNTIF(E5:E68,"REVIEW")+COUNTIF(E5:E68,"NO")>0,"REVIEW","COMPLIANT") -> REVIEW | N2: =IF(COUNTIF(C30:Q41,"CHECK")>0,"CHECK","OK") -> OK | S2: VALIDATION
B3: ='Outputs>>'!D10 -> Provides output report including compliance, validations, trend analysis, and quantity forecast analysis | S3: =IF(COUNTIF(S5:S68,"CHECK")>0,"CHECK","OK") -> OK
B5: Output report 1 | Compliance | M5: Notes
C7: Total allowable revenues | E7: Compliant? | I7: Total revenue | J7: TAR | K7: Variance
C8: Distribution | E8: =Compliance!S12 -> COMPLIANT | I8: =SUM(Compliance!J8:J10) -> 1652.658066 | J8: =Compliance!J11 -> 1653.220179 | K8: =IF(J8=0,0,I8/J8-1) -> -0.0003400109101 | S8: =IF(SUMPRODUCT(--_xlfn.ISFORMULA(E8:K8))=4,"OK","CHECK") -> OK
C9: Designated pricing proposal costs (DPPC) | E9: =IF(INDEX(Lookups!I129:I143,MATCH(DNSP,Lookups!G129:G143,0))="NT","N/A",Compliance!S19) -> COMPLIANT | I9: =SUM(Compliance!J14:J17) -> 401.6488629 | J9: =Compliance!J18 -> 402.1027812 | K9: =IF(J9=0,0,I9/J9-1) -> -0.00112886155 | S9: =IF(SUMPRODUCT(--_xlfn.ISFORMULA(E9:K9))=4,"OK","CHECK") -> OK
C10: Jurisdictional scheme amounts (JSA) | E10: =IF(INDEX(Lookups!I129:I143,MATCH(DNSP,Lookups!G129:G143,0))="NT","N/A",IF(INDEX(Lookups!I129:I143,MATCH(DNSP,Lookups!G129:G143,0))="Tas","N/A",Compliance!S25)) -> COMPLIANT | I10: =SUM(Compliance!J21:J23) -> 98.28072585 | J10: =Compliance!J24 -> 98.34330368 | K10: =IF(J10=0,0,I10/J10-1) -> -0.0006363202022 | S10: =IF(SUMPRODUCT(--_xlfn.ISFORMULA(E10:K10))=4,"OK","CHECK") -> OK
C11: Metering (where a revenue cap is applicable) | E11: =IF(INDEX(Lookups!I129:I143,MATCH(DNSP,Lookups!G129:G143,0))="Vic",Compliance!S30,"N/A") -> N/A | I11: =SUM(Compliance!J27:J28) -> 73.20334739 | J11: =Compliance!J29 -> 73.78989559 | K11: =IF(J11=0,0,I11/J11-1) -> -0.007948895896 | S11: =IF(SUMPRODUCT(--_xlfn.ISFORMULA(E11:K11))=4,"OK","CHECK") -> OK
C13: Unders/overs accounts | E13: Compliant? | I13: Closing balances | J13: Materiality
C14: Distribution | E14: =Compliance!S34 -> COMPLIANT | I14: =Compliance!J34 -> -0.5815622627 | J14: =IF(I14=0,0,I14/J8) -> -0.000351775444 | S14: =IF(SUMPRODUCT(--_xlfn.ISFORMULA(E14:J14))=3,"OK","CHECK") -> OK
C15: DPPC | E15: =IF(INDEX(Lookups!I129:I143,MATCH(DNSP,Lookups!G129:G143,0))="NT","N/A",Compliance!S35) -> COMPLIANT | I15: =Compliance!J35 -> -0.4696241534 | J15: =IF(I15=0,0,I15/J9) -> -0.001167920679 | S15: =IF(SUMPRODUCT(--_xlfn.ISFORMULA(E15:J15))=3,"OK","CHECK") -> OK
C16: JSA | E16: =IF(INDEX(Lookups!I129:I143,MATCH(DNSP,Lookups!G129:G143,0))="NT","N/A",IF(INDEX(Lookups!I129:I143,MATCH(DNSP,Lookups!G129:G143,0))="Tas","N/A",Compliance!S36)) -> COMPLIANT | I16: =Compliance!J36 -> -0.06474305262 | J16: =IF(I16=0,0,I16/J10) -> -0.0006583371739 | S16: =IF(SUMPRODUCT(--_xlfn.ISFORMULA(E16:J16))=3,"OK","CHECK") -> OK
C17: Metering (where a revenue cap is applicable) | E17: =IF(INDEX(Lookups!I129:I143,MATCH(DNSP,Lookups!G129:G143,0))="Vic",Compliance!S37,"N/A") -> N/A | I17: =Compliance!J37 -> -0.6068430358 | J17: =IF(I17=0,0,I17/J11) -> -0.008223931351 | S17: =IF(SUMPRODUCT(--_xlfn.ISFORMULA(E17:J17))=3,"OK","CHECK") -> OK
C19: Other compliance | E19: Compliant?
C20: Side constraints | E20: =IF(OR(Compliance!S41:S51="NON-COMPLIANT"),"NON-COMPLIANT","COMPLIANT") -> COMPLIANT | I20: Side constraint threshold | J20: =Compliance!L41 -> 0.1510424961 | S20: =IF(SUMPRODUCT(--_xlfn.ISFORMULA(E20:J20))=2,"OK","CHECK") -> OK
C21: Metering side constraints (where a revenue cap is applicable) | E21: =IF(INDEX(Lookups!I129:I143,MATCH(DNSP,Lookups!G129:G143,0))="Vic",IF(OR(Compliance!S54:S60="NON-COMPLIANT"),"NON-COMPLIANT","COMPLIANT"),"N/A") -> N/A | I21: Side constraint threshold | J21: =IF(INDEX(Lookups!I129:I143,MATCH(DNSP,Lookups!G129:G143,0))="Vic",Compliance!L54,"N/A") -> N/A | S21: =IF(SUMPRODUCT(--_xlfn.ISFORMULA(E21:J21))=2,"OK","CHECK") -> OK
C22: Trial tariff thresholds (individual) | E22: =IF(OR(Compliance!S64:S83="NON-COMPLIANT"),"NON-COMPLIANT","COMPLIANT") -> COMPLIANT | S22: =IF(_xlfn.ISFORMULA(E22),"OK","CHECK") -> OK
C23: Trial tariff thresholds (aggregate) | E23: =Compliance!S84 -> COMPLIANT | I23: =forecastyear&" aggregate %" -> 2026–27 aggregate % | J23: =INDEX(Compliance!J84:Q84,1,MATCH(forecastyear,Compliance!J62:Q62,0)) -> 0.0006099862962 | S23: =IF(SUMPRODUCT(--_xlfn.ISFORMULA(E23:J23))=3,"OK","CHECK") -> OK
C24: Standalone and avoidable costs | E24: =IF(OR(Compliance!S88:S98="NON-COMPLIANT"),"NON-COMPLIANT","COMPLIANT") -> COMPLIANT | S24: =IF(_xlfn.ISFORMULA(E24),"OK","CHECK") -> OK
C25: Movements from indicative prices | E25: =IF(Q34="OK","COMPLIANT","NON-COMPLIANT") -> COMPLIANT | S25: =IF(_xlfn.ISFORMULA(E25),"OK","CHECK") -> OK
B27: Output report 2 | Validations
C29: Validations | E29: Valid? | L29: =E29 -> Valid? | Q29: =E29 -> Valid?
